{"text_format":"1","workbook":"xlsx","n_sheets":3,"sheets":["ورقة1","العاملين ","الاستمارة "],"not_rendered":{"charts":0,"images":0,"macros":1,"external_links":0,"defined_names":3,"comments":3,"pivot_tables":0},"unopened":[],"bounds":{"document_bytes":16777216,"sheet_cells":100000,"rows_first":2000,"rows_last":500,"rows_between":2000,"halvings":0,"cell_chars":16384,"cell_head_chars":4096},"cells_cut":0,"cells_raw":0,"read":"whole","date_system":"1900"}

{"sheet":"ورقة1","index":0,"n_rows":9,"n_cols":12,"rows_kept":9,"cut":false,"hidden":false,"merged":[[5,0,5,1],[6,0,6,1],[6,11,7,20],[7,0,7,1],[0,0,0,1],[1,0,1,1],[1,11,4,13],[2,0,2,1],[3,0,3,1],[4,0,4,1]]}
["إدارة ",null,"الشهداء التعليمية","بيانات العاملين "]
["مدرسة ",null,"الادارة","الاستمارة ",null,null,null,null,null,null,null,"صمم هذا البرنامج اخوكم فى الله أ/محمد محمد عبد الله عبد الصمد رئيس قسم التدريب بادارة الشهداء نسألكم الدعاء بظاهرالغيب"]
["شهر ",null,"مارس 2018","خلف الاستمارة "]
["مدير المدرسة",null,"محمد","فردية "]
["سنة ",null,2018,"خلف فردية "]
["مسئول المرتبات"]
[null,null,null,null,null,null,null,null,null,null,null,"يجب توزيع عدد العاملين على مجموعة من الكشوف بواقع 25 عامل للكشف على أن يكون كشف التجميعه من ضمن الكشوف فمثلا 50 عامل توزع 25كشف 1 و23 للكشف 2 وعدد 2عامل لكشف التجميعة ،خانة التوقيع بالاستلام اكتب فيها رقم العامل الموجودفى البيانات ، تأكد من عدم وجود بيانات فى الكشوف الغير مستعمله وذلكبالذهاب للكشف والضغطعلى مفتاحمسح البيانات فى يسار الكشف"]
[]
[null,null,null,null,null,null,null,null,null,null,"aya6672"]

{"sheet":"العاملين ","index":1,"n_rows":463,"n_cols":143,"rows_kept":463,"cut":false,"hidden":false,"merged":[[9,75,9,77],[10,75,10,77],[1,70,2,70],[1,71,2,71],[1,72,2,72],[1,61,2,61],[1,62,2,62],[1,82,2,82],[4,75,4,77],[6,75,6,77],[1,64,2,64],[1,65,2,65],[1,66,2,66],[1,67,2,67],[1,68,2,68],[1,63,2,63],[1,69,2,69],[1,57,2,57],[1,58,2,58],[1,59,2,59],[1,60,2,60],[1,37,2,37],[1,38,2,38],[1,39,2,39],[1,40,2,40],[1,41,2,41],[1,42,2,42],[1,44,1,47],[1,49,2,49],[1,50,2,50],[1,51,2,51],[1,52,1,56],[1,43,2,43],[1,32,2,32],[1,33,2,33],[1,34,2,34],[1,35,2,35],[1,36,2,36],[1,19,2,19],[1,27,2,27],[1,28,2,28],[1,29,2,29],[1,30,2,30],[1,31,2,31],[1,20,2,20],[1,21,2,21],[1,22,2,22],[1,23,2,23],[1,24,2,24],[1,25,2,25],[1,26,2,26],[1,10,2,10],[1,11,2,11],[1,12,2,12],[1,17,2,17],[1,18,2,18],[0,41,0,45],[0,63,0,72],[1,0,2,0],[1,1,2,1],[1,2,2,2],[1,3,2,3],[1,4,2,4],[1,5,2,5],[1,7,2,7],[1,13,2,13],[1,14,2,14],[1,15,2,15],[1,16,2,16],[0,7,0,10],[1,8,2,8],[1,9,2,9]]}
[null,null,null,null,null,null,null,"استحقاقات",null,null,null,null,null,null,null,null,null,null,null,null,null,null,null,null,null,null,null,null,null,null,null,null,null,null,null,null,null,null,null,null,null,"استقطاعات",null,null,null,null,null,null,null,null,null,null,null,null,null,null,null,null,null,null,null,null,null,"الخلايا الحمراء لا تدخل بها بيانات فهى تحسب نفسها"]
["م","الاســــــــــــم ","نقابي","نقابى /غيرنقابى","الحالة الاجتماعية","اكتب 1 للحاصل على ال 33%",null,"الوظيفة","المرتب الذى يحسب عليه الكادر","المرتب الاساسي ","علاوة  2012 ","علاوة   2013","علاوة  2014  ","علاةة   2015 ","علاوة   2016 ","ع اجتماعية","ع اجتماعيةاضافية","أعباء وظيفية","بدل نظارة","حافز مدير","بدل تفرغ","بدل تجاريين","بدل عدوي","حافز ماجستير","حافزدكتوراة","بدل تسكين","الحدالادنى","اكتب ما تشاء","اكتب ما تشاء","اكتب ما تشاء","اكتب ما تشاء","اكتب ما تشاء","اكتب ما تشاء","اكتب ما تشاء","اكتب ما تشاء","نقابة اجتماعية","نقابة تطبيقين ","رابطه","ضريبة الدخل ","دمغة عادية   ","دمغة نسبيه  ","أرباب عهد","خدمات عمالية","نقابة بحث علمى 5%","اقساط بنوك",null,null,null,null,"نصف العلاوة","ايرادات تربيةوتعليم","انقطاع ","للحالات خاصة فقط",null,null,null,null,null,null,null,null,null,null,"منحة","بدل معلم اضافى","بدل معلم ","بدل اعتماد ","حافز 25 %","حافز أداء ","الـ91.5","ال50%","ال 33%","الحد الادنى",null,null,null,null,null,null,null,null,null,"الوظيفة "]
[null,null,null,null,null,null,"الرقم القومى",null,null,null,null,null,null,null,null,null,null,null,null,null,null,null,null,null,null,null,null,null,null,null,null,null,null,null,null,null,null,null,null,null,null,null,null,null,"ناصر","القاهرة","الاهلى","اكتب ما تشاء","اكتب اسم البنك",null,null,null,"زمالة","جماعى","نقابة ","نادى المحافطة ","نادى الادارة",null,null,null,null,null,null,null,null,null,null,null,null,null,null,null,null,null,null,null,null,null,null,null,null,null,null,null,null,"حافز 25%","حافزأداء"]
[1,"محمد1",{"$f":"IF(D4=\"نقابى\",1,IF(D4=\"حالة خاصة\",2,0))","v":1},"نقابى","متزوج+2",0,null,"معلم",666.98,16650,null,62.23,62.73,66.69,null,4,{"$f":"IF(E4=\"متزوج\",2,IF(E4=\"متزوج+1\",4,IF(E4=\"متزوج+2\",6,IF(E4=\"متزوجة\",2,0))))","v":6},350,null,null,null,null," ",null,null,null,{"$f":"BU4","v":0},null,null,null,null,null,null,null,null,null,null,1,7.25,15.45,null,null,0,null,null,null,null,null,"khwv",null,null," ",5,5,5,5,5,null,null,null,null,null,null,{"$f":"IF(H4=\"معلم مساعد\",10,IF(H4=\"معلم تعاقد\",10,IF(H4=\"معلم\",10,IF(H4=\"معلم أول\",10,IF(H4=\"معلم أول أ\",10,IF(H4=\"خبير\",10,IF(H4=\"كبير\",10,IF(H4=\"عامل تعاقد\",0,\"\"))))))))","v":10},{"$f":"IF(H4=\"معلم مساعد\",I4*0/100,IF(H4=\"معلم تعاقد\",I4*0/100,IF(H4=\"معلم\",I4*50/100,IF(H4=\"معلم أول\",I4*50/100,IF(H4=\"معلم أول أ\",I4*50/100,IF(H4=\"خبير\",I4*50/100,IF(H4=\"كبير\",I4*50/100,)))))))","v":333.49},{"$f":"IF(H4=\"معلم مساعد\",I4*50/100,IF(H4=\"عامل تعاقد\",I4*0/100,IF(H4=\"معلم\",I4*50/100,IF(H4=\"معلم أول\",I4*50/100,IF(H4=\"معلم أول أ\",I4*50/100,IF(H4=\"خبير\",I4*50/100,IF(H4=\"كبير\",I4*50/100,)))))))","v":333.49},{"$f":"IF(H4=\"إدارى\",I4*0,IF(H4=\"معلم مساعد\",I4*0/100,IF(H4=\"معلم\",I4*50/100,IF(H4=\"معلم أول\",I4*75/100,IF(H4=\"معلم أول أ\",I4*100/100,IF(H4=\"خبير\",I4*125/100,IF(H4=\"كبير\",I4*150/100,)))))))","v":333.49},{"$f":"INT(IF(H4=\"عامل تعاقد\",I4*25/100,IF(H4=\"معلم مساعد\",I4*25/100,IF(H4=\"معلم\",I4*25/100,IF(H4=\"معلم أول\",I4*25/100,IF(H4=\"معلم أول أ\",I4*25/100,IF(H4=\"خبير\",I4*25/100,IF(H4=\"كبير\",I4*25/100,))))))))","v":166},{"$f":"INT(IF(H4=\"إدارى\",J4*0/100,IF(H4=\"معلم مساعد\",I4*125/100,IF(H4=\"معلم\",I4*75/100,IF(H4=\"معلم أول\",I4*50/100,IF(H4=\"معلم أول أ\",I4*25/100,IF(H4=\"خبير\",I4*25/100,IF(H4=\"كبير\",I4*25/100,))))))))","v":500},{"$f":"INT(IF(H4=\"عامل تعاقد\",I4*0.9166,IF(H4=\"معلم تعاقد\",I4*0.9166,0)))","v":0},{"$f":"INT(IF(H4=\"عامل تعاقد\",I4*0.5,IF(H4=\"معلم تعاقد\",I4*0.5,0)))","v":0},{"$f":"INT(IF(F4=1,I4*0.3333,0))","v":0},{"$f":"IF(H4=\"عامل تعاقد\",225,IF(H4=\"معلم تعاقد\",300,0))","v":0},null,null,null,null,null,null,{"$f":"IF($B4>0,(SUM(R4:AD4)-50),0)","v":300},{"$f":"IF(CB4<250,(CB4*0.006),IF(CB4<500,(CB4*0.0065),IF(CB4<1000,(CB4*0.007),IF(CB4<5000,(CB4*0.0075),IF(CB4>5000,(CB4*0.008),\" \" )))))","v":1.95},{"$f":"CEILING($CC4,0.05)","v":1.9500000000000002},"كبير",null,null,null,{"$f":"#VALUE!","v":{"$error":"#VALUE!"}}]
[2,"محمد2",{"$f":"IF(D5=\"نقابى\",1,IF(D5=\"حالة خاصة\",2,0))","v":1},"نقابى","متزوجة",0,null,"معلم أول أ",666.98,1500,null,48.43,48.93,52.05,null,4,{"$f":"IF(E5=\"متزوج\",2,IF(E5=\"متزوج+1\",4,IF(E5=\"متزوج+2\",6,IF(E5=\"متزوجة\",2,0))))","v":2},null,null,0,null,null,null,null,null,null,{"$f":"BU5","v":0},null,null,null,null,null,null,null,null,null,null,1,24.14,13.5,null,null,null,null,null,null,null,null,null,null,null,null,{"$f":"COLUMN()","v":53},null,null,null,null,null,null,null,null,null,null,{"$f":"IF(H5=\"معلم مساعد\",10,IF(H5=\"معلم تعاقد\",10,IF(H5=\"معلم\",10,IF(H5=\"معلم أول\",10,IF(H5=\"معلم أول أ\",10,IF(H5=\"خبير\",10,IF(H5=\"كبير\",10,IF(H5=\"عامل تعاقد\",0,\"\"))))))))","v":10},{"$f":"IF(H5=\"عقد مميز\",I5*0/100,IF(H5=\"معلم تعاقد\",I5*0/100,IF(H5=\"معلم\",I5*50/100,IF(H5=\"معلم أول\",I5*50/100,IF(H5=\"معلم أول أ\",I5*50/100,IF(H5=\"خبير\",I5*50/100,IF(H5=\"كبير\",I5*50/100,)))))))","v":333.49},{"$f":"IF(H5=\"معلم مساعد\",I5*50/100,IF(H5=\"عامل تعاقد\",I5*0/100,IF(H5=\"معلم\",I5*50/100,IF(H5=\"معلم أول\",I5*50/100,IF(H5=\"معلم أول أ\",I5*50/100,IF(H5=\"خبير\",I5*50/100,IF(H5=\"كبير\",I5*50/100,)))))))","v":333.49},{"$f":"IF(H5=\"إدارى\",I5*0,IF(H5=\"معلم مساعد\",I5*0/100,IF(H5=\"معلم\",I5*50/100,IF(H5=\"معلم أول\",I5*75/100,IF(H5=\"معلم أول أ\",I5*100/100,IF(H5=\"خبير\",I5*125/100,IF(H5=\"كبير\",I5*150/100,)))))))","v":666.98},166,166,0,0,0,0,null,null,"الحد الاقصي للمتغيرات فى الشهر",null,null,2800,-50,-0.3,{"$f":"CEILING($CC5,0.05)","v":-0.30000000000000004},"خبير",null,null,{"$f":"#VALUE!","v":{"$error":"#VALUE!"}},{"$f":"#VALUE!","v":{"$error":"#VALUE!"}}]
[3,"محمد3",{"$f":"IF(D6=\"نقابى\",1,IF(D6=\"حالة خاصة\",2,0))","v":1},"نقابى","متزوج+2",0,null,"معلم",566.52,938.62,null,52.79,53.29,56.69,null,4,6,null,null,null,null,null,null,null,null,null,0,null,null,null,null,null,null,null,null,null,null,1,26.73,14.95,null,null,null,null,null,null,null,null,null,null,4,null,null,null,null,null,null,null," ",null,null,null,null,10,283.26,283.26,{"$f":"IF(H6=\"إدارى\",I6*0,IF(H6=\"معلم مساعد\",I6*0/100,IF(H6=\"معلم\",I6*50/100,IF(H6=\"معلم أول\",I6*75/100,IF(H6=\"معلم أول أ\",I6*100/100,IF(H6=\"خبير\",I6*125/100,IF(H6=\"كبير\",I6*150/100,)))))))","v":283.26},141,424,0,0,0,0,null,null,null,null,null,null,-50,-0.3,-0.30000000000000004,"معلم أول أ",null,null,{"$f":"#VALUE!","v":{"$error":"#VALUE!"}},{"$f":"#VALUE!","v":{"$error":"#VALUE!"}},null,null,null,null,null,null,null,null,null,null,null,null,null,null,null,null,null,null,null,null,null,null,null,null,null,null,null,null,null,null,null,null,null,null,null,null,null,null,null,null,null,null,null,null,null,null,null,null,null,null,null,null,null,null,null,"معلم"]
[4,"محمد4",{"$f":"IF(D7=\"نقابى\",1,IF(D7=\"حالة خاصة\",2,0))","v":1},"نقابى","متزوج+2",0,null,"معلم أول",511.02,854.21,null,47.01,47.51,51.1,null,4,6,null,null,null,null,null,null,null,null,null,0,null,null,null,null,null,null,null,null,null,null,1,22.26,13.75,null,null,null,null,null,null,null,null,null,null,null,null,null,null,null,null,null,null,null,null,null,null,null,10,255.51,255.51,383.26499999999999,127,255,0,0,0,0,null,null,"الحد الاقصي للمتغيرات  فى السنة",null,null,{"$f":"CA5*12","v":33600},-50,-0.3,-0.30000000000000004,"معلم أول",null,null,{"$f":"#VALUE!","v":{"$error":"#VALUE!"}},{"$f":"#VALUE!","v":{"$error":"#VALUE!"}},null,null,null,"نقابى",null,null,null,null,null,null,null,null,null,null,null,null,null,null,null,null,null,null,null,null,null,null,null,null,null,null,null,null,null,null,null,null,null,null,null,null,null,null,null,null,null,null,null,null,null,null,null,null,null,null,null,"معلم اول"]
[5,"محمد5",{"$f":"IF(D8=\"نقابى\",1,IF(D8=\"حالة خاصة\",2,0))","v":1},"نقابى","متزوج+2",0,null,"معلم أول",536.12,891.32,null,49.89,50.39,53.61,null,4,6,null,null,null,null,null,null,null,null,null,0,null,null,null,null,null,null,null,null,null,null,1,19.72,14.35,null,null,null,null,null,null,null,null,null,null,null,null,null,null,null,null,null,null,null,null,null,null,null,10,268.06,268.06,402.09,134,268,0,0,0,0,null,null,null,null,null,null,-50,-0.3,-0.30000000000000004,"معلم",null,null,{"$f":"#VALUE!","v":{"$error":"#VALUE!"}},{"$f":"#VALUE!","v":{"$error":"#VALUE!"}},null,null,null,"غير نقابى",null,null,null,null,null,null,null,null,null,null,null,null,null,null,null,null,null,null,null,null,null,null,null,null,null,null,null,null,null,null,null,null,null,null,null,null,null,null,null,null,null,null,null,null,null,null,null,null,null,null,null,"معلم اول ا"]
[6,"محمد6",1,"نقابى","متزوجة",0,null,"معلم أول",559.4,926.45,null,52.08,52.58,55.94,null,4,2,null,null,null,null,null,null,null,null,null,0,null,null,null,null,null,null,null,null,null,null,1,23.63,14.55,null,null,null,null,null,null,null,null,null,null,null,null,null,null,null,null,null,null,null,null,null,null,null,10,279.7,279.7,419.55,139,279,0,0,0,0,null,null,null,null,null,null,-50,-0.3,-0.30000000000000004,"معلم مساعد",null,null,{"$f":"#VALUE!","v":{"$error":"#VALUE!"}},{"$f":"#VALUE!","v":{"$error":"#VALUE!"}},null,null,null,"حالة خاصة",null,null,null,null,null,null,null,null,null,null,null,null,null,null,null,null,null,null,null,null,null,null,null,null,null,null,null,null,null,null,null,null,null,null,null,null,null,null,null,null,null,null,null,null,null,null,null,null,null,null,null,"معلم خبير"]
[7,"محمد7",1,"نقابى","متزوجة",0,null,"معلم أول",512.17999999999995,855.89,null,47.12,47.62,51.21,null,4,2,null,null,null,null,null,null,null,null,null,0,null,null,null,null,null,null,null,null,null,null,1,22.27,13.95,null,null,null,null,null,null,null,null,null,null,null,null,null,null,null,null,null,null,null,null,null,null,null,10,256.08999999999997,256.08999999999997,384.13499999999993,128,256,0,0,0,0,null,null,"الحد الاقصي للمرتب الاساسي",null,null,1370,-50,-0.3,-0.30000000000000004,"عامل تعاقد",null,null,{"$f":"#VALUE!","v":{"$error":"#VALUE!"}},{"$f":"#VALUE!","v":{"$error":"#VALUE!"}},null,null,null,null,null,null,null,null,null,null,null,null,null,null,null,null,null,null,null,null,null,null,null,null,null,null,null,null,null,null,null,null,null,null,null,null,null,null,null,null,null,null,null,null,null,null,null,null,null,null,null,null,null,null,null,"معلم كبير"]
[8,"محمد8",1,"نقابى","متزوجة",0,null,"معلم أول",512.17999999999995,855.89,null,47.12,47.62,51.21,null,4,2,null,null,null,null,null,null,null,null,null,0,null,null,null,null,null,null,null,null,null,null,1,22.27,13.95,null,null,null,null,null,null,null,null,null,null,null,null,null,null,null,null,null,null,null,null,null,null,null,10,256.08999999999997,256.08999999999997,384.13499999999993,128,256,0,0,0,0,null,null,"الاحد الاقصي للجور المتغيرة",null,null,2800,-50,-0.3,-0.30000000000000004,null,null,null,{"$f":"#VALUE!","v":{"$error":"#VALUE!"}},{"$f":"#VALUE!","v":{"$error":"#VALUE!"}},null,null,null,null,null,null,null,null,null,null,null,null,null,null,null,null,null,null,null,null,null,null,null,null,null,null,null,null,null,null,null,null,null,null,null,null,null,null,null,null,null,null,null,null,null,null,null,null,null,null,null,null,null,null,null,"عقد مميز"]
[9,"محمد9",1,"نقابى","متزوجة",0,null,"معلم أول",504.1,843.7,null,46.35,46.85,50.41,null,4,2,null,null,null,null,null,null,null,null,null,0,null,null,null,null,null,null,null,null,null,null,1,22.01,13.4,null,null,null,null,null,null,null,null,null,null,null,null,null,null,null,null,null,null,null,null,null,null,null,10,252.05,252.05,378.07499999999999,126,252,0,0,0,0,null,null,null,null,null,null,-50,-0.3,-0.30000000000000004,null,null,null,{"$f":"#VALUE!","v":{"$error":"#VALUE!"}},{"$f":"#VALUE!","v":{"$error":"#VALUE!"}}]
[10,"محمد10",1,"نقابى","متزوج+2",0,null,"معلم أول",546.57000000000005,906.88,null,50.87,51.37,54.64,null,4,6,null,null,null,null,null,null,null,null,null,0,null,null,null,null,null,null,null,null,null,null,1,47.68,15.35,null,null,null,null,null,null,null,null,null,null,null,null,null,null,null,null,null,null,null,null,null,null,null,10,273.28500000000003,273.28500000000003,409.92750000000007,136,273,0,0,0,0,null,null,null,null,null,null,-50,-0.3,-0.30000000000000004,null,null,null,{"$f":"#VALUE!","v":{"$error":"#VALUE!"}},{"$f":"#VALUE!","v":{"$error":"#VALUE!"}}]
[11,"محمد11",1,"نقابى","متزوجة",0,null,"معلم أول",504.9,844.62,null,46.43,46.93,50.49,null,4,2,null,null,null,null,null,null,null,null,null,0,null,null,null,null,null,null,null,null,null,null,1,22.03,13.75,null,null,null,null,null,null,null,null,null,null,null,null,null,null,null,null,null,null,null,null,null,null,null,10,252.45,252.45,378.67500000000001,126,252,0,0,0,0,null,null,null,null,null,null,-50,-0.3,-0.30000000000000004,null,null,null,{"$f":"#VALUE!","v":{"$error":"#VALUE!"}},{"$f":"#VALUE!","v":{"$error":"#VALUE!"}}]
[12,"محمد12",1,"نقابى","متزوج+2",0,null,"معلم أول",545.64,906.5,null,50.82,51.32,54.56,null,4,6,null,null,null,null,null,null,null,null,null,0,null,null,null,null,null,null,null,null,null,null,1,null,12.5,null,null,null,null,null,null,null,null,null,null,null,null,null,null,null,null,null,null,null,null,null,null,null,10,272.82,272.82,409.23,136,272,0,0,0,0,null,null,null,null,null,null,-50,-0.3,-0.30000000000000004,null,null,null,{"$f":"#VALUE!","v":{"$error":"#VALUE!"}},{"$f":"#VALUE!","v":{"$error":"#VALUE!"}}]
[13,"محمد13",1,"نقابى","متزوجة",0,null,"معلم أول",499.36,836.86,null,45.91,46.41,49.93,null,4,2,null,null,null,null,null,null,null,null,null,0,null,null,null,null,null,null,null,null,null,null,1,21.73,13.85,null,null,null,null,null,null,null,null,null,null,null,null,null,null,null,null,null,null,null,null,null,null,null,10,249.68,249.68,374.52,124,249,0,0,0,0,null,null,null,null,null,null,-50,-0.3,-0.30000000000000004,null,null,null,{"$f":"#VALUE!","v":{"$error":"#VALUE!"}},{"$f":"#VALUE!","v":{"$error":"#VALUE!"}}]
[14,"محمد14",1,"نقابى","متزوجة",0,null,"معلم أول",530.54,883.67,null,48.85,49.35,53.05,null,4,2,null,null,null,null,null,null,null,null,null,0,null,null,null,null,null,null,null,null,null,null,1,22.76,14.95,null,null,null,null,null,null,null,null,null,null,null,null,null,null,null,null,null,null,null,null,null,null,null,10,265.27,265.27,397.90499999999997,132,265,0,0,0,0,null,null,null,null,null,null,-50,-0.3,-0.30000000000000004,null,null,null,{"$f":"#VALUE!","v":{"$error":"#VALUE!"}},{"$f":"#VALUE!","v":{"$error":"#VALUE!"}}]
[15,"محمد15",1,"نقابى","متزوج+2",0,null,"معلم أول",537.54,894.13,null,49.51,50.01,53.75,null,4,6,null,null,null,null,null,null,null,null,null,0,null,null,null,null,null,null,null,null,null,null,1,22.64,15,null,null,null,null,null,null,null,null,null,null,null,null,null,null,null,null,null,null,null,null,null,null,null,10,268.77,268.77,403.15499999999997,134,268,0,0,0,0,null,null,null,null,null,null,-50,-0.3,-0.30000000000000004,null,null,null,{"$f":"#VALUE!","v":{"$error":"#VALUE!"}},{"$f":"#VALUE!","v":{"$error":"#VALUE!"}}]
[16,"محمد16",1,"نقابى","متزوجة",0,null,"معلم أول",395.16,705.15,null,36.6,37.1,39.51,null,4,2,null,null,null,null,null,null,null,null,null,0,null,null,null,null,null,null,null,null,null,null,1,14.76,9.65,null,null,null,null,null,null,null,null,null,null,null,null,null,null,null,null,null,null,null,null,null,null,null,10,197.58,197.58,296.37000000000006,98,197,0,0,0,0,null,null,null,null,null,null,-50,-0.3,-0.30000000000000004,null,null,null,{"$f":"#VALUE!","v":{"$error":"#VALUE!"}},{"$f":"#VALUE!","v":{"$error":"#VALUE!"}}]
[17,"محمد17",1,"نقابى","متزوجة",0,null,"معلم أول",502.5,840.34,null,46.73,47.23,50.25,null,4,2,null,null,null,null,null,null,null,null,null,0,null,null,null,null,null,null,null,null,null,null,1,25.86,13.45,null,null,null,null,null,null,null,null,null,null,null,null,null,null,null,null,null,null,null,null,null,null,null,10,251.25,251.25,376.875,125,251,0,0,0,0,null,null,null,null,null,null,-50,-0.3,-0.30000000000000004,null,null,null,{"$f":"#VALUE!","v":{"$error":"#VALUE!"}},{"$f":"#VALUE!","v":{"$error":"#VALUE!"}}]
[18,"محمد18",1,"نقابى","متزوجة",0,null,"معلم أول",510.68,854.27,null,46.96,47.46,51.06,null,4,2,null,null,null,null,null,null,null,null,null,0,null,null,null,null,null,null,null,null,null,null,1,22.28,13.85,null,null,null,null,null,null,null,null,null,null,null,null,null,null,null,null,null,null,null,null,null,null,null,10,255.34,255.34,383.01,127,255,0,0,0,0,null,null,null,null,null,null,-50,-0.3,-0.30000000000000004,null,null,null,{"$f":"#VALUE!","v":{"$error":"#VALUE!"}},{"$f":"#VALUE!","v":{"$error":"#VALUE!"}}]
[19,"محمد19",1,"نقابى","متزوجة",0,null,"معلم أول",351.96,637.82000000000005,null,32.54,33.04,35.19,null,4,2,null,null,null,null,null,null,null,null,null,0,null,null,null,null,null,null,null,null,null,null,1,10.81,12,null,null,null,null,null,null,null,null,null,null,null,null,null,null,null,null,null,null,null,null,null,null,null,10,175.98,175.98,263.97000000000003,87,175,0,0,0,0,null,null,null,null,null,null,-50,-0.3,-0.30000000000000004,null,null,null,{"$f":"#VALUE!","v":{"$error":"#VALUE!"}},{"$f":"#VALUE!","v":{"$error":"#VALUE!"}}]
[20,"محمد20",1,"نقابى","متزوج+1",0,null,"معلم أول",351.96,652.6,null,32.54,33.04,35.19,null,4,4,null,null,null,null,null,null,null,null,null,0,null,null,null,null,null,null,null,null,null,null,1,10.65,11.15,null,null,null,null,null,null,null,null,null,null,null,null,null,null,null,null,null,null,null,null,null,null,null,10,175.98,175.98,263.97000000000003,87,175,0,0,0,0,null,null,null,null,null,null,-50,-0.3,-0.30000000000000004,null,null,null,{"$f":"#VALUE!","v":{"$error":"#VALUE!"}},{"$f":"#VALUE!","v":{"$error":"#VALUE!"}}]
[21,"محمد21",1,"نقابى","متزوجة",0,null,"معلم أول",356.96,652.6,null,32.54,33.04,35.19,null,4,2,null,null,null,null,null,null,null,null,null,0,null,null,null,null,null,null,null,null,null,null,1,11.55,11.15,null,null,null,null,null,null,null,null,null,null,null,null,null,null,null,null,null,null,null,null,null,null,null,10,178.48,178.48,267.72000000000003,89,178,0,0,0,0,null,null,null,null,null,null,-50,-0.3,-0.30000000000000004,null,null,null,{"$f":"#VALUE!","v":{"$error":"#VALUE!"}},{"$f":"#VALUE!","v":{"$error":"#VALUE!"}}]
[22,"محمد22",1,"نقابى",null,0,null,"معلم أول",257.82,534.28,null,24.5,24.9,25.78,null,4,0,null,null,null,null,null,null,null,null,null,0,null,null,null,null,null,null,null,null,null,null,1,null,9.25,null,null,null,null,null,null,null,null,null,null,null,null,null,null,null,null,null,null,null,null,null,null,null,10,128.91,128.91,193.36500000000001,64,128,0,0,0,0,null,null,null,null,null,null,-50,-0.3,-0.30000000000000004,null,null,null,{"$f":"#VALUE!","v":{"$error":"#VALUE!"}},{"$f":"#VALUE!","v":{"$error":"#VALUE!"}}]
[23,"محمد23",1,"نقابى","متزوج+2",0,null,"معلم أول",246,460.2,null,7.2,4.8,4.8,null,4,6,null,null,null,null,null,null,null,null,null,0,null,null,null,null,null,null,null,null,null,null,1,null,6,null,null,null,null,null,null,null,null,null,null,null,null,null,null,null,null,null,null,null,null,null,null,null,10,123,123,184.5,61,123,0,0,0,0,null,null,null,null,null,null,-50,-0.3,-0.30000000000000004,null,null,null,{"$f":"#VALUE!","v":{"$error":"#VALUE!"}},{"$f":"#VALUE!","v":{"$error":"#VALUE!"}}]
[24,"محمد24",1,"نقابى","متزوجة",0,null,"معلم أول",246,460.2,null,7.2,4.8,4.8,null,4,2,null,null,null,null,null,null,null,null,null,0,null,null,null,null,null,null,null,null,null,null,1,null,6,null,null,null,null,null,null,null,null,null,null,null,null,null,null,null,null,null,null,null,null,null,null,null,10,123,123,184.5,61,123,0,0,0,0,null,null,null,null,null,null,-50,-0.3,-0.30000000000000004,null,null,null,{"$f":"#VALUE!","v":{"$error":"#VALUE!"}},{"$f":"#VALUE!","v":{"$error":"#VALUE!"}}]
[25,"محمد25",1,"نقابى","متزوجة",0,null,"معلم أول",246,460.2,null,7.2,4.8,4.8,null,4,2,null,null,null,null,null,null,null,null,null,0,null,null,null,null,null,null,null,null,null,null,1,null,6,null,null,null,null,null,null,null,null,null,null,null,null,null,null,null,null,null,null,null,null,null,null,null,10,123,123,184.5,61,123,0,0,0,0,null,null,null,null,null,null,-50,-0.3,-0.30000000000000004,null,null,null,{"$f":"#VALUE!","v":{"$error":"#VALUE!"}},{"$f":"#VALUE!","v":{"$error":"#VALUE!"}}]
[26,"محمد26",1,"نقابى","متزوجة",0,null,"معلم أول",246,460.2,null,7.2,4.8,4.8,null,4,2,null,null,null,null,null,null,null,null,null,0,null,null,null,null,null,null,null,null,null,null,1,null,6,null,null,null,null,null,null,null,null,null,null,null,null,null,null,null,null,null,null,null,null,null,null,null,10,123,123,184.5,61,123,0,0,0,0,null,null,null,null,null,null,-50,-0.3,-0.30000000000000004,null,null,null,{"$f":"#VALUE!","v":{"$error":"#VALUE!"}},{"$f":"#VALUE!","v":{"$error":"#VALUE!"}}]
[27,"محمد27",1,"نقابى",null,0,null,null,0,0,null,null,null,null,null,null,0,null,null,null,null,null,null,null,null,null,0,null,null,null,null,null,null,null,null,null,null,null,null,null,null,null,null,null,null,null,null,null,null,null,null,null,null,null,null,null,null,null,null,null,null,null,null,"",0,0,0,0,0,0,0,0,0,null,null,null,null,null,null,-50,-0.3,-0.30000000000000004,null,null,null,{"$f":"#VALUE!","v":{"$error":"#VALUE!"}},{"$f":"#VALUE!","v":{"$error":"#VALUE!"}}]
[28,"محمد28",1,"نقابى","متزوج+2",0,null,"خبير",638.54999999999995,1056.5899999999999,null,59.54,60.04,63.85,null,4,6,null,null,null,null,null,null,null,null,null,0,null,null,null,null,null,null,null,null,null,null,1,51.65,15,null,null,null,null,null,null,null,null,null,null,null,null,null,null,null,null,null,null,null,null,null,null,null,10,319.27499999999998,319.27499999999998,798.1875,159,159,0,0,0,0,null,null,null,null,null,null,-50,-0.3,-0.30000000000000004,null,null,null,{"$f":"#VALUE!","v":{"$error":"#VALUE!"}},{"$f":"#VALUE!","v":{"$error":"#VALUE!"}}]
[29,"محمد29",1,"نقابى","متزوج+2",0,null,"خبير",546.57000000000005,906.88,null,50.87,51.37,54.64,null,4,6,null,null,null,null,null,null,null,null,null,0,null,null,null,null,null,null,null,null,null,null,1,47.68,15.35,null,null,null,null,null,null,null,null,null,null,null,null,null,null,null,null,null,null,null,null,null,null,null,10,273.28500000000003,273.28500000000003,683.21249999999998,136,136,0,0,0,0,null,null,null,null,null,null,-50,-0.3,-0.30000000000000004,null,null,null,{"$f":"#VALUE!","v":{"$error":"#VALUE!"}},{"$f":"#VALUE!","v":{"$error":"#VALUE!"}}]
[30,"محمد30",1,"نقابى","متزوج+2",0,null,"خبير",574.79999999999995,951.55,null,53.54,54.04,57.48,null,4,6,null,null,null,null,null,null,null,null,null,0,null,null,null,null,null,null,null,null,null,null,1,null,14.95,null,null,null,null,null,null,null,null,null,null,null,null,null,null,null,null,null,null,null,null,null,null,null,10,287.39999999999998,287.39999999999998,718.5,143,143,0,0,0,0,null,null,null,null,null,null,-50,-0.3,-0.30000000000000004,null,null,null,{"$f":"#VALUE!","v":{"$error":"#VALUE!"}},{"$f":"#VALUE!","v":{"$error":"#VALUE!"}}]
[31,"محمد31",1,"نقابى","متزوج+2",0,null,"خبير",537.55999999999995,892.61,null,50.03,50.53,53.75,null,4,6,null,null,null,null,null,null,null,null,null,0,null,null,null,null,null,null,null,null,null,null,1,38.49,14.35,null,null,null,null,null,null,null,null,null,null,null,null,null,null,null,null,null,null,null,null,null,null,null,10,268.77999999999997,268.77999999999997,671.95,134,134,0,0,0,0,null,null,null,null,null,null,-50,-0.3,-0.30000000000000004,null,null,null,{"$f":"#VALUE!","v":{"$error":"#VALUE!"}},{"$f":"#VALUE!","v":{"$error":"#VALUE!"}}]
[32,"محمد32",1,"نقابى","متزوجة",0,null,"خبير",498.56,835.37,null,45.83,46.33,49.85,null,4,2,null,null,null,null,null,null,null,null,null,0,null,null,null,null,null,null,null,null,null,null,1,21.71,13.85,null,null,null,null,null,null,null,null,null,null,null,null,null,null,null,null,null,null,null,null,null,null,null,10,249.28,249.28,623.20000000000005,124,124,0,0,0,0,null,null,null,null,null,null,-50,-0.3,-0.30000000000000004,null,null,null,{"$f":"#VALUE!","v":{"$error":"#VALUE!"}},{"$f":"#VALUE!","v":{"$error":"#VALUE!"}}]
[33,"محمد33",1,"نقابى","متزوج+2",0,null,"خبير",566.52,938.62,null,52.79,53.29,56.69,null,4,6,null,null,null,null,null,null,null,null,null,0,null,null,null,null,null,null,null,null,null,null,1,26.73,14.95,null,null,null,null,null,null,null,null,null,null,4,null,null,null,null,null,null,null,null,null,null,null,null,10,283.26,283.26,708.15,141,141,0,0,0,0,null,null,null,null,null,null,-50,-0.3,-0.30000000000000004,null,null,null,{"$f":"#VALUE!","v":{"$error":"#VALUE!"}},{"$f":"#VALUE!","v":{"$error":"#VALUE!"}}]
[34,"محمد34",1,"نقابى","متزوجة",0,null,"خبير",514.52,860.87,null,47.4,47.9,51.45,null,4,2,null,null,null,null,null,null,null,null,null,0,null,null,null,null,null,null,null,null,null,null,1,null,13.85,null,null,null,null,null,null,null,null,null,null,null,null,null,null,null,null,null,null,null,null,null,null,null,10,257.26,257.26,643.15,128,128,0,0,0,0,null,null,null,null,null,null,-50,-0.3,-0.30000000000000004,null,null,null,{"$f":"#VALUE!","v":{"$error":"#VALUE!"}},{"$f":"#VALUE!","v":{"$error":"#VALUE!"}}]
[35,"محمد35",1,"نقابى",null,0,null,"خبير",null,0,null,null,null,null,null,null,0,null,null,null,null,null,null,null,null,null,0,null,null,null,null,null,null,null,null,null,null,null,null,null,null,null,null,null,null,null,null,null,null,null,null,null,null,null,null,null,null,null,null,null,null,null,null,10,0,0,0,0,0,0,0,0,0,null,null,null,null,null,null,-50,-0.3,-0.30000000000000004,null,null,null,{"$f":"#VALUE!","v":{"$error":"#VALUE!"}},{"$f":"#VALUE!","v":{"$error":"#VALUE!"}}]
[36,"محمد36",1,"نقابى",null,0,null,"خبير",null,0,null,null,null,null,null,null,0,null,null,null,null,null,null,null,null,null,0,null,null,null,null,null,null,null,null,null,null,null,null,null,null,null,null,null,null,null,null,null,null,null,null,null,null,null,null,null,null,null,null,null,null,null,null,10,0,0,0,0,0,0,0,0,0,null,null,null,null,null,null,-50,-0.3,-0.30000000000000004,null,null,null,{"$f":"#VALUE!","v":{"$error":"#VALUE!"}},{"$f":"#VALUE!","v":{"$error":"#VALUE!"}}]
[37,"محمد37",1,"نقابى",null,0,null,"خبير",null,0,null,null,null,null,null,null,0,null,null,null,null,null,null,null,null,null,0,null,null,null,null,null,null,null,null,null,null,null,null,null,null,null,null,null,null,null,null,null,null,null,null,null,null,null,null,null,null,null,null,null,null,null,null,10,0,0,0,0,0,0,0,0,0,null,null,null,null,null,null,-50,-0.3,-0.30000000000000004,null,null,null,{"$f":"#VALUE!","v":{"$error":"#VALUE!"}},{"$f":"#VALUE!","v":{"$error":"#VALUE!"}}]
[38,"محمد38",1,"نقابى",null,0,null,"خبير",null,0,null,null,null,null,null,null,0,null,null,null,null,null,null,null,null,null,0,null,null,null,null,null,null,null,null,null,null,null,null,null,null,null,null,null,null,null,null,null,null,null,null,null,null,null,null,null,null,null,null,null,null,null,null,10,0,0,0,0,0,0,0,0,0,null,null,null,null,null,null,-50,-0.3,-0.30000000000000004,null,null,null,{"$f":"#VALUE!","v":{"$error":"#VALUE!"}},{"$f":"#VALUE!","v":{"$error":"#VALUE!"}}]
[39,"محمد39",0,null,null,0,null,"خبير",null,0,null,null,null,null,null,null,0,null,null,null,null,null,null,null,null,null,0,null,null,null,null,null,null,null,null,null,null,null,null,null,null,null,null,null,null,null,null,null,null,null,null,null,null,null,null,null,null,null,null,null,null,null,null,10,0,0,0,0,0,0,0,0,0,null,null,null,null,null,null,-50,-0.3,-0.30000000000000004,null,null,null,{"$f":"#VALUE!","v":{"$error":"#VALUE!"}},{"$f":"#VALUE!","v":{"$error":"#VALUE!"}}]
[40,"محمد40",0,null,null,0,null,"عامل تعاقد",150,367.5,null,15,15,15,null,null,0,null,null,null,null,null,null,null,null,null,225,null,null,null,null,null,null,null,null,null,null,null,null,6,null,null,null,null,null,null,null,null,null,null,null,null,null,null,null,null,null,null,null,null,null,null,null,0,0,0,0,37,0,137,75,0,225,null,null,null,null,null,null,175,1.05,1.05,null,null,null,{"$f":"#VALUE!","v":{"$error":"#VALUE!"}},{"$f":"#VALUE!","v":{"$error":"#VALUE!"}}]
[41,null,0,null,null,0,null,null,null,null,null,null,null,null,null,null,0,null,null,null,null,null,null,null,null,null,0,null,null,null,null,null,null,null,null,null,null,null,null,null,null,null,null,null,null,null,null,null,null,null,null,null,null,null,null,null,null,null,null,null,null,null,null,"",0,0,0,0,0,0,0,0,0,null,null,null,null,null,null,0,0,0,null,null,null,{"$f":"#VALUE!","v":{"$error":"#VALUE!"}},{"$f":"#VALUE!","v":{"$error":"#VALUE!"}}]
[42,null,0,null,null,0,null,null,null,null,null,null,null,null,null,null,0,null,null,null,null,null,null,null,null,null,0,null,null,null,null,null,null,null,null,null,null,null,null,null,null,null,null,null,null,null,null,null,null,null,null,null,null,null,null,null,null,null,null,null,null,null,null,"",0,0,0,0,0,0,0,0,0,null,null,null,null,null,null,0,0,0,null,null,null,{"$f":"#VALUE!","v":{"$error":"#VALUE!"}},{"$f":"#VALUE!","v":{"$error":"#VALUE!"}}]
[43,null,0,null,null,0,null,null,null,null,null,null,null,null,null,null,0,null,null,null,null,null,null,null,null,null,0,null,null,null,null,null,null,null,null,null,null,null,null,null,null,null,null,null,null,null,null,null,null,null,null,null,null,null,null,null,null,null,null,null,null,null,null,"",0,0,0,0,0,0,0,0,0,null,null,null,null,null,null,0,0,0,null,null,null,{"$f":"#VALUE!","v":{"$error":"#VALUE!"}},{"$f":"#VALUE!","v":{"$error":"#VALUE!"}}]
[44,null,0,null,null,0,null,null,null,null,null,null,null,null,null,null,0,null,null,null,null,null,null,null,null,null,0,null,null,null,null,null,null,null,null,null,null,null,null,null,null,null,null,null,null,null,null,null,null,null,null,null,null,null,null,null,null,null,null,null,null,null,null,"",0,0,0,0,0,0,0,0,0,null,null,null,null,null,null,0,0,0,null,null,null,{"$f":"#VALUE!","v":{"$error":"#VALUE!"}},{"$f":"#VALUE!","v":{"$error":"#VALUE!"}}]
[45,null,0,null,null,0,null,null,null,null,null,null,null,null,null,null,0,null,null,null,null,null,null,null,null,null,0,null,null,null,null,null,null,null,null,null,null,null,null,null,null,null,null,null,null,null,null,null,null,null,null,null,null,null,null,null,null,null,null,null,null,null,null,"",0,0,0,0,0,0,0,0,0,null,null,null,null,null,null,0,0,0,null,null,null,{"$f":"#VALUE!","v":{"$error":"#VALUE!"}},{"$f":"#VALUE!","v":{"$error":"#VALUE!"}}]
[46,null,0,null,null,0,null,null,null,null,null,null,null,null,null,null,0,null,null,null,null,null,null,null,null,null,0,null,null,null,null,null,null,null,null,null,null,null,null,null,null,null,null,null,null,null,null,null,null,null,null,null,null,null,null,null,null,null,null,null,null,null,null,"",0,0,0,0,0,0,0,0,0,null,null,null,null,null,null,0,0,0,null,null,null,{"$f":"#VALUE!","v":{"$error":"#VALUE!"}},{"$f":"#VALUE!","v":{"$error":"#VALUE!"}}]
[47,null,0,null,null,0,null,null,null,null,null,null,null,null,null,null,0,null,null,null,null,null,null,null,null,null,0,null,null,null,null,null,null,null,null,null,null,null,null,null,null,null,null,null,null,null,null,null,null,null,null,null,null,null,null,null,null,null,null,null,null,null,null,"",0,0,0,0,0,0,0,0,0,null,null,null,null,null,null,0,0,0,null,null,null,{"$f":"#VALUE!","v":{"$error":"#VALUE!"}},{"$f":"#VALUE!","v":{"$error":"#VALUE!"}}]
[48,null,0,null,null,0,null,null,null,null,null,null,null,null,null,null,0,null,null,null,null,null,null,null,null,null,0,null,null,null,null,null,null,null,null,null,null,null,null,null,null,null,null,null,null,null,null,null,null,null,null,null,null,null,null,null,null,null,null,null,null,null,null,"",0,0,0,0,0,0,0,0,0,null,null,null,null,null,null,0,0,0,null,null,null,{"$f":"#VALUE!","v":{"$error":"#VALUE!"}},{"$f":"#VALUE!","v":{"$error":"#VALUE!"}}]
[49,null,0,null,null,0,null,null,null,null,null,null,null,null,null,null,0,null,null,null,null,null,null,null,null,null,0,null,null,null,null,null,null,null,null,null,null,null,null,null,null,null,null,null,null,null,null,null,null,null,null,null,null,null,null,null,null,null,null,null,null,null,null,"",0,0,0,0,0,0,0,0,0,null,null,null,null,null,null,0,0,0,null,null,null,{"$f":"#VALUE!","v":{"$error":"#VALUE!"}},{"$f":"#VALUE!","v":{"$error":"#VALUE!"}}]
[50,null,0,null,null,0,null,null,null,null,null,null,null,null,null,null,0,null,null,null,null,null,null,null,null,null,0,null,null,null,null,null,null,null,null,null,null,null,null,null,null,null,null,null,null,null,null,null,null,null,null,null,null,null,null,null,null,null,null,null,null,null,null,"",0,0,0,0,0,0,0,0,0,null,null,null,null,null,null,0,0,0,null,null,null,{"$f":"#VALUE!","v":{"$error":"#VALUE!"}},{"$f":"#VALUE!","v":{"$error":"#VALUE!"}}]
[51,null,0,null,null,0,null,null,null,null,null,null,null,null,null,null,0,null,null,null,null,null,null,null,null,null,0,null,null,null,null,null,null,null,null,null,null,null,null,null,null,null,null,null,null,null,null,null,null,null,null,null,null,null,null,null,null,null,null,null,null,null,null,"",0,0,0,0,0,0,0,0,0,null,null,null,null,null,null,0,0,0,null,null,null,{"$f":"#VALUE!","v":{"$error":"#VALUE!"}},{"$f":"#VALUE!","v":{"$error":"#VALUE!"}}]
[52,null,0,null,null,0,null,null,null,null,null,null,null,null,null,null,0,null,null,null,null,null,null,null,null,null,0,null,null,null,null,null,null,null,null,null,null,null,null,null,null,null,null,null,null,null,null,null,null,null,null,null,null,null,null,null,null,null,null,null,null,null,null,"",0,0,0,0,0,0,0,0,0,null,null,null,null,null,null,0,0,0,null,null,null,{"$f":"#VALUE!","v":{"$error":"#VALUE!"}},{"$f":"#VALUE!","v":{"$error":"#VALUE!"}}]
[53,null,0,null,null,0,null,null,null,null,null,null,null,null,null,null,0,null,null,null,null,null,null,null,null,null,0,null,null,null,null,null,null,null,null,null,null,null,null,null,null,null,null,null,null,null,null,null,null,null,null,null,null,null,null,null,null,null,null,null,null,null,null,"",0,0,0,0,0,0,0,0,0,null,null,null,null,null,null,0,0,0,null,null,null,{"$f":"#VALUE!","v":{"$error":"#VALUE!"}},{"$f":"#VALUE!","v":{"$error":"#VALUE!"}}]
[54,null,0,null,null,0,null,null,null,null,null,null,null,null,null,null,0,null,null,null,null,null,null,null,null,null,0,null,null,null,null,null,null,null,null,null,null,null,null,null,null,null,null,null,null,null,null,null,null,null,null,null,null,null,null,null,null,null,null,null,null,null,null,"",0,0,0,0,0,0,0,0,0,null,null,null,null,null,null,0,0,0,null,null,null,{"$f":"#VALUE!","v":{"$error":"#VALUE!"}},{"$f":"#VALUE!","v":{"$error":"#VALUE!"}}]
[55,null,0,null,null,0,null,null,null,null,null,null,null,null,null,null,0,null,null,null,null,null,null,null,null,null,0,null,null,null,null,null,null,null,null,null,null,null,null,null,null,null,null,null,null,null,null,null,null,null,null,null,null,null,null,null,null,null,null,null,null,null,null,"",0,0,0,0,0,0,0,0,0,null,null,null,null,null,null,0,0,0,null,null,null,{"$f":"#VALUE!","v":{"$error":"#VALUE!"}},{"$f":"#VALUE!","v":{"$error":"#VALUE!"}}]
[56,null,0,null,null,0,null,null,null,null,null,null,null,null,null,null,0,null,null,null,null,null,null,null,null,null,0,null,null,null,null,null,null,null,null,null,null,null,null,null,null,null,null,null,null,null,null,null,null,null,null,null,null,null,null,null,null,null,null,null,null,null,null,"",0,0,0,0,0,0,0,0,0,null,null,null,null,null,null,0,0,0,null,null,null,{"$f":"#VALUE!","v":{"$error":"#VALUE!"}},{"$f":"#VALUE!","v":{"$error":"#VALUE!"}}]
[57,null,0,null,null,0,null,null,null,null,null,null,null,null,null,null,0,null,null,null,null,null,null,null,null,null,0,null,null,null,null,null,null,null,null,null,null,null,null,null,null,null,null,null,null,null,null,null,null,null,null,null,null,null,null,null,null,null,null,null,null,null,null,"",0,0,0,0,0,0,0,0,0,null,null,null,null,null,null,0,0,0,null,null,null,{"$f":"#VALUE!","v":{"$error":"#VALUE!"}},{"$f":"#VALUE!","v":{"$error":"#VALUE!"}}]
[58,null,0,null,null,0,null,null,null,null,null,null,null,null,null,null,0,null,null,null,null,null,null,null,null,null,0,null,null,null,null,null,null,null,null,null,null,null,null,null,null,null,null,null,null,null,null,null,null,null,null,null,null,null,null,null,null,null,null,null,null,null,null,"",0,0,0,0,0,0,0,0,0,null,null,null,null,null,null,0,0,0,null,null,null,{"$f":"#VALUE!","v":{"$error":"#VALUE!"}},{"$f":"#VALUE!","v":{"$error":"#VALUE!"}}]
[59,null,0,null,null,0,null,null,null,null,null,null,null,null,null,null,0,null,null,null,null,null,null,null,null,null,0,null,null,null,null,null,null,null,null,null,null,null,null,null,null,null,null,null,null,null,null,null,null,null,null,null,null,null,null,null,null,null,null,null,null,null,null,"",0,0,0,0,0,0,0,0,0,null,null,null,null,null,null,0,0,0,null,null,null,{"$f":"#VALUE!","v":{"$error":"#VALUE!"}},{"$f":"#VALUE!","v":{"$error":"#VALUE!"}}]
[60,null,0,null,null,0,null,null,null,null,null,null,null,null,null,null,0,null,null,null,null,null,null,null,null,null,0,null,null,null,null,null,null,null,null,null,null,null,null,null,null,null,null,null,null,null,null,null,null,null,null,null,null,null,null,null,null,null,null,null,null,null,null,"",0,0,0,0,0,0,0,0,0,null,null,null,null,null,null,0,0,0,null,null,null,{"$f":"#VALUE!","v":{"$error":"#VALUE!"}},{"$f":"#VALUE!","v":{"$error":"#VALUE!"}}]
[61,null,0,null,null,0,null,null,null,null,null,null,null,null,null,null,0,null,null,null,null,null,null,null,null,null,0,null,null,null,null,null,null,null,null,null,null,null,null,null,null,null,null,null,null,null,null,null,null,null,null,null,null,null,null,null,null,null,null,null,null,null,null,"",0,0,0,0,0,0,0,0,0,null,null,null,null,null,null,0,0,0,null,null,null,{"$f":"#VALUE!","v":{"$error":"#VALUE!"}},{"$f":"#VALUE!","v":{"$error":"#VALUE!"}}]
[62,null,0,null,null,0,null,null,null,null,null,null,null,null,null,null,0,null,null,null,null,null,null,null,null,null,0,null,null,null,null,null,null,null,null,null,null,null,null,null,null,null,null,null,null,null,null,null,null,null,null,null,null,null,null,null,null,null,null,null,null,null,null,"",0,0,0,0,0,0,0,0,0,null,null,null,null,null,null,0,0,0,null,null,null,{"$f":"#VALUE!","v":{"$error":"#VALUE!"}},{"$f":"#VALUE!","v":{"$error":"#VALUE!"}}]
[63,null,0,null,null,0,null,null,null,null,null,null,null,null,null,null,0,null,null,null,null,null,null,null,null,null,0,null,null,null,null,null,null,null,null,null,null,null,null,null,null,null,null,null,null,null,null,null,null,null,null,null,null,null,null,null,null,null,null,null,null,null,null,"",0,0,0,0,0,0,0,0,0,null,null,null,null,null,null,0,0,0,null,null,null,{"$f":"#VALUE!","v":{"$error":"#VALUE!"}},{"$f":"#VALUE!","v":{"$error":"#VALUE!"}}]
[64,null,0,null,null,0,null,null,null,null,null,null,null,null,null,null,0,null,null,null,null,null,null,null,null,null,0,null,null,null,null,null,null,null,null,null,null,null,null,null,null,null,null,null,null,null,null,null,null,null,null,null,null,null,null,null,null,null,null,null,null,null,null,"",0,0,0,0,0,0,0,0,0,null,null,null,null,null,null,0,0,0,null,null,null,{"$f":"#VALUE!","v":{"$error":"#VALUE!"}},{"$f":"#VALUE!","v":{"$error":"#VALUE!"}}]
[65,null,0,null,null,0,null,null,null,null,null,null,null,null,null,null,0,null,null,null,null,null,null,null,null,null,0,null,null,null,null,null,null,null,null,null,null,null,null,null,null,null,null,null,null,null,null,null,null,null,null,null,null,null,null,null,null,null,null,null,null,null,null,"",0,0,0,{"$f":"INT(IF(H68=\"عامل تعاقد\",I68*25/100,IF(H68=\"معلم مساعد\",I68*25/100,IF(H68=\"معلم\",I68*25/100,IF(H68=\"معلم أول\",I68*25/100,IF(H68=\"معلم أول أ\",I68*25/100,IF(H68=\"خبير\",I68*25/100,IF(H68=\"كبير\",I68*25/100,))))))))","v":0},{"$f":"INT(IF(H68=\"إدارى\",J68*0/100,IF(H68=\"معلم مساعد\",I68*125/100,IF(H68=\"معلم\",I68*75/100,IF(H68=\"معلم أول\",I68*50/100,IF(H68=\"معلم أول أ\",I68*25/100,IF(H68=\"خبير\",I68*25/100,IF(H68=\"كبير\",I68*25/100,))))))))","v":0},{"$f":"INT(IF(H68=\"عامل تعاقد\",I68*0.9166,IF(H68=\"معلم تعاقد\",I68*0.9166,0)))","v":0},{"$f":"INT(IF(H68=\"عامل تعاقد\",I68*0.5,IF(H68=\"معلم تعاقد\",I68*0.5,0)))","v":0},{"$f":"INT(IF(F68=1,I68*0.3333,0))","v":0},{"$f":"IF(H68=\"عامل تعاقد\",225,IF(H68=\"معلم تعاقد\",300,0))","v":0},null,null,null,null,null,null,{"$f":"IF($B68>0,(SUM(R68:AD68)-50),0)","v":0},{"$f":"IF(CB68<250,(CB68*0.006),IF(CB68<500,(CB68*0.0065),IF(CB68<1000,(CB68*0.007),IF(CB68<5000,(CB68*0.0075),IF(CB68>5000,(CB68*0.008),\" \" )))))","v":0},0,null,null,null,{"$f":"#VALUE!","v":{"$error":"#VALUE!"}},{"$f":"#VALUE!","v":{"$error":"#VALUE!"}}]
[66,null,0,null,null,0,null,null,null,null,null,null,null,null,null,null,{"$f":"IF(E69=\"متزوج\",2,IF(E69=\"متزوج+1\",4,IF(E69=\"متزوج+2\",6,IF(E69=\"متزوجة\",2,0))))","v":0},null,null,null,null,null,null,null,null,null,{"$f":"BU69","v":0},null,null,null,null,null,null,null,null,null,null,null,null,null,null,null,null,null,null,null,null,null,null,null,null,null,null,null,null,null,null,null,null,null,null,null,null,{"$f":"IF(H69=\"معلم مساعد\",10,IF(H69=\"معلم تعاقد\",10,IF(H69=\"معلم\",10,IF(H69=\"معلم أول\",10,IF(H69=\"معلم أول أ\",10,IF(H69=\"خبير\",10,IF(H69=\"كبير\",10,IF(H69=\"عامل تعاقد\",0,\"\"))))))))","v":""},{"$f":"IF(H69=\"عقد مميز\",I69*0/100,IF(H69=\"معلم تعاقد\",I69*0/100,IF(H69=\"معلم\",I69*50/100,IF(H69=\"معلم أول\",I69*50/100,IF(H69=\"معلم أول أ\",I69*50/100,IF(H69=\"خبير\",I69*50/100,IF(H69=\"كبير\",I69*50/100,)))))))","v":0},{"$f":"IF(H69=\"معلم مساعد\",I69*50/100,IF(H69=\"عامل تعاقد\",I69*0/100,IF(H69=\"معلم\",I69*50/100,IF(H69=\"معلم أول\",I69*50/100,IF(H69=\"معلم أول أ\",I69*50/100,IF(H69=\"خبير\",I69*50/100,IF(H69=\"كبير\",I69*50/100,)))))))","v":0},0,0,0,0,0,0,0,null,null,null,null,null,null,0,0,{"$f":"CEILING($CC69,0.05)","v":0},null,null,null,{"$f":"#VALUE!","v":{"$error":"#VALUE!"}},{"$f":"#VALUE!","v":{"$error":"#VALUE!"}}]
[67,null,0,null,null,0,null,null,null,null,null,null,null,null,null,null,0,null,null,null,null,null,null,null,null,null,0,null,null,null,null,null,null,null,null,null,null,null,null,null,null,null,null,null,null,null,null,null,null,null,null,null,null,null,null,null,null,null,null,null,null,null,null,"",0,0,{"$f":"IF(H70=\"إدارى\",I70*0,IF(H70=\"معلم مساعد\",I70*0/100,IF(H70=\"معلم\",I70*50/100,IF(H70=\"معلم أول\",I70*75/100,IF(H70=\"معلم أول أ\",I70*100/100,IF(H70=\"خبير\",I70*125/100,IF(H70=\"كبير\",I70*150/100,)))))))","v":0},0,0,0,0,0,0,null,null,null,null,null,null,0,0,0,null,null,null,{"$f":"#VALUE!","v":{"$error":"#VALUE!"}},{"$f":"#VALUE!","v":{"$error":"#VALUE!"}}]
[68,null,0,null,null,0,null,null,null,null,null,null,null,null,null,null,0,null,null,null,null,null,null,null,null,null,0,null,null,null,null,null,null,null,null,null,null,null,null,null,null,null,null,null,null,null,null,null,null,null,null,null,null,null,null,null,null,null,null,null,null,null,null,"",0,0,0,0,0,0,0,0,0,null,null,null,null,null,null,0,0,0,null,null,null,{"$f":"#VALUE!","v":{"$error":"#VALUE!"}},{"$f":"#VALUE!","v":{"$error":"#VALUE!"}}]
[69,null,{"$f":"IF(D72=\"نقابى\",1,IF(D72=\"حالة خاصة\",2,0))","v":0},null,null,0,null,null,null,null,null,null,null,null,null,null,0,null,null,null,null,null,null,null,null,null,0,null,null,null,null,null,null,null,null,null,null,null,null,null,null,null,null,null,null,null,null,null,null,null,null,null,null,null,null,null,null,null,null,null,null,null,null,"",0,0,0,0,0,0,0,0,0,null,null,null,null,null,null,0,0,0,null,null,null,{"$f":"#VALUE!","v":{"$error":"#VALUE!"}},{"$f":"#VALUE!","v":{"$error":"#VALUE!"}}]
[70,null,0,null,null,0,null,null,null,null,null,null,null,null,null,null,0,null,null,null,null,null,null,null,null,null,0,null,null,null,null,null,null,null,null,null,null,null,null,null,null,null,null,null,null,null,null,null,null,null,null,null,null,null,null,null,null,null,null,null,null,null,null,"",0,0,0,0,0,0,0,0,0,null,null,null,null,null,null,0,0,0,null,null,null,{"$f":"#VALUE!","v":{"$error":"#VALUE!"}},{"$f":"#VALUE!","v":{"$error":"#VALUE!"}}]
[71,null,0,null,null,0,null,null,null,null,null,null,null,null,null,null,0,null,null,null,null,null,null,null,null,null,0,null,null,null,null,null,null,null,null,null,null,null,null,null,null,null,null,null,null,null,null,null,null,null,null,null,null,null,null,null,null,null,null,null,null,null,null,"",0,0,0,0,0,0,0,0,0,null,null,null,null,null,null,0,0,0,null,null,null,{"$f":"#VALUE!","v":{"$error":"#VALUE!"}},{"$f":"#VALUE!","v":{"$error":"#VALUE!"}}]
[72,null,0,null,null,0,null,null,null,null,null,null,null,null,null,null,0,null,null,null,null,null,null,null,null,null,0,null,null,null,null,null,null,null,null,null,null,null,null,null,null,null,null,null,null,null,null,null,null,null,null,null,null,null,null,null,null,null,null,null,null,null,null,"",0,0,0,0,0,0,0,0,0,null,null,null,null,null,null,0,0,0,null,null,null,{"$f":"#VALUE!","v":{"$error":"#VALUE!"}},{"$f":"#VALUE!","v":{"$error":"#VALUE!"}}]
[73,null,0,null,null,0,null,null,null,null,null,null,null,null,null,null,0,null,null,null,null,null,null,null,null,null,0,null,null,null,null,null,null,null,null,null,null,null,null,null,null,null,null,null,null,null,null,null,null,null,null,null,null,null,null,null,null,null,null,null,null,null,null,"",0,0,0,0,0,0,0,0,0,null,null,null,null,null,null,0,0,0,null,null,null,{"$f":"#VALUE!","v":{"$error":"#VALUE!"}},{"$f":"#VALUE!","v":{"$error":"#VALUE!"}}]
[74,null,0,null,null,0,null,null,null,null,null,null,null,null,null,null,0,null,null,null,null,null,null,null,null,null,0,null,null,null,null,null,null,null,null,null,null,null,null,null,null,null,null,null,null,null,null,null,null,null,null,null,null,null,null,null,null,null,null,null,null,null,null,"",0,0,0,0,0,0,0,0,0,null,null,null,null,null,null,0,0,0,null,null,null,{"$f":"#VALUE!","v":{"$error":"#VALUE!"}},{"$f":"#VALUE!","v":{"$error":"#VALUE!"}}]
[75,null,0,null,null,0,null,null,null,null,null,null,null,null,null,null,0,null,null,null,null,null,null,null,null,null,0,null,null,null,null,null,null,null,null,null,null,null,null,null,null,null,null,null,null,null,null,null,null,null,null,null,null,null,null,null,null,null,null,null,null,null,null,"",0,0,0,0,0,0,0,0,0,null,null,null,null,null,null,0,0,0,null,null,null,{"$f":"#VALUE!","v":{"$error":"#VALUE!"}},{"$f":"#VALUE!","v":{"$error":"#VALUE!"}}]
[76,null,0,null,null,0,null,null,null,null,null,null,null,null,null,null,0,null,null,null,null,null,null,null,null,null,0,null,null,null,null,null,null,null,null,null,null,null,null,null,null,null,null,null,null,null,null,null,null,null,null,null,null,null,null,null,null,null,null,null,null,null,null,"",0,0,0,0,0,0,0,0,0,null,null,null,null,null,null,0,0,0,null,null,null,{"$f":"#VALUE!","v":{"$error":"#VALUE!"}},{"$f":"#VALUE!","v":{"$error":"#VALUE!"}}]
[77,null,0,null,null,0,null,null,null,null,null,null,null,null,null,null,0,null,null,null,null,null,null,null,null,null,0,null,null,null,null,null,null,null,null,null,null,null,null,null,null,null,null,null,null,null,null,null,null,null,null,null,null,null,null,null,null,null,null,null,null,null,null,"",0,0,0,0,0,0,0,0,0,null,null,null,null,null,null,0,0,0,null,null,null,{"$f":"#VALUE!","v":{"$error":"#VALUE!"}},{"$f":"#VALUE!","v":{"$error":"#VALUE!"}}]
[78,null,0,null,null,0,null,null,null,null,null,null,null,null,null,null,0,null,null,null,null,null,null,null,null,null,0,null,null,null,null,null,null,null,null,null,null,null,null,null,null,null,null,null,null,null,null,null,null,null,null,null,null,null,null,null,null,null,null,null,null,null,null,"",0,0,0,0,0,0,0,0,0,null,null,null,null,null,null,0,0,0,null,null,null,{"$f":"#VALUE!","v":{"$error":"#VALUE!"}},{"$f":"#VALUE!","v":{"$error":"#VALUE!"}}]
[79,null,0,null,null,0,null,null,null,null,null,null,null,null,null,null,0,null,null,null,null,null,null,null,null,null,0,null,null,null,null,null,null,null,null,null,null,null,null,null,null,null,null,null,null,null,null,null,null,null,null,null,null,null,null,null,null,null,null,null,null,null,null,"",0,0,0,0,0,0,0,0,0,null,null,null,null,null,null,0,0,0,null,null,null,{"$f":"#VALUE!","v":{"$error":"#VALUE!"}},{"$f":"#VALUE!","v":{"$error":"#VALUE!"}}]
[80,null,0,null,null,0,null,null,null,null,null,null,null,null,null,null,0,null,null,null,null,null,null,null,null,null,0,null,null,null,null,null,null,null,null,null,null,null,null,null,null,null,null,null,null,null,null,null,null,null,null,null,null,null,null,null,null,null,null,null,null,null,null,"",0,0,0,0,0,0,0,0,0,null,null,null,null,null,null,0,0,0,null,null,null,{"$f":"#VALUE!","v":{"$error":"#VALUE!"}},{"$f":"#VALUE!","v":{"$error":"#VALUE!"}}]
[81,null,0,null,null,0,null,null,null,null,null,null,null,null,null,null,0,null,null,null,null,null,null,null,null,null,0,null,null,null,null,null,null,null,null,null,null,null,null,null,null,null,null,null,null,null,null,null,null,null,null,null,null,null,null,null,null,null,null,null,null,null,null,"",0,0,0,0,0,0,0,0,0,null,null,null,null,null,null,0,0,0,null,null,null,{"$f":"#VALUE!","v":{"$error":"#VALUE!"}},{"$f":"#VALUE!","v":{"$error":"#VALUE!"}}]
[82,null,0,null,null,0,null,null,null,null,null,null,null,null,null,null,0,null,null,null,null,null,null,null,null,null,0,null,null,null,null,null,null,null,null,null,null,null,null,null,null,null,null,null,null,null,null,null,null,null,null,null,null,null,null,null,null,null,null,null,null,null,null,"",0,0,0,0,0,0,0,0,0,null,null,null,null,null,null,0,0,0,null,null,null,{"$f":"#VALUE!","v":{"$error":"#VALUE!"}},{"$f":"#VALUE!","v":{"$error":"#VALUE!"}}]
[83,null,0,null,null,0,null,null,null,null,null,null,null,null,null,null,0,null,null,null,null,null,null,null,null,null,0,null,null,null,null,null,null,null,null,null,null,null,null,null,null,null,null,null,null,null,null,null,null,null,null,null,null,null,null,null,null,null,null,null,null,null,null,"",0,0,0,0,0,0,0,0,0,null,null,null,null,null,null,0,0,0,null,null,null,{"$f":"#VALUE!","v":{"$error":"#VALUE!"}},{"$f":"#VALUE!","v":{"$error":"#VALUE!"}}]
[84,null,0,null,null,0,null,null,null,null,null,null,null,null,null,null,0,null,null,null,null,null,null,null,null,null,0,null,null,null,null,null,null,null,null,null,null,null,null,null,null,null,null,null,null,null,null,null,null,null,null,null,null,null,null,null,null,null,null,null,null,null,null,"",0,0,0,0,0,0,0,0,0,null,null,null,null,null,null,0,0,0,null,null,null,{"$f":"#VALUE!","v":{"$error":"#VALUE!"}},{"$f":"#VALUE!","v":{"$error":"#VALUE!"}}]
[85,null,0,null,null,0,null,null,null,null,null,null,null,null,null,null,0,null,null,null,null,null,null,null,null,null,0,null,null,null,null,null,null,null,null,null,null,null,null,null,null,null,null,null,null,null,null,null,null,null,null,null,null,null,null,null,null,null,null,null,null,null,null,"",0,0,0,0,0,0,0,0,0,null,null,null,null,null,null,0,0,0,null,null,null,{"$f":"#VALUE!","v":{"$error":"#VALUE!"}},{"$f":"#VALUE!","v":{"$error":"#VALUE!"}}]
[83,null,0,null,null,0,null,null,null,null,null,null,null,null,null,null,0,null,null,null,null,null,null,null,null,null,0,null,null,null,null,null,null,null,null,null,null,null,null,null,null,null,null,null,null,null,null,null,null,null,null,null,null,null,null,null,null,null,null,null,null,null,null,"",0,0,0,0,0,0,0,0,0,null,null,null,null,null,null,0,0,0,null,null,null,{"$f":"#VALUE!","v":{"$error":"#VALUE!"}},{"$f":"#VALUE!","v":{"$error":"#VALUE!"}}]
[84,null,0,null,null,0,null,null,null,null,null,null,null,null,null,null,0,null,null,null,null,null,null,null,null,null,0,null,null,null,null,null,null,null,null,null,null,null,null,null,null,null,null,null,null,null,null,null,null,null,null,null,null,null,null,null,null,null,null,null,null,null,null,"",0,0,0,0,0,0,0,0,0,null,null,null,null,null,null,0,0,0,null,null,null,{"$f":"#VALUE!","v":{"$error":"#VALUE!"}},{"$f":"#VALUE!","v":{"$error":"#VALUE!"}}]
[88,null,0,null,null,0,null,null,null,null,null,null,null,null,null,null,0,null,null,null,null,null,null,null,null,null,0,null,null,null,null,null,null,null,null,null,null,null,null,null,null,null,null,null,null,null,null,null,null,null,null,null,null,null,null,null,null,null,null,null,null,null,null,"",0,0,0,0,0,0,0,0,0,null,null,null,null,null,null,0,0,0,null,null,null,{"$f":"#VALUE!","v":{"$error":"#VALUE!"}},{"$f":"#VALUE!","v":{"$error":"#VALUE!"}}]
[89,null,0,null,null,0,null,null,null,null,null,null,null,null,null,null,0,null,null,null,null,null,null,null,null,null,0,null,null,null,null,null,null,null,null,null,null,null,null,null,null,null,null,null,null,null,null,null,null,null,null,null,null,null,null,null,null,null,null,null,null,null,null,"",0,0,0,0,0,0,0,0,0,null,null,null,null,null,null,0,0,0,null,null,null,{"$f":"#VALUE!","v":{"$error":"#VALUE!"}},{"$f":"#VALUE!","v":{"$error":"#VALUE!"}}]
[90,null,0,null,null,0,null,null,null,null,null,null,null,null,null,null,0,null,null,null,null,null,null,null,null,null,0,null,null,null,null,null,null,null,null,null,null,null,null,null,null,null,null,null,null,null,null,null,null,null,null,null,null,null,null,null,null,null,null,null,null,null,null,"",0,0,0,0,0,0,0,0,0,null,null,null,null,null,null,0,0,0,null,null,null,{"$f":"#VALUE!","v":{"$error":"#VALUE!"}},{"$f":"#VALUE!","v":{"$error":"#VALUE!"}}]
[91,null,0,null,null,0,null,null,null,null,null,null,null,null,null,null,0,null,null,null,null,null,null,null,null,null,0,null,null,null,null,null,null,null,null,null,null,null,null,null,null,null,null,null,null,null,null,null,null,null,null,null,null,null,null,null,null,null,null,null,null,null,null,"",0,0,0,0,0,0,0,0,0,null,null,null,null,null,null,0,0,0,null,null,null,{"$f":"#VALUE!","v":{"$error":"#VALUE!"}},{"$f":"#VALUE!","v":{"$error":"#VALUE!"}}]
[92,null,0,null,null,0,null,null,null,null,null,null,null,null,null,null,0,null,null,null,null,null,null,null,null,null,0,null,null,null,null,null,null,null,null,null,null,null,null,null,null,null,null,null,null,null,null,null,null,null,null,null,null,null,null,null,null,null,null,null,null,null,null,"",0,0,0,0,0,0,0,0,0,null,null,null,null,null,null,0,0,0,null,null,null,{"$f":"#VALUE!","v":{"$error":"#VALUE!"}},{"$f":"#VALUE!","v":{"$error":"#VALUE!"}}]
[93,null,0,null,null,0,null,null,null,null,null,null,null,null,null,null,0,null,null,null,null,null,null,null,null,null,0,null,null,null,null,null,null,null,null,null,null,null,null,null,null,null,null,null,null,null,null,null,null,null,null,null,null,null,null,null,null,null,null,null,null,null,null,"",0,0,0,0,0,0,0,0,0,null,null,null,null,null,null,0,0,0,null,null,null,{"$f":"#VALUE!","v":{"$error":"#VALUE!"}},{"$f":"#VALUE!","v":{"$error":"#VALUE!"}}]
[94,null,0,null,null,0,null,null,null,null,null,null,null,null,null,null,0,null,null,null,null,null,null,null,null,null,0,null,null,null,null,null,null,null,null,null,null,null,null,null,null,null,null,null,null,null,null,null,null,null,null,null,null,null,null,null,null,null,null,null,null,null,null,"",0,0,0,0,0,0,0,0,0,null,null,null,null,null,null,0,0,0,null,null,null,{"$f":"#VALUE!","v":{"$error":"#VALUE!"}},{"$f":"#VALUE!","v":{"$error":"#VALUE!"}}]
[95,null,0,null,null,0,null,null,null,null,null,null,null,null,null,null,0,null,null,null,null,null,null,null,null,null,0,null,null,null,null,null,null,null,null,null,null,null,null,null,null,null,null,null,null,null,null,null,null,null,null,null,null,null,null,null,null,null,null,null,null,null,null,"",0,0,0,0,0,0,0,0,0,null,null,null,null,null,null,0,0,0,null,null,null,{"$f":"#VALUE!","v":{"$error":"#VALUE!"}},{"$f":"#VALUE!","v":{"$error":"#VALUE!"}}]
[96,null,0,null,null,0,null,null,null,null,null,null,null,null,null,null,0,null,null,null,null,null,null,null,null,null,0,null,null,null,null,null,null,null,null,null,null,null,null,null,null,null,null,null,null,null,null,null,null,null,null,null,null,null,null,null,null,null,null,null,null,null,null,"",0,0,0,0,0,0,0,0,0,null,null,null,null,null,null,0,0,0,null,null,null,{"$f":"#VALUE!","v":{"$error":"#VALUE!"}},{"$f":"#VALUE!","v":{"$error":"#VALUE!"}}]
[97,null,0,null,null,0,null,null,null,null,null,null,null,null,null,null,0,null,null,null,null,null,null,null,null,null,0,null,null,null,null,null,null,null,null,null,null,null,null,null,null,null,null,null,null,null,null,null,null,null,null,null,null,null,null,null,null,null,null,null,null,null,null,"",0,0,0,0,0,0,0,0,0,null,null,null,null,null,null,0,0,0,null,null,null,{"$f":"#VALUE!","v":{"$error":"#VALUE!"}},{"$f":"#VALUE!","v":{"$error":"#VALUE!"}}]
[98,null,0,null,null,0,null,null,null,null,null,null,null,null,null,null,0,null,null,null,null,null,null,null,null,null,0,null,null,null,null,null,null,null,null,null,null,null,null,null,null,null,null,null,null,null,null,null,null,null,null,null,null,null,null,null,null,null,null,null,null,null,null,"",0,0,0,0,0,0,0,0,0,null,null,null,null,null,null,0,0,0,null,null,null,{"$f":"#VALUE!","v":{"$error":"#VALUE!"}},{"$f":"#VALUE!","v":{"$error":"#VALUE!"}}]
[99,null,0,null,null,0,null,null,null,null,null,null,null,null,null,null,0,null,null,null,null,null,null,null,null,null,0,null,null,null,null,null,null,null,null,null,null,null,null,null,null,null,null,null,null,null,null,null,null,null,null,null,null,null,null,null,null,null,null,null,null,null,null,"",0,0,0,0,0,0,0,0,0,null,null,null,null,null,null,0,0,0,null,null,null,{"$f":"#VALUE!","v":{"$error":"#VALUE!"}},{"$f":"#VALUE!","v":{"$error":"#VALUE!"}}]
[100,null,0,null,null,0,null,null,null,null,null,null,null,null,null,null,0,null,null,null,null,null,null,null,null,null,0,null,null,null,null,null,null,null,null,null,null,null,null,null,null,null,null,null,null,null,null,null,null,null,null,null,null,null,null,null,null,null,null,null,null,null,null,"",0,0,0,0,0,0,0,0,0,null,null,null,null,null,null,0,0,0,null,null,null,{"$f":"#VALUE!","v":{"$error":"#VALUE!"}},{"$f":"#VALUE!","v":{"$error":"#VALUE!"}}]
[null,null,0,null,null,0,null,null,null,null,null,null,null,null,null,null,0,null,null,null,null,null,null,null,null,null,0,null,null,null,null,null,null,null,null,null,null,null,null,null,null,null,null,null,null,null,null,null,null,null,null,null,null,null,null,null,null,null,null,null,null,null,null,"",0,0,0,0,0,0,0,0,0,null,null,null,null,null,null,0,0,0,null,null,null,{"$f":"#VALUE!","v":{"$error":"#VALUE!"}},{"$f":"#VALUE!","v":{"$error":"#VALUE!"}}]
[null,null,0,null,null,0,null,null,null,null,null,null,null,null,null,null,0,null,null,null,null,null,null,null,null,null,0,null,null,null,null,null,null,null,null,null,null,null,null,null,null,null,null,null,null,null,null,null,null,null,null,null,null,null,null,null,null,null,null,null,null,null,null,"",0,0,0,0,0,0,0,0,0,null,null,null,null,null,null,0,0,0,null,null,null,{"$f":"#VALUE!","v":{"$error":"#VALUE!"}},{"$f":"#VALUE!","v":{"$error":"#VALUE!"}}]
[null,null,0,null,null,0,null,null,null,null,null,null,null,null,null,null,0,null,null,null,null,null,null,null,null,null,0,null,null,null,null,null,null,null,null,null,null,null,null,null,null,null,null,null,null,null,null,null,null,null,null,null,null,null,null,null,null,null,null,null,null,null,null,"",0,0,0,0,0,0,0,0,0,null,null,null,null,null,null,0,0,0,null,null,null,{"$f":"#VALUE!","v":{"$error":"#VALUE!"}},{"$f":"#VALUE!","v":{"$error":"#VALUE!"}}]
[null,null,0,null,null,0,null,null,null,null,null,null,null,null,null,null,0,null,null,null,null,null,null,null,null,null,0,null,null,null,null,null,null,null,null,null,null,null,null,null,null,null,null,null,null,null,null,null,null,null,null,null,null,null,null,null,null,null,null,null,null,null,null,"",0,0,0,0,0,0,0,0,0,null,null,null,null,null,null,0,0,0,null,null,null,{"$f":"#VALUE!","v":{"$error":"#VALUE!"}},{"$f":"#VALUE!","v":{"$error":"#VALUE!"}}]
[null,null,0,null,null,0,null,null,null,null,null,null,null,null,null,null,0,null,null,null,null,null,null,null,null,null,0,null,null,null,null,null,null,null,null,null,null,null,null,null,null,null,null,null,null,null,null,null,null,null,null,null,null,null,null,null,null,null,null,null,null,null,null,"",0,0,0,0,0,0,0,0,0,null,null,null,null,null,null,0,0,0,null,null,null,{"$f":"#VALUE!","v":{"$error":"#VALUE!"}},{"$f":"#VALUE!","v":{"$error":"#VALUE!"}}]
[null,null,0,null,null,0,null,null,null,null,null,null,null,null,null,null,0,null,null,null,null,null,null,null,null,null,0,null,null,null,null,null,null,null,null,null,null,null,null,null,null,null,null,null,null,null,null,null,null,null,null,null,null,null,null,null,null,null,null,null,null,null,null,"",0,0,0,0,0,0,0,0,0,null,null,null,null,null,null,0,0,0,null,null,null,{"$f":"#VALUE!","v":{"$error":"#VALUE!"}},{"$f":"#VALUE!","v":{"$error":"#VALUE!"}}]
[null,null,0,null,null,0,null,null,null,null,null,null,null,null,null,null,0,null,null,null,null,null,null,null,null,null,0,null,null,null,null,null,null,null,null,null,null,null,null,null,null,null,null,null,null,null,null,null,null,null,null,null,null,null,null,null,null,null,null,null,null,null,null,"",0,0,0,0,0,0,0,0,0,null,null,null,null,null,null,0,0,0,null,null,null,{"$f":"#VALUE!","v":{"$error":"#VALUE!"}},{"$f":"#VALUE!","v":{"$error":"#VALUE!"}}]
[null,null,0,null,null,0,null,null,null,null,null,null,null,null,null,null,0,null,null,null,null,null,null,null,null,null,0,null,null,null,null,null,null,null,null,null,null,null,null,null,null,null,null,null,null,null,null,null,null,null,null,null,null,null,null,null,null,null,null,null,null,null,null,"",0,0,0,0,0,0,0,0,0,null,null,null,null,null,null,0,0,0,null,null,null,{"$f":"#VALUE!","v":{"$error":"#VALUE!"}},{"$f":"#VALUE!","v":{"$error":"#VALUE!"}}]
[null,null,0,null,null,0,null,null,null,null,null,null,null,null,null,null,0,null,null,null,null,null,null,null,null,null,0,null,null,null,null,null,null,null,null,null,null,null,null,null,null,null,null,null,null,null,null,null,null,null,null,null,null,null,null,null,null,null,null,null,null,null,null,"",0,0,0,0,0,0,0,0,0,null,null,null,null,null,null,0,0,0,null,null,null,{"$f":"#VALUE!","v":{"$error":"#VALUE!"}},{"$f":"#VALUE!","v":{"$error":"#VALUE!"}}]
[null,null,0,null,null,0,null,null,null,null,null,null,null,null,null,null,0,null,null,null,null,null,null,null,null,null,0,null,null,null,null,null,null,null,null,null,null,null,null,null,null,null,null,null,null,null,null,null,null,null,null,null,null,null,null,null,null,null,null,null,null,null,null,"",0,0,0,0,0,0,0,0,0,null,null,null,null,null,null,0,0,0,null,null,null,{"$f":"#VALUE!","v":{"$error":"#VALUE!"}},{"$f":"#VALUE!","v":{"$error":"#VALUE!"}}]
[null,null,0,null,null,0,null,null,null,null,null,null,null,null,null,null,0,null,null,null,null,null,null,null,null,null,0,null,null,null,null,null,null,null,null,null,null,null,null,null,null,null,null,null,null,null,null,null,null,null,null,null,null,null,null,null,null,null,null,null,null,null,null,"",0,0,0,0,0,0,0,0,0,null,null,null,null,null,null,0,0,0,null,null,null,{"$f":"#VALUE!","v":{"$error":"#VALUE!"}},{"$f":"#VALUE!","v":{"$error":"#VALUE!"}}]
[null,null,0,null,null,0,null,null,null,null,null,null,null,null,null,null,0,null,null,null,null,null,null,null,null,null,0,null,null,null,null,null,null,null,null,null,null,null,null,null,null,null,null,null,null,null,null,null,null,null,null,null,null,null,null,null,null,null,null,null,null,null,null,"",0,0,0,0,0,0,0,0,0,null,null,null,null,null,null,0,0,0,null,null,null,{"$f":"#VALUE!","v":{"$error":"#VALUE!"}},{"$f":"#VALUE!","v":{"$error":"#VALUE!"}}]
[null,null,0,null,null,0,null,null,null,null,null,null,null,null,null,null,0,null,null,null,null,null,null,null,null,null,0,null,null,null,null,null,null,null,null,null,null,null,null,null,null,null,null,null,null,null,null,null,null,null,null,null,null,null,null,null,null,null,null,null,null,null,null,"",0,0,0,0,0,0,0,0,0,null,null,null,null,null,null,0,0,0,null,null,null,{"$f":"#VALUE!","v":{"$error":"#VALUE!"}},{"$f":"#VALUE!","v":{"$error":"#VALUE!"}}]
[null,null,0,"غير نقابى",null,0,null,null,null,null,null,null,null,null,null,null,0,null,null,null,null,null,null,null,null,null,0,null,null,null,null,null,null,null,null,null,null,null,null,null,null,null,null,null,null,null,null,null,null,null,null,null,null,null,null,null,null,null,null,null,null,null,null,"",0,0,0,0,0,0,0,0,0,null,null,null,null,null,null,0,0,0,null,null,null,{"$f":"#VALUE!","v":{"$error":"#VALUE!"}},{"$f":"#VALUE!","v":{"$error":"#VALUE!"}}]
[null,null,0,null,null,0,null,null,null,null,null,null,null,null,null,null,0,null,null,null,null,null,null,null,null,null,0,null,null,null,null,null,null,null,null,null,null,null,null,null,null,null,null,null,null,null,null,null,null,null,null,null,null,null,null,null,null,null,null,null,null,null,null,"",0,0,0,0,0,0,0,0,0,null,null,null,null,null,null,0,0,0,null,null,null,{"$f":"#VALUE!","v":{"$error":"#VALUE!"}},{"$f":"#VALUE!","v":{"$error":"#VALUE!"}}]
[null,null,0,null,null,0,null,null,null,null,null,null,null,null,null,null,0,null,null,null,null,null,null,null,null,null,0,null,null,null,null,null,null,null,null,null,null,null,null,null,null,null,null,null,null,null,null,null,null,null,null,null,null,null,null,null,null,null,null,null,null,null,null,"",0,0,0,0,0,0,0,0,0,null,null,null,null,null,null,0,0,0,null,null,null,{"$f":"#VALUE!","v":{"$error":"#VALUE!"}},{"$f":"#VALUE!","v":{"$error":"#VALUE!"}}]
[null,null,0,null,null,0,null,null,null,null,null,null,null,null,null,null,0,null,null,null,null,null,null,null,null,null,0,null,null,null,null,null,null,null,null,null,null,null,null,null,null,null,null,null,null,null,null,null,null,null,null,null,null,null,null,null,null,null,null,null,null,null,null,"",0,0,0,0,0,0,0,0,0,null,null,null,null,null,null,0,0,0,null,null,null,{"$f":"#VALUE!","v":{"$error":"#VALUE!"}},{"$f":"#VALUE!","v":{"$error":"#VALUE!"}}]
[null,null,0,null,null,0,null,null,null,null,null,null,null,null,null,null,0,null,null,null,null,null,null,null,null,null,0,null,null,null,null,null,null,null,null,null,null,null,null,null,null,null,null,null,null,null,null,null,null,null,null,null,null,null,null,null,null,null,null,null,null,null,null,"",0,0,0,0,0,0,0,0,0,null,null,null,null,null,null,0,0,0,null,null,null,{"$f":"#VALUE!","v":{"$error":"#VALUE!"}},{"$f":"#VALUE!","v":{"$error":"#VALUE!"}}]
[null,null,0,null,null,0,null,null,null,null,null,null,null,null,null,null,0,null,null,null,null,null,null,null,null,null,0,null,null,null,null,null,null,null,null,null,null,null,null,null,null,null,null,null,null,null,null,null,null,null,null,null,null,null,null,null,null,null,null,null,null,null,null,"",0,0,0,0,0,0,0,0,0,null,null,null,null,null,null,0,0,0,null,null,null,{"$f":"#VALUE!","v":{"$error":"#VALUE!"}},{"$f":"#VALUE!","v":{"$error":"#VALUE!"}}]
[null,null,0,null,null,0,null,null,null,null,null,null,null,null,null,null,0,null,null,null,null,null,null,null,null,null,0,null,null,null,null,null,null,null,null,null,null,null,null,null,null,null,null,null,null,null,null,null,null,null,null,null,null,null,null,null,null,null,null,null,null,null,null,"",0,0,0,0,0,0,0,0,0,null,null,null,null,null,null,0,0,0,null,null,null,{"$f":"#VALUE!","v":{"$error":"#VALUE!"}},{"$f":"#VALUE!","v":{"$error":"#VALUE!"}}]
[null,null,0,null,null,0,null,null,null,null,null,null,null,null,null,null,0,null,null,null,null,null,null,null,null,null,0,null,null,null,null,null,null,null,null,null,null,null,null,null,null,null,null,null,null,null,null,null,null,null,null,null,null,null,null,null,null,null,null,null,null,null,null,"",0,0,0,0,0,0,0,0,0,null,null,null,null,null,null,0,0,0,null,null,null,{"$f":"#VALUE!","v":{"$error":"#VALUE!"}},{"$f":"#VALUE!","v":{"$error":"#VALUE!"}}]
[null,null,0,null,null,0,null,null,null,null,null,null,null,null,null,null,0,null,null,null,null,null,null,null,null,null,0,null,null,null,null,null,null,null,null,null,null,null,null,null,null,null,null,null,null,null,null,null,null,null,null,null,null,null,null,null,null,null,null,null,null,null,null,"",0,0,0,0,0,0,0,0,0,null,null,null,null,null,null,0,0,0,null,null,null,{"$f":"#VALUE!","v":{"$error":"#VALUE!"}},{"$f":"#VALUE!","v":{"$error":"#VALUE!"}}]
[null,null,0,null,null,0,null,null,null,null,null,null,null,null,null,null,0,null,null,null,null,null,null,null,null,null,0,null,null,null,null,null,null,null,null,null,null,null,null,null,null,null,null,null,null,null,null,null,null,null,null,null,null,null,null,null,null,null,null,null,null,null,null,"",0,0,0,0,0,0,0,0,0,null,null,null,null,null,null,0,0,0,null,null,null,{"$f":"#VALUE!","v":{"$error":"#VALUE!"}},{"$f":"#VALUE!","v":{"$error":"#VALUE!"}}]
[null,null,0,null,null,0,null,null,null,null,null,null,null,null,null,null,0,null,null,null,null,null,null,null,null,null,0,null,null,null,null,null,null,null,null,null,null,null,null,null,null,null,null,null,null,null,null,null,null,null,null,null,null,null,null,null,null,null,null,null,null,null,null,"",0,0,0,0,0,0,0,0,0,null,null,null,null,null,null,0,0,0,null,null,null,{"$f":"#VALUE!","v":{"$error":"#VALUE!"}},{"$f":"#VALUE!","v":{"$error":"#VALUE!"}}]
[null,null,0,null,null,0,null,null,null,null,null,null,null,null,null,null,0,null,null,null,null,null,null,null,null,null,0,null,null,null,null,null,null,null,null,null,null,null,null,null,null,null,null,null,null,null,null,null,null,null,null,null,null,null,null,null,null,null,null,null,null,null,null,"",0,0,0,0,0,0,0,0,0,null,null,null,null,null,null,0,0,0,null,null,null,{"$f":"#VALUE!","v":{"$error":"#VALUE!"}},{"$f":"#VALUE!","v":{"$error":"#VALUE!"}}]
[null,null,0,null,null,0,null,null,null,null,null,null,null,null,null,null,0,null,null,null,null,null,null,null,null,null,0,null,null,null,null,null,null,null,null,null,null,null,null,null,null,null,null,null,null,null,null,null,null,null,null,null,null,null,null,null,null,null,null,null,null,null,null,"",0,0,0,0,0,0,0,0,0,null,null,null,null,null,null,0,0,0,null,null,null,{"$f":"#VALUE!","v":{"$error":"#VALUE!"}},{"$f":"#VALUE!","v":{"$error":"#VALUE!"}}]
[null,null,0,null,null,0,null,null,null,null,null,null,null,null,null,null,0,null,null,null,null,null,null,null,null,null,0,null,null,null,null,null,null,null,null,null,null,null,null,null,null,null,null,null,null,null,null,null,null,null,null,null,null,null,null,null,null,null,null,null,null,null,null,"",0,0,0,0,0,0,0,0,0,null,null,null,null,null,null,0,0,0,null,null,null,{"$f":"#VALUE!","v":{"$error":"#VALUE!"}},{"$f":"#VALUE!","v":{"$error":"#VALUE!"}}]
[null,null,0,null,null,0,null,null,null,null,null,null,null,null,null,null,0,null,null,null,null,null,null,null,null,null,0,null,null,null,null,null,null,null,null,null,null,null,null,null,null,null,null,null,null,null,null,null,null,null,null,null,null,null,null,null,null,null,null,null,null,null,null,"",0,0,0,0,0,0,0,0,0,null,null,null,null,null,null,0,0,0,null,null,null,{"$f":"#VALUE!","v":{"$error":"#VALUE!"}},{"$f":"#VALUE!","v":{"$error":"#VALUE!"}}]
[null,null,0,null,null,0,null,null,null,null,null,null,null,null,null,null,0,null,null,null,null,null,null,null,null,null,0,null,null,null,null,null,null,null,null,null,null,null,null,null,null,null,null,null,null,null,null,null,null,null,null,null,null,null,null,null,null,null,null,null,null,null,null,"",0,0,0,{"$f":"INT(IF(H132=\"عامل تعاقد\",I132*25/100,IF(H132=\"معلم مساعد\",I132*25/100,IF(H132=\"معلم\",I132*25/100,IF(H132=\"معلم أول\",I132*25/100,IF(H132=\"معلم أول أ\",I132*25/100,IF(H132=\"خبير\",I132*25/100,IF(H132=\"كبير\",I132*25/100,))))))))","v":0},{"$f":"INT(IF(H132=\"إدارى\",J132*0/100,IF(H132=\"معلم مساعد\",I132*125/100,IF(H132=\"معلم\",I132*75/100,IF(H132=\"معلم أول\",I132*50/100,IF(H132=\"معلم أول أ\",I132*25/100,IF(H132=\"خبير\",I132*25/100,IF(H132=\"كبير\",I132*25/100,))))))))","v":0},{"$f":"INT(IF(H132=\"عامل تعاقد\",I132*0.9166,IF(H132=\"معلم تعاقد\",I132*0.9166,0)))","v":0},{"$f":"INT(IF(H132=\"عامل تعاقد\",I132*0.5,IF(H132=\"معلم تعاقد\",I132*0.5,0)))","v":0},{"$f":"INT(IF(F132=1,I132*0.3333,0))","v":0},{"$f":"IF(H132=\"عامل تعاقد\",225,IF(H132=\"معلم تعاقد\",300,0))","v":0},null,null,null,null,null,null,{"$f":"IF($B132>0,(SUM(R132:AD132)-50),0)","v":0},{"$f":"IF(CB132<250,(CB132*0.006),IF(CB132<500,(CB132*0.0065),IF(CB132<1000,(CB132*0.007),IF(CB132<5000,(CB132*0.0075),IF(CB132>5000,(CB132*0.008),\" \" )))))","v":0},0,null,null,null,{"$f":"#VALUE!","v":{"$error":"#VALUE!"}},{"$f":"#VALUE!","v":{"$error":"#VALUE!"}}]
[null,null,0,null,null,0,null,null,null,null,null,null,null,null,null,null,{"$f":"IF(E133=\"متزوج\",2,IF(E133=\"متزوج+1\",4,IF(E133=\"متزوج+2\",6,IF(E133=\"متزوجة\",2,0))))","v":0},null,null,null,null,null,null,null,null,null,{"$f":"BU133","v":0},null,null,null,null,null,null,null,null,null,null,null,null,null,null,null,null,null,null,null,null,null,null,null,null,null,null,null,null,null,null,null,null,null,null,null,null,{"$f":"IF(H133=\"معلم مساعد\",10,IF(H133=\"معلم تعاقد\",10,IF(H133=\"معلم\",10,IF(H133=\"معلم أول\",10,IF(H133=\"معلم أول أ\",10,IF(H133=\"خبير\",10,IF(H133=\"كبير\",10,IF(H133=\"عامل تعاقد\",0,\"\"))))))))","v":""},{"$f":"IF(H133=\"عقد مميز\",I133*0/100,IF(H133=\"معلم تعاقد\",I133*0/100,IF(H133=\"معلم\",I133*50/100,IF(H133=\"معلم أول\",I133*50/100,IF(H133=\"معلم أول أ\",I133*50/100,IF(H133=\"خبير\",I133*50/100,IF(H133=\"كبير\",I133*50/100,)))))))","v":0},{"$f":"IF(H133=\"معلم مساعد\",I133*50/100,IF(H133=\"عامل تعاقد\",I133*0/100,IF(H133=\"معلم\",I133*50/100,IF(H133=\"معلم أول\",I133*50/100,IF(H133=\"معلم أول أ\",I133*50/100,IF(H133=\"خبير\",I133*50/100,IF(H133=\"كبير\",I133*50/100,)))))))","v":0},0,0,0,0,0,0,0,null,null,null,null,null,null,0,0,{"$f":"CEILING($CC133,0.05)","v":0},null,null,null,{"$f":"#VALUE!","v":{"$error":"#VALUE!"}},{"$f":"#VALUE!","v":{"$error":"#VALUE!"}}]
[null,null,0,null,null,0,null,null,null,null,null,null,null,null,null,null,0,null,null,null,null,null,null,null,null,null,0,null,null,null,null,null,null,null,null,null,null,null,null,null,null,null,null,null,null,null,null,null,null,null,null,null,null,null,null,null,null,null,null,null,null,null,null,"",0,0,{"$f":"IF(H134=\"إدارى\",I134*0,IF(H134=\"معلم مساعد\",I134*0/100,IF(H134=\"معلم\",I134*50/100,IF(H134=\"معلم أول\",I134*75/100,IF(H134=\"معلم أول أ\",I134*100/100,IF(H134=\"خبير\",I134*125/100,IF(H134=\"كبير\",I134*150/100,)))))))","v":0},0,0,0,0,0,0,null,null,null,null,null,null,0,0,0,null,null,null,{"$f":"#VALUE!","v":{"$error":"#VALUE!"}},{"$f":"#VALUE!","v":{"$error":"#VALUE!"}}]
[null,null,0,null,null,0,null,null,null,null,null,null,null,null,null,null,0,null,null,null,null,null,null,null,null,null,0,null,null,null,null,null,null,null,null,null,null,null,null,null,null,null,null,null,null,null,null,null,null,null,null,null,null,null,null,null,null,null,null,null,null,null,null,"",0,0,0,0,0,0,0,0,0,null,null,null,null,null,null,0,0,0,null,null,null,{"$f":"#VALUE!","v":{"$error":"#VALUE!"}},{"$f":"#VALUE!","v":{"$error":"#VALUE!"}}]
[null,null,{"$f":"IF(D136=\"نقابى\",1,IF(D136=\"حالة خاصة\",2,0))","v":0},null,null,0,null,null,null,null,null,null,null,null,null,null,0,null,null,null,null,null,null,null,null,null,0,null,null,null,null,null,null,null,null,null,null,null,null,null,null,null,null,null,null,null,null,null,null,null,null,null,null,null,null,null,null,null,null,null,null,null,null,"",0,0,0,0,0,0,0,0,0,null,null,null,null,null,null,0,0,0,null,null,null,{"$f":"#VALUE!","v":{"$error":"#VALUE!"}},{"$f":"#VALUE!","v":{"$error":"#VALUE!"}}]
[null,null,0,null,null,0,null,null,null,null,null,null,null,null,null,null,0,null,null,null,null,null,null,null,null,null,0,null,null,null,null,null,null,null,null,null,null,null,null,null,null,null,null,null,null,null,null,null,null,null,null,null,null,null,null,null,null,null,null,null,null,null,null,"",0,0,0,0,0,0,0,0,0,null,null,null,null,null,null,0,0,0,null,null,null,{"$f":"#VALUE!","v":{"$error":"#VALUE!"}},{"$f":"#VALUE!","v":{"$error":"#VALUE!"}}]
[null,null,0,null,null,0,null,null,null,null,null,null,null,null,null,null,0,null,null,null,null,null,null,null,null,null,0,null,null,null,null,null,null,null,null,null,null,null,null,null,null,null,null,null,null,null,null,null,null,null,null,null,null,null,null,null,null,null,null,null,null,null,null,"",0,0,0,0,0,0,0,0,0,null,null,null,null,null,null,0,0,0,null,null,null,{"$f":"#VALUE!","v":{"$error":"#VALUE!"}},{"$f":"#VALUE!","v":{"$error":"#VALUE!"}}]
[null,null,0,null,null,0,null,null,null,null,null,null,null,null,null,null,0,null,null,null,null,null,null,null,null,null,0,null,null,null,null,null,null,null,null,null,null,null,null,null,null,null,null,null,null,null,null,null,null,null,null,null,null,null,null,null,null,null,null,null,null,null,null,"",0,0,0,0,0,0,0,0,0,null,null,null,null,null,null,0,0,0,null,null,null,{"$f":"#VALUE!","v":{"$error":"#VALUE!"}},{"$f":"#VALUE!","v":{"$error":"#VALUE!"}}]
[null,null,0,null,null,0,null,null,null,null,null,null,null,null,null,null,0,null,null,null,null,null,null,null,null,null,0,null,null,null,null,null,null,null,null,null,null,null,null,null,null,null,null,null,null,null,null,null,null,null,null,null,null,null,null,null,null,null,null,null,null,null,null,"",0,0,0,0,0,0,0,0,0,null,null,null,null,null,null,0,0,0,null,null,null,{"$f":"#VALUE!","v":{"$error":"#VALUE!"}},{"$f":"#VALUE!","v":{"$error":"#VALUE!"}}]
[null,null,0,null,null,0,null,null,null,null,null,null,null,null,null,null,0,null,null,null,null,null,null,null,null,null,0,null,null,null,null,null,null,null,null,null,null,null,null,null,null,null,null,null,null,null,null,null,null,null,null,null,null,null,null,null,null,null,null,null,null,null,null,"",0,0,0,0,0,0,0,0,0,null,null,null,null,null,null,0,0,0,null,null,null,{"$f":"#VALUE!","v":{"$error":"#VALUE!"}},{"$f":"#VALUE!","v":{"$error":"#VALUE!"}}]
[null,null,0,null,null,0,null,null,null,null,null,null,null,null,null,null,0,null,null,null,null,null,null,null,null,null,0,null,null,null,null,null,null,null,null,null,null,null,null,null,null,null,null,null,null,null,null,null,null,null,null,null,null,null,null,null,null,null,null,null,null,null,null,"",0,0,0,0,0,0,0,0,0,null,null,null,null,null,null,0,0,0,null,null,null,{"$f":"#VALUE!","v":{"$error":"#VALUE!"}},{"$f":"#VALUE!","v":{"$error":"#VALUE!"}}]
[null,null,0,null,null,0,null,null,null,null,null,null,null,null,null,null,0,null,null,null,null,null,null,null,null,null,0,null,null,null,null,null,null,null,null,null,null,null,null,null,null,null,null,null,null,null,null,null,null,null,null,null,null,null,null,null,null,null,null,null,null,null,null,"",0,0,0,0,0,0,0,0,0,null,null,null,null,null,null,0,0,0,null,null,null,{"$f":"#VALUE!","v":{"$error":"#VALUE!"}},{"$f":"#VALUE!","v":{"$error":"#VALUE!"}}]
[null,null,0,null,null,0,null,null,null,null,null,null,null,null,null,null,0,null,null,null,null,null,null,null,null,null,0,null,null,null,null,null,null,null,null,null,null,null,null,null,null,null,null,null,null,null,null,null,null,null,null,null,null,null,null,null,null,null,null,null,null,null,null,"",0,0,0,0,0,0,0,0,0,null,null,null,null,null,null,0,0,0,null,null,null,{"$f":"#VALUE!","v":{"$error":"#VALUE!"}},{"$f":"#VALUE!","v":{"$error":"#VALUE!"}}]
[null,null,0,null,null,0,null,null,null,null,null,null,null,null,null,null,0,null,null,null,null,null,null,null,null,null,0,null,null,null,null,null,null,null,null,null,null,null,null,null,null,null,null,null,null,null,null,null,null,null,null,null,null,null,null,null,null,null,null,null,null,null,null,"",0,0,0,0,0,0,0,0,0,null,null,null,null,null,null,0,0,0,null,null,null,{"$f":"#VALUE!","v":{"$error":"#VALUE!"}},{"$f":"#VALUE!","v":{"$error":"#VALUE!"}}]
[null,null,0,null,null,0,null,null,null,null,null,null,null,null,null,null,0,null,null,null,null,null,null,null,null,null,0,null,null,null,null,null,null,null,null,null,null,null,null,null,null,null,null,null,null,null,null,null,null,null,null,null,null,null,null,null,null,null,null,null,null,null,null,"",0,0,0,0,0,0,0,0,0,null,null,null,null,null,null,0,0,0,null,null,null,{"$f":"#VALUE!","v":{"$error":"#VALUE!"}},{"$f":"#VALUE!","v":{"$error":"#VALUE!"}}]
[null,null,0,null,null,0,null,null,null,null,null,null,null,null,null,null,0,null,null,null,null,null,null,null,null,null,0,null,null,null,null,null,null,null,null,null,null,null,null,null,null,null,null,null,null,null,null,null,null,null,null,null,null,null,null,null,null,null,null,null,null,null,null,"",0,0,0,0,0,0,0,0,0,null,null,null,null,null,null,0,0,0,null,null,null,{"$f":"#VALUE!","v":{"$error":"#VALUE!"}},{"$f":"#VALUE!","v":{"$error":"#VALUE!"}}]
[null,null,0,null,null,0,null,null,null,null,null,null,null,null,null,null,0,null,null,null,null,null,null,null,null,null,0,null,null,null,null,null,null,null,null,null,null,null,null,null,null,null,null,null,null,null,null,null,null,null,null,null,null,null,null,null,null,null,null,null,null,null,null,"",0,0,0,0,0,0,0,0,0,null,null,null,null,null,null,0,0,0,null,null,null,{"$f":"#VALUE!","v":{"$error":"#VALUE!"}},{"$f":"#VALUE!","v":{"$error":"#VALUE!"}}]
[null,null,0,null,null,0,null,null,null,null,null,null,null,null,null,null,0,null,null,null,null,null,null,null,null,null,0,null,null,null,null,null,null,null,null,null,null,null,null,null,null,null,null,null,null,null,null,null,null,null,null,null,null,null,null,null,null,null,null,null,null,null,null,"",0,0,0,0,0,0,0,0,0,null,null,null,null,null,null,0,0,0,null,null,null,{"$f":"#VALUE!","v":{"$error":"#VALUE!"}},{"$f":"#VALUE!","v":{"$error":"#VALUE!"}}]
[null,null,0,null,null,0,null,null,null,null,null,null,null,null,null,null,0,null,null,null,null,null,null,null,null,null,0,null,null,null,null,null,null,null,null,null,null,null,null,null,null,null,null,null,null,null,null,null,null,null,null,null,null,null,null,null,null,null,null,null,null,null,null,"",0,0,0,0,0,0,0,0,0,null,null,null,null,null,null,0,0,0,null,null,null,{"$f":"#VALUE!","v":{"$error":"#VALUE!"}},{"$f":"#VALUE!","v":{"$error":"#VALUE!"}}]
[null,null,0,null,null,0,null,null,null,null,null,null,null,null,null,null,0,null,null,null,null,null,null,null,null,null,0,null,null,null,null,null,null,null,null,null,null,null,null,null,null,null,null,null,null,null,null,null,null,null,null,null,null,null,null,null,null,null,null,null,null,null,null,"",0,0,0,0,0,0,0,0,0,null,null,null,null,null,null,0,0,0,null,null,null,{"$f":"#VALUE!","v":{"$error":"#VALUE!"}},{"$f":"#VALUE!","v":{"$error":"#VALUE!"}}]
[null,null,0,null,null,0,null,null,null,null,null,null,null,null,null,null,0,null,null,null,null,null,null,null,null,null,0,null,null,null,null,null,null,null,null,null,null,null,null,null,null,null,null,null,null,null,null,null,null,null,null,null,null,null,null,null,null,null,null,null,null,null,null,"",0,0,0,0,0,0,0,0,0,null,null,null,null,null,null,0,0,0,null,null,null,{"$f":"#VALUE!","v":{"$error":"#VALUE!"}},{"$f":"#VALUE!","v":{"$error":"#VALUE!"}}]
[null,null,0,null,null,0,null,null,null,null,null,null,null,null,null,null,0,null,null,null,null,null,null,null,null,null,0,null,null,null,null,null,null,null,null,null,null,null,null,null,null,null,null,null,null,null,null,null,null,null,null,null,null,null,null,null,null,null,null,null,null,null,null,"",0,0,0,0,0,0,0,0,0,null,null,null,null,null,null,0,0,0,null,null,null,{"$f":"#VALUE!","v":{"$error":"#VALUE!"}},{"$f":"#VALUE!","v":{"$error":"#VALUE!"}}]
[null,null,0,null,null,0,null,null,null,null,null,null,null,null,null,null,0,null,null,null,null,null,null,null,null,null,0,null,null,null,null,null,null,null,null,null,null,null,null,null,null,null,null,null,null,null,null,null,null,null,null,null,null,null,null,null,null,null,null,null,null,null,null,"",0,0,0,0,0,0,0,0,0,null,null,null,null,null,null,0,0,0,null,null,null,{"$f":"#VALUE!","v":{"$error":"#VALUE!"}},{"$f":"#VALUE!","v":{"$error":"#VALUE!"}}]
[null,null,0,null,null,0,null,null,null,null,null,null,null,null,null,null,0,null,null,null,null,null,null,null,null,null,0,null,null,null,null,null,null,null,null,null,null,null,null,null,null,null,null,null,null,null,null,null,null,null,null,null,null,null,null,null,null,null,null,null,null,null,null,"",0,0,0,0,0,0,0,0,0,null,null,null,null,null,null,0,0,0,null,null,null,{"$f":"#VALUE!","v":{"$error":"#VALUE!"}},{"$f":"#VALUE!","v":{"$error":"#VALUE!"}}]
[null,null,0,null,null,0,null,null,null,null,null,null,null,null,null,null,0,null,null,null,null,null,null,null,null,null,0,null,null,null,null,null,null,null,null,null,null,null,null,null,null,null,null,null,null,null,null,null,null,null,null,null,null,null,null,null,null,null,null,null,null,null,null,"",0,0,0,0,0,0,0,0,0,null,null,null,null,null,null,0,0,0,null,null,null,{"$f":"#VALUE!","v":{"$error":"#VALUE!"}},{"$f":"#VALUE!","v":{"$error":"#VALUE!"}}]
[null,null,0,null,null,0,null,null,null,null,null,null,null,null,null,null,0,null,null,null,null,null,null,null,null,null,0,null,null,null,null,null,null,null,null,null,null,null,null,null,null,null,null,null,null,null,null,null,null,null,null,null,null,null,null,null,null,null,null,null,null,null,null,"",0,0,0,0,0,0,0,0,0,null,null,null,null,null,null,0,0,0,null,null,null,{"$f":"#VALUE!","v":{"$error":"#VALUE!"}},{"$f":"#VALUE!","v":{"$error":"#VALUE!"}}]
[null,null,0,null,null,0,null,null,null,null,null,null,null,null,null,null,0,null,null,null,null,null,null,null,null,null,0,null,null,null,null,null,null,null,null,null,null,null,null,null,null,null,null,null,null,null,null,null,null,null,null,null,null,null,null,null,null,null,null,null,null,null,null,"",0,0,0,0,0,0,0,0,0,null,null,null,null,null,null,0,0,0,null,null,null,{"$f":"#VALUE!","v":{"$error":"#VALUE!"}},{"$f":"#VALUE!","v":{"$error":"#VALUE!"}}]
[null,null,0,null,null,0,null,null,null,null,null,null,null,null,null,null,0,null,null,null,null,null,null,null,null,null,0,null,null,null,null,null,null,null,null,null,null,null,null,null,null,null,null,null,null,null,null,null,null,null,null,null,null,null,null,null,null,null,null,null,null,null,null,"",0,0,0,0,0,0,0,0,0,null,null,null,null,null,null,0,0,0,null,null,null,{"$f":"#VALUE!","v":{"$error":"#VALUE!"}},{"$f":"#VALUE!","v":{"$error":"#VALUE!"}}]
[null,null,0,null,null,0,null,null,null,null,null,null,null,null,null,null,0,null,null,null,null,null,null,null,null,null,0,null,null,null,null,null,null,null,null,null,null,null,null,null,null,null,null,null,null,null,null,null,null,null,null,null,null,null,null,null,null,null,null,null,null,null,null,"",0,0,0,0,0,0,0,0,0,null,null,null,null,null,null,0,0,0,null,null,null,{"$f":"#VALUE!","v":{"$error":"#VALUE!"}},{"$f":"#VALUE!","v":{"$error":"#VALUE!"}}]
[null,null,0,null,null,0,null,null,null,null,null,null,null,null,null,null,0,null,null,null,null,null,null,null,null,null,0,null,null,null,null,null,null,null,null,null,null,null,null,null,null,null,null,null,null,null,null,null,null,null,null,null,null,null,null,null,null,null,null,null,null,null,null,"",0,0,0,0,0,0,0,0,0,null,null,null,null,null,null,0,0,0,null,null,null,{"$f":"#VALUE!","v":{"$error":"#VALUE!"}},{"$f":"#VALUE!","v":{"$error":"#VALUE!"}}]
[null,null,0,null,null,0,null,null,null,null,null,null,null,null,null,null,0,null,null,null,null,null,null,null,null,null,0,null,null,null,null,null,null,null,null,null,null,null,null,null,null,null,null,null,null,null,null,null,null,null,null,null,null,null,null,null,null,null,null,null,null,null,null,"",0,0,0,0,0,0,0,0,0,null,null,null,null,null,null,0,0,0,null,null,null,{"$f":"#VALUE!","v":{"$error":"#VALUE!"}},{"$f":"#VALUE!","v":{"$error":"#VALUE!"}}]
[null,null,0,null,null,0,null,null,null,null,null,null,null,null,null,null,0,null,null,null,null,null,null,null,null,null,0,null,null,null,null,null,null,null,null,null,null,null,null,null,null,null,null,null,null,null,null,null,null,null,null,null,null,null,null,null,null,null,null,null,null,null,null,"",0,0,0,0,0,0,0,0,0,null,null,null,null,null,null,0,0,0,null,null,null,{"$f":"#VALUE!","v":{"$error":"#VALUE!"}},{"$f":"#VALUE!","v":{"$error":"#VALUE!"}}]
[null,null,0,null,null,0,null,null,null,null,null,null,null,null,null,null,0,null,null,null,null,null,null,null,null,null,0,null,null,null,null,null,null,null,null,null,null,null,null,null,null,null,null,null,null,null,null,null,null,null,null,null,null,null,null,null,null,null,null,null,null,null,null,"",0,0,0,0,0,0,0,0,0,null,null,null,null,null,null,0,0,0,null,null,null,{"$f":"#VALUE!","v":{"$error":"#VALUE!"}},{"$f":"#VALUE!","v":{"$error":"#VALUE!"}}]
[null,null,0,null,null,0,null,null,null,null,null,null,null,null,null,null,0,null,null,null,null,null,null,null,null,null,0,null,null,null,null,null,null,null,null,null,null,null,null,null,null,null,null,null,null,null,null,null,null,null,null,null,null,null,null,null,null,null,null,null,null,null,null,"",0,0,0,0,0,0,0,0,0,null,null,null,null,null,null,0,0,0,null,null,null,{"$f":"#VALUE!","v":{"$error":"#VALUE!"}},{"$f":"#VALUE!","v":{"$error":"#VALUE!"}}]
[null,null,0,null,null,0,null,null,null,null,null,null,null,null,null,null,0,null,null,null,null,null,null,null,null,null,0,null,null,null,null,null,null,null,null,null,null,null,null,null,null,null,null,null,null,null,null,null,null,null,null,null,null,null,null,null,null,null,null,null,null,null,null,"",0,0,0,0,0,0,0,0,0,null,null,null,null,null,null,0,0,0,null,null,null,{"$f":"#VALUE!","v":{"$error":"#VALUE!"}},{"$f":"#VALUE!","v":{"$error":"#VALUE!"}}]
[null,null,0,null,null,0,null,null,null,null,null,null,null,null,null,null,0,null,null,null,null,null,null,null,null,null,0,null,null,null,null,null,null,null,null,null,null,null,null,null,null,null,null,null,null,null,null,null,null,null,null,null,null,null,null,null,null,null,null,null,null,null,null,"",0,0,0,0,0,0,0,0,0,null,null,null,null,null,null,0,0,0,null,null,null,{"$f":"#VALUE!","v":{"$error":"#VALUE!"}},{"$f":"#VALUE!","v":{"$error":"#VALUE!"}}]
[null,null,0,null,null,0,null,null,null,null,null,null,null,null,null,null,0,null,null,null,null,null,null,null,null,null,0,null,null,null,null,null,null,null,null,null,null,null,null,null,null,null,null,null,null,null,null,null,null,null,null,null,null,null,null,null,null,null,null,null,null,null,null,"",0,0,0,0,0,0,0,0,0,null,null,null,null,null,null,0,0,0,null,null,null,{"$f":"#VALUE!","v":{"$error":"#VALUE!"}},{"$f":"#VALUE!","v":{"$error":"#VALUE!"}}]
[null,null,0,null,null,0,null,null,null,null,null,null,null,null,null,null,0,null,null,null,null,null,null,null,null,null,0,null,null,null,null,null,null,null,null,null,null,null,null,null,null,null,null,null,null,null,null,null,null,null,null,null,null,null,null,null,null,null,null,null,null,null,null,"",0,0,0,0,0,0,0,0,0,null,null,null,null,null,null,0,0,0,null,null,null,{"$f":"#VALUE!","v":{"$error":"#VALUE!"}},{"$f":"#VALUE!","v":{"$error":"#VALUE!"}}]
[null,null,0,null,null,0,null,null,null,null,null,null,null,null,null,null,0,null,null,null,null,null,null,null,null,null,0,null,null,null,null,null,null,null,null,null,null,null,null,null,null,null,null,null,null,null,null,null,null,null,null,null,null,null,null,null,null,null,null,null,null,null,null,"",0,0,0,0,0,0,0,0,0,null,null,null,null,null,null,0,0,0,null,null,null,{"$f":"#VALUE!","v":{"$error":"#VALUE!"}},{"$f":"#VALUE!","v":{"$error":"#VALUE!"}}]
[null,null,0,null,null,0,null,null,null,null,null,null,null,null,null,null,0,null,null,null,null,null,null,null,null,null,0,null,null,null,null,null,null,null,null,null,null,null,null,null,null,null,null,null,null,null,null,null,null,null,null,null,null,null,null,null,null,null,null,null,null,null,null,"",0,0,0,0,0,0,0,0,0,null,null,null,null,null,null,0,0,0,null,null,null,{"$f":"#VALUE!","v":{"$error":"#VALUE!"}},{"$f":"#VALUE!","v":{"$error":"#VALUE!"}}]
[null,null,0,null,null,0,null,null,null,null,null,null,null,null,null,null,0,null,null,null,null,null,null,null,null,null,0,null,null,null,null,null,null,null,null,null,null,null,null,null,null,null,null,null,null,null,null,null,null,null,null,null,null,null,null,null,null,null,null,null,null,null,null,"",0,0,0,0,0,0,0,0,0,null,null,null,null,null,null,0,0,0,null,null,null,{"$f":"#VALUE!","v":{"$error":"#VALUE!"}},{"$f":"#VALUE!","v":{"$error":"#VALUE!"}}]
[null,null,0,null,null,0,null,null,null,null,null,null,null,null,null,null,0,null,null,null,null,null,null,null,null,null,0,null,null,null,null,null,null,null,null,null,null,null,null,null,null,null,null,null,null,null,null,null,null,null,null,null,null,null,null,null,null,null,null,null,null,null,null,"",0,0,0,0,0,0,0,0,0,null,null,null,null,null,null,0,0,0,null,null,null,{"$f":"#VALUE!","v":{"$error":"#VALUE!"}},{"$f":"#VALUE!","v":{"$error":"#VALUE!"}}]
[null,null,0,null,null,0,null,null,null,null,null,null,null,null,null,null,0,null,null,null,null,null,null,null,null,null,0,null,null,null,null,null,null,null,null,null,null,null,null,null,null,null,null,null,null,null,null,null,null,null,null,null,null,null,null,null,null,null,null,null,null,null,null,"",0,0,0,0,0,0,0,0,0,null,null,null,null,null,null,0,0,0,null,null,null,{"$f":"#VALUE!","v":{"$error":"#VALUE!"}},{"$f":"#VALUE!","v":{"$error":"#VALUE!"}}]
[null,null,0,null,null,0,null,null,null,null,null,null,null,null,null,null,0,null,null,null,null,null,null,null,null,null,0,null,null,null,null,null,null,null,null,null,null,null,null,null,null,null,null,null,null,null,null,null,null,null,null,null,null,null,null,null,null,null,null,null,null,null,null,"",0,0,0,0,0,0,0,0,0,null,null,null,null,null,null,0,0,0,null,null,null,{"$f":"#VALUE!","v":{"$error":"#VALUE!"}},{"$f":"#VALUE!","v":{"$error":"#VALUE!"}}]
[null,null,0,null,null,0,null,null,null,null,null,null,null,null,null,null,0,null,null,null,null,null,null,null,null,null,0,null,null,null,null,null,null,null,null,null,null,null,null,null,null,null,null,null,null,null,null,null,null,null,null,null,null,null,null,null,null,null,null,null,null,null,null,"",0,0,0,0,0,0,0,0,0,null,null,null,null,null,null,0,0,0,null,null,null,{"$f":"#VALUE!","v":{"$error":"#VALUE!"}},{"$f":"#VALUE!","v":{"$error":"#VALUE!"}}]
[null,null,0,null,null,0,null,null,null,null,null,null,null,null,null,null,0,null,null,null,null,null,null,null,null,null,0,null,null,null,null,null,null,null,null,null,null,null,null,null,null,null,null,null,null,null,null,null,null,null,null,null,null,null,null,null,null,null,null,null,null,null,null,"",0,0,0,0,0,0,0,0,0,null,null,null,null,null,null,0,0,0,null,null,null,{"$f":"#VALUE!","v":{"$error":"#VALUE!"}},{"$f":"#VALUE!","v":{"$error":"#VALUE!"}}]
[null,null,0,null,null,0,null,null,null,null,null,null,null,null,null,null,0,null,null,null,null,null,null,null,null,null,0,null,null,null,null,null,null,null,null,null,null,null,null,null,null,null,null,null,null,null,null,null,null,null,null,null,null,null,null,null,null,null,null,null,null,null,null,"",0,0,0,0,0,0,0,0,0,null,null,null,null,null,null,0,0,0,null,null,null,{"$f":"#VALUE!","v":{"$error":"#VALUE!"}},{"$f":"#VALUE!","v":{"$error":"#VALUE!"}}]
[null,null,0,null,null,0,null,null,null,null,null,null,null,null,null,null,0,null,null,null,null,null,null,null,null,null,0,null,null,null,null,null,null,null,null,null,null,null,null,null,null,null,null,null,null,null,null,null,null,null,null,null,null,null,null,null,null,null,null,null,null,null,null,"",0,0,0,0,0,0,0,0,0,null,null,null,null,null,null,0,0,0,null,null,null,{"$f":"#VALUE!","v":{"$error":"#VALUE!"}},{"$f":"#VALUE!","v":{"$error":"#VALUE!"}}]
[null,null,0,null,null,0,null,null,null,null,null,null,null,null,null,null,0,null,null,null,null,null,null,null,null,null,0,null,null,null,null,null,null,null,null,null,null,null,null,null,null,null,null,null,null,null,null,null,null,null,null,null,null,null,null,null,null,null,null,null,null,null,null,"",0,0,0,0,0,0,0,0,0,null,null,null,null,null,null,0,0,0,null,null,null,{"$f":"#VALUE!","v":{"$error":"#VALUE!"}},{"$f":"#VALUE!","v":{"$error":"#VALUE!"}}]
[null,null,0,null,null,0,null,null,null,null,null,null,null,null,null,null,0,null,null,null,null,null,null,null,null,null,0,null,null,null,null,null,null,null,null,null,null,null,null,null,null,null,null,null,null,null,null,null,null,null,null,null,null,null,null,null,null,null,null,null,null,null,null,"",0,0,0,0,0,0,0,0,0,null,null,null,null,null,null,0,0,0,null,null,null,{"$f":"#VALUE!","v":{"$error":"#VALUE!"}},{"$f":"#VALUE!","v":{"$error":"#VALUE!"}}]
[null,null,0,null,null,0,null,null,null,null,null,null,null,null,null,null,0,null,null,null,null,null,null,null,null,null,0,null,null,null,null,null,null,null,null,null,null,null,null,null,null,null,null,null,null,null,null,null,null,null,null,null,null,null,null,null,null,null,null,null,null,null,null,"",0,0,0,0,0,0,0,0,0,null,null,null,null,null,null,0,0,0,null,null,null,{"$f":"#VALUE!","v":{"$error":"#VALUE!"}},{"$f":"#VALUE!","v":{"$error":"#VALUE!"}}]
[null,null,0,null,null,0,null,null,null,null,null,null,null,null,null,null,0,null,null,null,null,null,null,null,null,null,0,null,null,null,null,null,null,null,null,null,null,null,null,null,null,null,null,null,null,null,null,null,null,null,null,null,null,null,null,null,null,null,null,null,null,null,null,"",0,0,0,0,0,0,0,0,0,null,null,null,null,null,null,0,0,0,null,null,null,{"$f":"#VALUE!","v":{"$error":"#VALUE!"}},{"$f":"#VALUE!","v":{"$error":"#VALUE!"}}]
[null,null,0,null,null,0,null,null,null,null,null,null,null,null,null,null,0,null,null,null,null,null,null,null,null,null,0,null,null,null,null,null,null,null,null,null,null,null,null,null,null,null,null,null,null,null,null,null,null,null,null,null,null,null,null,null,null,null,null,null,null,null,null,"",0,0,0,0,0,0,0,0,0,null,null,null,null,null,null,0,0,0,null,null,null,{"$f":"#VALUE!","v":{"$error":"#VALUE!"}},{"$f":"#VALUE!","v":{"$error":"#VALUE!"}}]
[null,null,0,null,null,0,null,null,null,null,null,null,null,null,null,null,0,null,null,null,null,null,null,null,null,null,0,null,null,null,null,null,null,null,null,null,null,null,null,null,null,null,null,null,null,null,null,null,null,null,null,null,null,null,null,null,null,null,null,null,null,null,null,"",0,0,0,0,0,0,0,0,0,null,null,null,null,null,null,0,0,0,null,null,null,{"$f":"#VALUE!","v":{"$error":"#VALUE!"}},{"$f":"#VALUE!","v":{"$error":"#VALUE!"}}]
[null,null,0,null,null,0,null,null,null,null,null,null,null,null,null,null,0,null,null,null,null,null,null,null,null,null,0,null,null,null,null,null,null,null,null,null,null,null,null,null,null,null,null,null,null,null,null,null,null,null,null,null,null,null,null,null,null,null,null,null,null,null,null,"",0,0,0,0,0,0,0,0,0,null,null,null,null,null,null,0,0,0,null,null,null,{"$f":"#VALUE!","v":{"$error":"#VALUE!"}},{"$f":"#VALUE!","v":{"$error":"#VALUE!"}}]
[null,null,0,null,null,0,null,null,null,null,null,null,null,null,null,null,0,null,null,null,null,null,null,null,null,null,0,null,null,null,null,null,null,null,null,null,null,null,null,null,null,null,null,null,null,null,null,null,null,null,null,null,null,null,null,null,null,null,null,null,null,null,null,"",0,0,0,0,0,0,0,0,0,null,null,null,null,null,null,0,0,0,null,null,null,{"$f":"#VALUE!","v":{"$error":"#VALUE!"}},{"$f":"#VALUE!","v":{"$error":"#VALUE!"}}]
[null,null,0,null,null,0,null,null,null,null,null,null,null,null,null,null,0,null,null,null,null,null,null,null,null,null,0,null,null,null,null,null,null,null,null,null,null,null,null,null,null,null,null,null,null,null,null,null,null,null,null,null,null,null,null,null,null,null,null,null,null,null,null,"",0,0,0,0,0,0,0,0,0,null,null,null,null,null,null,0,0,0,null,null,null,{"$f":"#VALUE!","v":{"$error":"#VALUE!"}},{"$f":"#VALUE!","v":{"$error":"#VALUE!"}}]
[null,null,0,null,null,0,null,null,null,null,null,null,null,null,null,null,0,null,null,null,null,null,null,null,null,null,0,null,null,null,null,null,null,null,null,null,null,null,null,null,null,null,null,null,null,null,null,null,null,null,null,null,null,null,null,null,null,null,null,null,null,null,null,"",0,0,0,0,0,0,0,0,0,null,null,null,null,null,null,0,0,0,null,null,null,{"$f":"#VALUE!","v":{"$error":"#VALUE!"}},{"$f":"#VALUE!","v":{"$error":"#VALUE!"}}]
[null,null,0,null,null,0,null,null,null,null,null,null,null,null,null,null,0,null,null,null,null,null,null,null,null,null,0,null,null,null,null,null,null,null,null,null,null,null,null,null,null,null,null,null,null,null,null,null,null,null,null,null,null,null,null,null,null,null,null,null,null,null,null,"",0,0,0,0,0,0,0,0,0,null,null,null,null,null,null,0,0,0,null,null,null,{"$f":"#VALUE!","v":{"$error":"#VALUE!"}},{"$f":"#VALUE!","v":{"$error":"#VALUE!"}}]
[null,null,0,null,null,0,null,null,null,null,null,null,null,null,null,null,0,null,null,null,null,null,null,null,null,null,0,null,null,null,null,null,null,null,null,null,null,null,null,null,null,null,null,null,null,null,null,null,null,null,null,null,null,null,null,null,null,null,null,null,null,null,null,"",0,0,0,0,0,0,0,0,0,null,null,null,null,null,null,0,0,0,null,null,null,{"$f":"#VALUE!","v":{"$error":"#VALUE!"}},{"$f":"#VALUE!","v":{"$error":"#VALUE!"}}]
[null,null,0,null,null,0,null,null,null,null,null,null,null,null,null,null,0,null,null,null,null,null,null,null,null,null,0,null,null,null,null,null,null,null,null,null,null,null,null,null,null,null,null,null,null,null,null,null,null,null,null,null,null,null,null,null,null,null,null,null,null,null,null,"",0,0,0,0,0,0,0,0,0,null,null,null,null,null,null,0,0,0,null,null,null,{"$f":"#VALUE!","v":{"$error":"#VALUE!"}},{"$f":"#VALUE!","v":{"$error":"#VALUE!"}}]
[null,null,0,null,null,0,null,null,null,null,null,null,null,null,null,null,0,null,null,null,null,null,null,null,null,null,0,null,null,null,null,null,null,null,null,null,null,null,null,null,null,null,null,null,null,null,null,null,null,null,null,null,null,null,null,null,null,null,null,null,null,null,null,"",0,0,0,0,0,0,0,0,0,null,null,null,null,null,null,0,0,0,null,null,null,{"$f":"#VALUE!","v":{"$error":"#VALUE!"}},{"$f":"#VALUE!","v":{"$error":"#VALUE!"}}]
[null,null,0,null,null,0,null,null,null,null,null,null,null,null,null,null,0,null,null,null,null,null,null,null,null,null,0,null,null,null,null,null,null,null,null,null,null,null,null,null,null,null,null,null,null,null,null,null,null,null,null,null,null,null,null,null,null,null,null,null,null,null,null,"",0,0,0,0,0,0,0,0,0,null,null,null,null,null,null,0,0,0,null,null,null,{"$f":"#VALUE!","v":{"$error":"#VALUE!"}},{"$f":"#VALUE!","v":{"$error":"#VALUE!"}}]
[null,null,0,null,null,0,null,null,null,null,null,null,null,null,null,null,0,null,null,null,null,null,null,null,null,null,0,null,null,null,null,null,null,null,null,null,null,null,null,null,null,null,null,null,null,null,null,null,null,null,null,null,null,null,null,null,null,null,null,null,null,null,null,"",0,0,0,0,0,0,0,0,0,null,null,null,null,null,null,0,0,0,null,null,null,{"$f":"#VALUE!","v":{"$error":"#VALUE!"}},{"$f":"#VALUE!","v":{"$error":"#VALUE!"}}]
[null,null,0,null,null,0,null,null,null,null,null,null,null,null,null,null,0,null,null,null,null,null,null,null,null,null,0,null,null,null,null,null,null,null,null,null,null,null,null,null,null,null,null,null,null,null,null,null,null,null,null,null,null,null,null,null,null,null,null,null,null,null,null,"",0,0,0,{"$f":"INT(IF(H196=\"عامل تعاقد\",I196*25/100,IF(H196=\"معلم مساعد\",I196*25/100,IF(H196=\"معلم\",I196*25/100,IF(H196=\"معلم أول\",I196*25/100,IF(H196=\"معلم أول أ\",I196*25/100,IF(H196=\"خبير\",I196*25/100,IF(H196=\"كبير\",I196*25/100,))))))))","v":0},{"$f":"INT(IF(H196=\"إدارى\",J196*0/100,IF(H196=\"معلم مساعد\",I196*125/100,IF(H196=\"معلم\",I196*75/100,IF(H196=\"معلم أول\",I196*50/100,IF(H196=\"معلم أول أ\",I196*25/100,IF(H196=\"خبير\",I196*25/100,IF(H196=\"كبير\",I196*25/100,))))))))","v":0},{"$f":"INT(IF(H196=\"عامل تعاقد\",I196*0.9166,IF(H196=\"معلم تعاقد\",I196*0.9166,0)))","v":0},{"$f":"INT(IF(H196=\"عامل تعاقد\",I196*0.5,IF(H196=\"معلم تعاقد\",I196*0.5,0)))","v":0},{"$f":"INT(IF(F196=1,I196*0.3333,0))","v":0},{"$f":"IF(H196=\"عامل تعاقد\",225,IF(H196=\"معلم تعاقد\",300,0))","v":0},null,null,null,null,null,null,{"$f":"IF($B196>0,(SUM(R196:AD196)-50),0)","v":0},{"$f":"IF(CB196<250,(CB196*0.006),IF(CB196<500,(CB196*0.0065),IF(CB196<1000,(CB196*0.007),IF(CB196<5000,(CB196*0.0075),IF(CB196>5000,(CB196*0.008),\" \" )))))","v":0},0,null,null,null,{"$f":"#VALUE!","v":{"$error":"#VALUE!"}},{"$f":"#VALUE!","v":{"$error":"#VALUE!"}}]
[null,null,0,null,null,0,null,null,null,null,null,null,null,null,null,null,{"$f":"IF(E197=\"متزوج\",2,IF(E197=\"متزوج+1\",4,IF(E197=\"متزوج+2\",6,IF(E197=\"متزوجة\",2,0))))","v":0},null,null,null,null,null,null,null,null,null,{"$f":"BU197","v":0},null,null,null,null,null,null,null,null,null,null,null,null,null,null,null,null,null,null,null,null,null,null,null,null,null,null,null,null,null,null,null,null,null,null,null,null,{"$f":"IF(H197=\"معلم مساعد\",10,IF(H197=\"معلم تعاقد\",10,IF(H197=\"معلم\",10,IF(H197=\"معلم أول\",10,IF(H197=\"معلم أول أ\",10,IF(H197=\"خبير\",10,IF(H197=\"كبير\",10,IF(H197=\"عامل تعاقد\",0,\"\"))))))))","v":""},{"$f":"IF(H197=\"عقد مميز\",I197*0/100,IF(H197=\"معلم تعاقد\",I197*0/100,IF(H197=\"معلم\",I197*50/100,IF(H197=\"معلم أول\",I197*50/100,IF(H197=\"معلم أول أ\",I197*50/100,IF(H197=\"خبير\",I197*50/100,IF(H197=\"كبير\",I197*50/100,)))))))","v":0},{"$f":"IF(H197=\"معلم مساعد\",I197*50/100,IF(H197=\"عامل تعاقد\",I197*0/100,IF(H197=\"معلم\",I197*50/100,IF(H197=\"معلم أول\",I197*50/100,IF(H197=\"معلم أول أ\",I197*50/100,IF(H197=\"خبير\",I197*50/100,IF(H197=\"كبير\",I197*50/100,)))))))","v":0},0,0,0,0,0,0,0,null,null,null,null,null,null,0,0,{"$f":"CEILING($CC197,0.05)","v":0},null,null,null,{"$f":"#VALUE!","v":{"$error":"#VALUE!"}},{"$f":"#VALUE!","v":{"$error":"#VALUE!"}}]
[null,null,0,null,null,0,null,null,null,null,null,null,null,null,null,null,0,null,null,null,null,null,null,null,null,null,0,null,null,null,null,null,null,null,null,null,null,null,null,null,null,null,null,null,null,null,null,null,null,null,null,null,null,null,null,null,null,null,null,null,null,null,null,"",0,0,{"$f":"IF(H198=\"إدارى\",I198*0,IF(H198=\"معلم مساعد\",I198*0/100,IF(H198=\"معلم\",I198*50/100,IF(H198=\"معلم أول\",I198*75/100,IF(H198=\"معلم أول أ\",I198*100/100,IF(H198=\"خبير\",I198*125/100,IF(H198=\"كبير\",I198*150/100,)))))))","v":0},0,0,0,0,0,0,null,null,null,null,null,null,0,0,0,null,null,null,{"$f":"#VALUE!","v":{"$error":"#VALUE!"}},{"$f":"#VALUE!","v":{"$error":"#VALUE!"}}]
[null,null,0,null,null,0,null,null,null,null,null,null,null,null,null,null,0,null,null,null,null,null,null,null,null,null,0,null,null,null,null,null,null,null,null,null,null,null,null,null,null,null,null,null,null,null,null,null,null,null,null,null,null,null,null,null,null,null,null,null,null,null,null,"",0,0,0,0,0,0,0,0,0,null,null,null,null,null,null,0,0,0,null,null,null,{"$f":"#VALUE!","v":{"$error":"#VALUE!"}},{"$f":"#VALUE!","v":{"$error":"#VALUE!"}}]
[null,null,{"$f":"IF(D200=\"نقابى\",1,IF(D200=\"حالة خاصة\",2,0))","v":0},null,null,0,null,null,null,null,null,null,null,null,null,null,0,null,null,null,null,null,null,null,null,null,0,null,null,null,null,null,null,null,null,null,null,null,null,null,null,null,null,null,null,null,null,null,null,null,null,null,null,null,null,null,null,null,null,null,null,null,null,"",0,0,0,0,0,0,0,0,0,null,null,null,null,null,null,0,0,0,null,null,null,{"$f":"#VALUE!","v":{"$error":"#VALUE!"}},{"$f":"#VALUE!","v":{"$error":"#VALUE!"}}]
[null,null,0,null,null,0,null,null,null,null,null,null,null,null,null,null,0,null,null,null,null,null,null,null,null,null,0,null,null,null,null,null,null,null,null,null,null,null,null,null,null,null,null,null,null,null,null,null,null,null,null,null,null,null,null,null,null,null,null,null,null,null,null,"",0,0,0,0,0,0,0,0,0,null,null,null,null,null,null,0,0,0,null,null,null,{"$f":"#VALUE!","v":{"$error":"#VALUE!"}},{"$f":"#VALUE!","v":{"$error":"#VALUE!"}}]
[null,null,0,null,null,0,null,null,null,null,null,null,null,null,null,null,0,null,null,null,null,null,null,null,null,null,0,null,null,null,null,null,null,null,null,null,null,null,null,null,null,null,null,null,null,null,null,null,null,null,null,null,null,null,null,null,null,null,null,null,null,null,null,"",0,0,0,0,0,0,0,0,0,null,null,null,null,null,null,0,0,0,null,null,null,{"$f":"#VALUE!","v":{"$error":"#VALUE!"}},{"$f":"#VALUE!","v":{"$error":"#VALUE!"}}]
[null,null,0,null,null,0,null,null,null,null,null,null,null,null,null,null,0,null,null,null,null,null,null,null,null,null,0,null,null,null,null,null,null,null,null,null,null,null,null,null,null,null,null,null,null,null,null,null,null,null,null,null,null,null,null,null,null,null,null,null,null,null,null,"",0,0,0,0,0,0,0,0,0,null,null,null,null,null,null,0,0,0,null,null,null,{"$f":"#VALUE!","v":{"$error":"#VALUE!"}},{"$f":"#VALUE!","v":{"$error":"#VALUE!"}}]
[null,null,0,null,null,0,null,null,null,null,null,null,null,null,null,null,0,null,null,null,null,null,null,null,null,null,0,null,null,null,null,null,null,null,null,null,null,null,null,null,null,null,null,null,null,null,null,null,null,null,null,null,null,null,null,null,null,null,null,null,null,null,null,"",0,0,0,0,0,0,0,0,0,null,null,null,null,null,null,0,0,0,null,null,null,{"$f":"#VALUE!","v":{"$error":"#VALUE!"}},{"$f":"#VALUE!","v":{"$error":"#VALUE!"}}]
[null,null,0,null,null,0,null,null,null,null,null,null,null,null,null,null,0,null,null,null,null,null,null,null,null,null,0,null,null,null,null,null,null,null,null,null,null,null,null,null,null,null,null,null,null,null,null,null,null,null,null,null,null,null,null,null,null,null,null,null,null,null,null,"",0,0,0,0,0,0,0,0,0,null,null,null,null,null,null,0,0,0,null,null,null,{"$f":"#VALUE!","v":{"$error":"#VALUE!"}},{"$f":"#VALUE!","v":{"$error":"#VALUE!"}}]
[null,null,0,null,null,0,null,null,null,null,null,null,null,null,null,null,0,null,null,null,null,null,null,null,null,null,0,null,null,null,null,null,null,null,null,null,null,null,null,null,null,null,null,null,null,null,null,null,null,null,null,null,null,null,null,null,null,null,null,null,null,null,null,"",0,0,0,0,0,0,0,0,0,null,null,null,null,null,null,0,0,0,null,null,null,{"$f":"#VALUE!","v":{"$error":"#VALUE!"}},{"$f":"#VALUE!","v":{"$error":"#VALUE!"}}]
[null,null,0,null,null,0,null,null,null,null,null,null,null,null,null,null,0,null,null,null,null,null,null,null,null,null,0,null,null,null,null,null,null,null,null,null,null,null,null,null,null,null,null,null,null,null,null,null,null,null,null,null,null,null,null,null,null,null,null,null,null,null,null,"",0,0,0,0,0,0,0,0,0,null,null,null,null,null,null,0,0,0,null,null,null,{"$f":"#VALUE!","v":{"$error":"#VALUE!"}},{"$f":"#VALUE!","v":{"$error":"#VALUE!"}}]
[null,null,0,null,null,0,null,null,null,null,null,null,null,null,null,null,0,null,null,null,null,null,null,null,null,null,0,null,null,null,null,null,null,null,null,null,null,null,null,null,null,null,null,null,null,null,null,null,null,null,null,null,null,null,null,null,null,null,null,null,null,null,null,"",0,0,0,0,0,0,0,0,0,null,null,null,null,null,null,0,0,0,null,null,null,{"$f":"#VALUE!","v":{"$error":"#VALUE!"}},{"$f":"#VALUE!","v":{"$error":"#VALUE!"}}]
[null,null,0,null,null,0,null,null,null,null,null,null,null,null,null,null,0,null,null,null,null,null,null,null,null,null,0,null,null,null,null,null,null,null,null,null,null,null,null,null,null,null,null,null,null,null,null,null,null,null,null,null,null,null,null,null,null,null,null,null,null,null,null,"",0,0,0,0,0,0,0,0,0,null,null,null,null,null,null,0,0,0,null,null,null,{"$f":"#VALUE!","v":{"$error":"#VALUE!"}},{"$f":"#VALUE!","v":{"$error":"#VALUE!"}}]
[null,null,0,null,null,0,null,null,null,null,null,null,null,null,null,null,0,null,null,null,null,null,null,null,null,null,0,null,null,null,null,null,null,null,null,null,null,null,null,null,null,null,null,null,null,null,null,null,null,null,null,null,null,null,null,null,null,null,null,null,null,null,null,"",0,0,0,0,0,0,0,0,0,null,null,null,null,null,null,0,0,0,null,null,null,{"$f":"#VALUE!","v":{"$error":"#VALUE!"}},{"$f":"#VALUE!","v":{"$error":"#VALUE!"}}]
[null,null,0,null,null,0,null,null,null,null,null,null,null,null,null,null,0,null,null,null,null,null,null,null,null,null,0,null,null,null,null,null,null,null,null,null,null,null,null,null,null,null,null,null,null,null,null,null,null,null,null,null,null,null,null,null,null,null,null,null,null,null,null,"",0,0,0,0,0,0,0,0,0,null,null,null,null,null,null,0,0,0,null,null,null,{"$f":"#VALUE!","v":{"$error":"#VALUE!"}},{"$f":"#VALUE!","v":{"$error":"#VALUE!"}}]
[null,null,0,null,null,0,null,null,null,null,null,null,null,null,null,null,0,null,null,null,null,null,null,null,null,null,0,null,null,null,null,null,null,null,null,null,null,null,null,null,null,null,null,null,null,null,null,null,null,null,null,null,null,null,null,null,null,null,null,null,null,null,null,"",0,0,0,0,0,0,0,0,0,null,null,null,null,null,null,0,0,0,null,null,null,{"$f":"#VALUE!","v":{"$error":"#VALUE!"}},{"$f":"#VALUE!","v":{"$error":"#VALUE!"}}]
[null,null,0,null,null,0,null,null,null,null,null,null,null,null,null,null,0,null,null,null,null,null,null,null,null,null,0,null,null,null,null,null,null,null,null,null,null,null,null,null,null,null,null,null,null,null,null,null,null,null,null,null,null,null,null,null,null,null,null,null,null,null,null,"",0,0,0,0,0,0,0,0,0,null,null,null,null,null,null,0,0,0,null,null,null,{"$f":"#VALUE!","v":{"$error":"#VALUE!"}},{"$f":"#VALUE!","v":{"$error":"#VALUE!"}}]
[null,null,0,null,null,0,null,null,null,null,null,null,null,null,null,null,0,null,null,null,null,null,null,null,null,null,0,null,null,null,null,null,null,null,null,null,null,null,null,null,null,null,null,null,null,null,null,null,null,null,null,null,null,null,null,null,null,null,null,null,null,null,null,"",0,0,0,0,0,0,0,0,0,null,null,null,null,null,null,0,0,0,null,null,null,{"$f":"#VALUE!","v":{"$error":"#VALUE!"}},{"$f":"#VALUE!","v":{"$error":"#VALUE!"}}]
[null,null,0,null,null,0,null,null,null,null,null,null,null,null,null,null,0,null,null,null,null,null,null,null,null,null,0,null,null,null,null,null,null,null,null,null,null,null,null,null,null,null,null,null,null,null,null,null,null,null,null,null,null,null,null,null,null,null,null,null,null,null,null,"",0,0,0,0,0,0,0,0,0,null,null,null,null,null,null,0,0,0,null,null,null,{"$f":"#VALUE!","v":{"$error":"#VALUE!"}},{"$f":"#VALUE!","v":{"$error":"#VALUE!"}}]
[null,null,0,null,null,0,null,null,null,null,null,null,null,null,null,null,0,null,null,null,null,null,null,null,null,null,0,null,null,null,null,null,null,null,null,null,null,null,null,null,null,null,null,null,null,null,null,null,null,null,null,null,null,null,null,null,null,null,null,null,null,null,null,"",0,0,0,0,0,0,0,0,0,null,null,null,null,null,null,0,0,0,null,null,null,{"$f":"#VALUE!","v":{"$error":"#VALUE!"}},{"$f":"#VALUE!","v":{"$error":"#VALUE!"}}]
[null,null,0,null,null,0,null,null,null,null,null,null,null,null,null,null,0,null,null,null,null,null,null,null,null,null,0,null,null,null,null,null,null,null,null,null,null,null,null,null,null,null,null,null,null,null,null,null,null,null,null,null,null,null,null,null,null,null,null,null,null,null,null,"",0,0,0,0,0,0,0,0,0,null,null,null,null,null,null,0,0,0,null,null,null,{"$f":"#VALUE!","v":{"$error":"#VALUE!"}},{"$f":"#VALUE!","v":{"$error":"#VALUE!"}}]
[null,null,0,null,null,0,null,null,null,null,null,null,null,null,null,null,0,null,null,null,null,null,null,null,null,null,0,null,null,null,null,null,null,null,null,null,null,null,null,null,null,null,null,null,null,null,null,null,null,null,null,null,null,null,null,null,null,null,null,null,null,null,null,"",0,0,0,0,0,0,0,0,0,null,null,null,null,null,null,0,0,0,null,null,null,{"$f":"#VALUE!","v":{"$error":"#VALUE!"}},{"$f":"#VALUE!","v":{"$error":"#VALUE!"}}]
[null,null,0,null,null,0,null,null,null,null,null,null,null,null,null,null,0,null,null,null,null,null,null,null,null,null,0,null,null,null,null,null,null,null,null,null,null,null,null,null,null,null,null,null,null,null,null,null,null,null,null,null,null,null,null,null,null,null,null,null,null,null,null,"",0,0,0,0,0,0,0,0,0,null,null,null,null,null,null,0,0,0,null,null,null,{"$f":"#VALUE!","v":{"$error":"#VALUE!"}},{"$f":"#VALUE!","v":{"$error":"#VALUE!"}}]
[null,null,0,null,null,0,null,null,null,null,null,null,null,null,null,null,0,null,null,null,null,null,null,null,null,null,0,null,null,null,null,null,null,null,null,null,null,null,null,null,null,null,null,null,null,null,null,null,null,null,null,null,null,null,null,null,null,null,null,null,null,null,null,"",0,0,0,0,0,0,0,0,0,null,null,null,null,null,null,0,0,0,null,null,null,{"$f":"#VALUE!","v":{"$error":"#VALUE!"}},{"$f":"#VALUE!","v":{"$error":"#VALUE!"}}]
[null,null,0,null,null,0,null,null,null,null,null,null,null,null,null,null,0,null,null,null,null,null,null,null,null,null,0,null,null,null,null,null,null,null,null,null,null,null,null,null,null,null,null,null,null,null,null,null,null,null,null,null,null,null,null,null,null,null,null,null,null,null,null,"",0,0,0,0,0,0,0,0,0,null,null,null,null,null,null,0,0,0,null,null,null,{"$f":"#VALUE!","v":{"$error":"#VALUE!"}},{"$f":"#VALUE!","v":{"$error":"#VALUE!"}}]
[null,null,0,null,null,0,null,null,null,null,null,null,null,null,null,null,0,null,null,null,null,null,null,null,null,null,0,null,null,null,null,null,null,null,null,null,null,null,null,null,null,null,null,null,null,null,null,null,null,null,null,null,null,null,null,null,null,null,null,null,null,null,null,"",0,0,0,0,0,0,0,0,0,null,null,null,null,null,null,0,0,0,null,null,null,{"$f":"#VALUE!","v":{"$error":"#VALUE!"}},{"$f":"#VALUE!","v":{"$error":"#VALUE!"}}]
[null,null,0,null,null,0,null,null,null,null,null,null,null,null,null,null,0,null,null,null,null,null,null,null,null,null,0,null,null,null,null,null,null,null,null,null,null,null,null,null,null,null,null,null,null,null,null,null,null,null,null,null,null,null,null,null,null,null,null,null,null,null,null,"",0,0,0,0,0,0,0,0,0,null,null,null,null,null,null,0,0,0,null,null,null,{"$f":"#VALUE!","v":{"$error":"#VALUE!"}},{"$f":"#VALUE!","v":{"$error":"#VALUE!"}}]
[null,null,0,null,null,0,null,null,null,null,null,null,null,null,null,null,0,null,null,null,null,null,null,null,null,null,0,null,null,null,null,null,null,null,null,null,null,null,null,null,null,null,null,null,null,null,null,null,null,null,null,null,null,null,null,null,null,null,null,null,null,null,null,"",0,0,0,0,0,0,0,0,0,null,null,null,null,null,null,0,0,0,null,null,null,{"$f":"#VALUE!","v":{"$error":"#VALUE!"}},{"$f":"#VALUE!","v":{"$error":"#VALUE!"}}]
[null,null,0,null,null,0,null,null,null,null,null,null,null,null,null,null,0,null,null,null,null,null,null,null,null,null,0,null,null,null,null,null,null,null,null,null,null,null,null,null,null,null,null,null,null,null,null,null,null,null,null,null,null,null,null,null,null,null,null,null,null,null,null,"",0,0,0,0,0,0,0,0,0,null,null,null,null,null,null,0,0,0,null,null,null,{"$f":"#VALUE!","v":{"$error":"#VALUE!"}},{"$f":"#VALUE!","v":{"$error":"#VALUE!"}}]
[null,null,0,null,null,0,null,null,null,null,null,null,null,null,null,null,0,null,null,null,null,null,null,null,null,null,0,null,null,null,null,null,null,null,null,null,null,null,null,null,null,null,null,null,null,null,null,null,null,null,null,null,null,null,null,null,null,null,null,null,null,null,null,"",0,0,0,0,0,0,0,0,0,null,null,null,null,null,null,0,0,0,null,null,null,{"$f":"#VALUE!","v":{"$error":"#VALUE!"}},{"$f":"#VALUE!","v":{"$error":"#VALUE!"}}]
[null,null,0,null,null,0,null,null,null,null,null,null,null,null,null,null,0,null,null,null,null,null,null,null,null,null,0,null,null,null,null,null,null,null,null,null,null,null,null,null,null,null,null,null,null,null,null,null,null,null,null,null,null,null,null,null,null,null,null,null,null,null,null,"",0,0,0,0,0,0,0,0,0,null,null,null,null,null,null,0,0,0,null,null,null,{"$f":"#VALUE!","v":{"$error":"#VALUE!"}},{"$f":"#VALUE!","v":{"$error":"#VALUE!"}}]
[null,null,0,null,null,0,null,null,null,null,null,null,null,null,null,null,0,null,null,null,null,null,null,null,null,null,0,null,null,null,null,null,null,null,null,null,null,null,null,null,null,null,null,null,null,null,null,null,null,null,null,null,null,null,null,null,null,null,null,null,null,null,null,"",0,0,0,0,0,0,0,0,0,null,null,null,null,null,null,0,0,0,null,null,null,{"$f":"#VALUE!","v":{"$error":"#VALUE!"}},{"$f":"#VALUE!","v":{"$error":"#VALUE!"}}]
[null,null,0,null,null,0,null,null,null,null,null,null,null,null,null,null,0,null,null,null,null,null,null,null,null,null,0,null,null,null,null,null,null,null,null,null,null,null,null,null,null,null,null,null,null,null,null,null,null,null,null,null,null,null,null,null,null,null,null,null,null,null,null,"",0,0,0,0,0,0,0,0,0,null,null,null,null,null,null,0,0,0,null,null,null,{"$f":"#VALUE!","v":{"$error":"#VALUE!"}},{"$f":"#VALUE!","v":{"$error":"#VALUE!"}}]
[null,null,0,null,null,0,null,null,null,null,null,null,null,null,null,null,0,null,null,null,null,null,null,null,null,null,0,null,null,null,null,null,null,null,null,null,null,null,null,null,null,null,null,null,null,null,null,null,null,null,null,null,null,null,null,null,null,null,null,null,null,null,null,"",0,0,0,0,0,0,0,0,0,null,null,null,null,null,null,0,0,0,null,null,null,{"$f":"#VALUE!","v":{"$error":"#VALUE!"}},{"$f":"#VALUE!","v":{"$error":"#VALUE!"}}]
[null,null,0,null,null,0,null,null,null,null,null,null,null,null,null,null,0,null,null,null,null,null,null,null,null,null,0,null,null,null,null,null,null,null,null,null,null,null,null,null,null,null,null,null,null,null,null,null,null,null,null,null,null,null,null,null,null,null,null,null,null,null,null,"",0,0,0,0,0,0,0,0,0,null,null,null,null,null,null,0,0,0,null,null,null,{"$f":"#VALUE!","v":{"$error":"#VALUE!"}},{"$f":"#VALUE!","v":{"$error":"#VALUE!"}}]
[null,null,0,null,null,0,null,null,null,null,null,null,null,null,null,null,0,null,null,null,null,null,null,null,null,null,0,null,null,null,null,null,null,null,null,null,null,null,null,null,null,null,null,null,null,null,null,null,null,null,null,null,null,null,null,null,null,null,null,null,null,null,null,"",0,0,0,0,0,0,0,0,0,null,null,null,null,null,null,0,0,0,null,null,null,{"$f":"#VALUE!","v":{"$error":"#VALUE!"}},{"$f":"#VALUE!","v":{"$error":"#VALUE!"}}]
[null,null,0,null,null,0,null,null,null,null,null,null,null,null,null,null,0,null,null,null,null,null,null,null,null,null,0,null,null,null,null,null,null,null,null,null,null,null,null,null,null,null,null,null,null,null,null,null,null,null,null,null,null,null,null,null,null,null,null,null,null,null,null,"",0,0,0,0,0,0,0,0,0,null,null,null,null,null,null,0,0,0,null,null,null,{"$f":"#VALUE!","v":{"$error":"#VALUE!"}},{"$f":"#VALUE!","v":{"$error":"#VALUE!"}}]
[null,null,0,null,null,0,null,null,null,null,null,null,null,null,null,null,0,null,null,null,null,null,null,null,null,null,0,null,null,null,null,null,null,null,null,null,null,null,null,null,null,null,null,null,null,null,null,null,null,null,null,null,null,null,null,null,null,null,null,null,null,null,null,"",0,0,0,0,0,0,0,0,0,null,null,null,null,null,null,0,0,0,null,null,null,{"$f":"#VALUE!","v":{"$error":"#VALUE!"}},{"$f":"#VALUE!","v":{"$error":"#VALUE!"}}]
[null,null,0,null,null,0,null,null,null,null,null,null,null,null,null,null,0,null,null,null,null,null,null,null,null,null,0,null,null,null,null,null,null,null,null,null,null,null,null,null,null,null,null,null,null,null,null,null,null,null,null,null,null,null,null,null,null,null,null,null,null,null,null,"",0,0,0,0,0,0,0,0,0,null,null,null,null,null,null,0,0,0,null,null,null,{"$f":"#VALUE!","v":{"$error":"#VALUE!"}},{"$f":"#VALUE!","v":{"$error":"#VALUE!"}}]
[null,null,0,null,null,0,null,null,null,null,null,null,null,null,null,null,0,null,null,null,null,null,null,null,null,null,0,null,null,null,null,null,null,null,null,null,null,null,null,null,null,null,null,null,null,null,null,null,null,null,null,null,null,null,null,null,null,null,null,null,null,null,null,"",0,0,0,0,0,0,0,0,0,null,null,null,null,null,null,0,0,0,null,null,null,{"$f":"#VALUE!","v":{"$error":"#VALUE!"}},{"$f":"#VALUE!","v":{"$error":"#VALUE!"}}]
[null,null,0,null,null,0,null,null,null,null,null,null,null,null,null,null,0,null,null,null,null,null,null,null,null,null,0,null,null,null,null,null,null,null,null,null,null,null,null,null,null,null,null,null,null,null,null,null,null,null,null,null,null,null,null,null,null,null,null,null,null,null,null,"",0,0,0,0,0,0,0,0,0,null,null,null,null,null,null,0,0,0,null,null,null,{"$f":"#VALUE!","v":{"$error":"#VALUE!"}},{"$f":"#VALUE!","v":{"$error":"#VALUE!"}}]
[null,null,0,null,null,0,null,null,null,null,null,null,null,null,null,null,0,null,null,null,null,null,null,null,null,null,0,null,null,null,null,null,null,null,null,null,null,null,null,null,null,null,null,null,null,null,null,null,null,null,null,null,null,null,null,null,null,null,null,null,null,null,null,"",0,0,0,0,0,0,0,0,0,null,null,null,null,null,null,0,0,0,null,null,null,{"$f":"#VALUE!","v":{"$error":"#VALUE!"}},{"$f":"#VALUE!","v":{"$error":"#VALUE!"}}]
[null,null,0,null,null,0,null,null,null,null,null,null,null,null,null,null,0,null,null,null,null,null,null,null,null,null,0,null,null,null,null,null,null,null,null,null,null,null,null,null,null,null,null,null,null,null,null,null,null,null,null,null,null,null,null,null,null,null,null,null,null,null,null,"",0,0,0,0,0,0,0,0,0,null,null,null,null,null,null,0,0,0,null,null,null,{"$f":"#VALUE!","v":{"$error":"#VALUE!"}},{"$f":"#VALUE!","v":{"$error":"#VALUE!"}}]
[null,null,0,null,null,0,null,null,null,null,null,null,null,null,null,null,0,null,null,null,null,null,null,null,null,null,0,null,null,null,null,null,null,null,null,null,null,null,null,null,null,null,null,null,null,null,null,null,null,null,null,null,null,null,null,null,null,null,null,null,null,null,null,"",0,0,0,0,0,0,0,0,0,null,null,null,null,null,null,0,0,0,null,null,null,{"$f":"#VALUE!","v":{"$error":"#VALUE!"}},{"$f":"#VALUE!","v":{"$error":"#VALUE!"}}]
[null,null,0,null,null,0,null,null,null,null,null,null,null,null,null,null,0,null,null,null,null,null,null,null,null,null,0,null,null,null,null,null,null,null,null,null,null,null,null,null,null,null,null,null,null,null,null,null,null,null,null,null,null,null,null,null,null,null,null,null,null,null,null,"",0,0,0,0,0,0,0,0,0,null,null,null,null,null,null,0,0,0,null,null,null,{"$f":"#VALUE!","v":{"$error":"#VALUE!"}},{"$f":"#VALUE!","v":{"$error":"#VALUE!"}}]
[null,null,0,null,null,0,null,null,null,null,null,null,null,null,null,null,0,null,null,null,null,null,null,null,null,null,0,null,null,null,null,null,null,null,null,null,null,null,null,null,null,null,null,null,null,null,null,null,null,null,null,null,null,null,null,null,null,null,null,null,null,null,null,"",0,0,0,0,0,0,0,0,0,null,null,null,null,null,null,0,0,0,null,null,null,{"$f":"#VALUE!","v":{"$error":"#VALUE!"}},{"$f":"#VALUE!","v":{"$error":"#VALUE!"}}]
[null,null,0,null,null,0,null,null,null,null,null,null,null,null,null,null,0,null,null,null,null,null,null,null,null,null,0,null,null,null,null,null,null,null,null,null,null,null,null,null,null,null,null,null,null,null,null,null,null,null,null,null,null,null,null,null,null,null,null,null,null,null,null,"",0,0,0,0,0,0,0,0,0,null,null,null,null,null,null,0,0,0,null,null,null,{"$f":"#VALUE!","v":{"$error":"#VALUE!"}},{"$f":"#VALUE!","v":{"$error":"#VALUE!"}}]
[null,null,0,null,null,0,null,null,null,null,null,null,null,null,null,null,0,null,null,null,null,null,null,null,null,null,0,null,null,null,null,null,null,null,null,null,null,null,null,null,null,null,null,null,null,null,null,null,null,null,null,null,null,null,null,null,null,null,null,null,null,null,null,"",0,0,0,0,0,0,0,0,0,null,null,null,null,null,null,0,0,0,null,null,null,{"$f":"#VALUE!","v":{"$error":"#VALUE!"}},{"$f":"#VALUE!","v":{"$error":"#VALUE!"}}]
[null,null,0,null,null,0,null,null,null,null,null,null,null,null,null,null,0,null,null,null,null,null,null,null,null,null,0,null,null,null,null,null,null,null,null,null,null,null,null,null,null,null,null,null,null,null,null,null,null,null,null,null,null,null,null,null,null,null,null,null,null,null,null,"",0,0,0,0,0,0,0,0,0,null,null,null,null,null,null,0,0,0,null,null,null,{"$f":"#VALUE!","v":{"$error":"#VALUE!"}},{"$f":"#VALUE!","v":{"$error":"#VALUE!"}}]
[null,null,0,null,null,0,null,null,null,null,null,null,null,null,null,null,0,null,null,null,null,null,null,null,null,null,0,null,null,null,null,null,null,null,null,null,null,null,null,null,null,null,null,null,null,null,null,null,null,null,null,null,null,null,null,null,null,null,null,null,null,null,null,"",0,0,0,0,0,0,0,0,0,null,null,null,null,null,null,0,0,0,null,null,null,{"$f":"#VALUE!","v":{"$error":"#VALUE!"}},{"$f":"#VALUE!","v":{"$error":"#VALUE!"}}]
[null,null,0,null,null,0,null,null,null,null,null,null,null,null,null,null,0,null,null,null,null,null,null,null,null,null,0,null,null,null,null,null,null,null,null,null,null,null,null,null,null,null,null,null,null,null,null,null,null,null,null,null,null,null,null,null,null,null,null,null,null,null,null,"",0,0,0,0,0,0,0,0,0,null,null,null,null,null,null,0,0,0,null,null,null,{"$f":"#VALUE!","v":{"$error":"#VALUE!"}},{"$f":"#VALUE!","v":{"$error":"#VALUE!"}}]
[null,null,0,null,null,0,null,null,null,null,null,null,null,null,null,null,0,null,null,null,null,null,null,null,null,null,0,null,null,null,null,null,null,null,null,null,null,null,null,null,null,null,null,null,null,null,null,null,null,null,null,null,null,null,null,null,null,null,null,null,null,null,null,"",0,0,0,0,0,0,0,0,0,null,null,null,null,null,null,0,0,0,null,null,null,{"$f":"#VALUE!","v":{"$error":"#VALUE!"}},{"$f":"#VALUE!","v":{"$error":"#VALUE!"}}]
[null,null,0,null,null,0,null,null,null,null,null,null,null,null,null,null,0,null,null,null,null,null,null,null,null,null,0,null,null,null,null,null,null,null,null,null,null,null,null,null,null,null,null,null,null,null,null,null,null,null,null,null,null,null,null,null,null,null,null,null,null,null,null,"",0,0,0,0,0,0,0,0,0,null,null,null,null,null,null,0,0,0,null,null,null,{"$f":"#VALUE!","v":{"$error":"#VALUE!"}},{"$f":"#VALUE!","v":{"$error":"#VALUE!"}}]
[null,null,0,null,null,0,null,null,null,null,null,null,null,null,null,null,0,null,null,null,null,null,null,null,null,null,0,null,null,null,null,null,null,null,null,null,null,null,null,null,null,null,null,null,null,null,null,null,null,null,null,null,null,null,null,null,null,null,null,null,null,null,null,"",0,0,0,0,0,0,0,0,0,null,null,null,null,null,null,0,0,0,null,null,null,{"$f":"#VALUE!","v":{"$error":"#VALUE!"}},{"$f":"#VALUE!","v":{"$error":"#VALUE!"}}]
[null,null,0,null,null,0,null,null,null,null,null,null,null,null,null,null,0,null,null,null,null,null,null,null,null,null,0,null,null,null,null,null,null,null,null,null,null,null,null,null,null,null,null,null,null,null,null,null,null,null,null,null,null,null,null,null,null,null,null,null,null,null,null,"",0,0,0,0,0,0,0,0,0,null,null,null,null,null,null,0,0,0,null,null,null,{"$f":"#VALUE!","v":{"$error":"#VALUE!"}},{"$f":"#VALUE!","v":{"$error":"#VALUE!"}}]
[null,null,0,null,null,0,null,null,null,null,null,null,null,null,null,null,0,null,null,null,null,null,null,null,null,null,0,null,null,null,null,null,null,null,null,null,null,null,null,null,null,null,null,null,null,null,null,null,null,null,null,null,null,null,null,null,null,null,null,null,null,null,null,"",0,0,0,0,0,0,0,0,0,null,null,null,null,null,null,0,0,0,null,null,null,{"$f":"#VALUE!","v":{"$error":"#VALUE!"}},{"$f":"#VALUE!","v":{"$error":"#VALUE!"}}]
[null,null,0,null,null,0,null,null,null,null,null,null,null,null,null,null,0,null,null,null,null,null,null,null,null,null,0,null,null,null,null,null,null,null,null,null,null,null,null,null,null,null,null,null,null,null,null,null,null,null,null,null,null,null,null,null,null,null,null,null,null,null,null,"",0,0,0,0,0,0,0,0,0,null,null,null,null,null,null,0,0,0,null,null,null,{"$f":"#VALUE!","v":{"$error":"#VALUE!"}},{"$f":"#VALUE!","v":{"$error":"#VALUE!"}}]
[null,null,0,null,null,0,null,null,null,null,null,null,null,null,null,null,0,null,null,null,null,null,null,null,null,null,0,null,null,null,null,null,null,null,null,null,null,null,null,null,null,null,null,null,null,null,null,null,null,null,null,null,null,null,null,null,null,null,null,null,null,null,null,"",0,0,0,0,0,0,0,0,0,null,null,null,null,null,null,0,0,0,null,null,null,{"$f":"#VALUE!","v":{"$error":"#VALUE!"}},{"$f":"#VALUE!","v":{"$error":"#VALUE!"}}]
[null,null,0,null,null,0,null,null,null,null,null,null,null,null,null,null,0,null,null,null,null,null,null,null,null,null,0,null,null,null,null,null,null,null,null,null,null,null,null,null,null,null,null,null,null,null,null,null,null,null,null,null,null,null,null,null,null,null,null,null,null,null,null,"",0,0,0,0,0,0,0,0,0,null,null,null,null,null,null,0,0,0,null,null,null,{"$f":"#VALUE!","v":{"$error":"#VALUE!"}},{"$f":"#VALUE!","v":{"$error":"#VALUE!"}}]
[null,null,0,null,null,0,null,null,null,null,null,null,null,null,null,null,0,null,null,null,null,null,null,null,null,null,0,null,null,null,null,null,null,null,null,null,null,null,null,null,null,null,null,null,null,null,null,null,null,null,null,null,null,null,null,null,null,null,null,null,null,null,null,"",0,0,0,0,0,0,0,0,0,null,null,null,null,null,null,0,0,0,null,null,null,{"$f":"#VALUE!","v":{"$error":"#VALUE!"}},{"$f":"#VALUE!","v":{"$error":"#VALUE!"}}]
[null,null,0,null,null,0,null,null,null,null,null,null,null,null,null,null,0,null,null,null,null,null,null,null,null,null,0,null,null,null,null,null,null,null,null,null,null,null,null,null,null,null,null,null,null,null,null,null,null,null,null,null,null,null,null,null,null,null,null,null,null,null,null,"",0,0,0,0,0,0,0,0,0,null,null,null,null,null,null,0,0,0,null,null,null,{"$f":"#VALUE!","v":{"$error":"#VALUE!"}},{"$f":"#VALUE!","v":{"$error":"#VALUE!"}}]
[null,null,0,null,null,0,null,null,null,null,null,null,null,null,null,null,0,null,null,null,null,null,null,null,null,null,0,null,null,null,null,null,null,null,null,null,null,null,null,null,null,null,null,null,null,null,null,null,null,null,null,null,null,null,null,null,null,null,null,null,null,null,null,"",0,0,0,0,0,0,0,0,0,null,null,null,null,null,null,0,0,0,null,null,null,{"$f":"#VALUE!","v":{"$error":"#VALUE!"}},{"$f":"#VALUE!","v":{"$error":"#VALUE!"}}]
[null,null,0,null,null,0,null,null,null,null,null,null,null,null,null,null,0,null,null,null,null,null,null,null,null,null,0,null,null,null,null,null,null,null,null,null,null,null,null,null,null,null,null,null,null,null,null,null,null,null,null,null,null,null,null,null,null,null,null,null,null,null,null,"",0,0,0,0,0,0,0,0,0,null,null,null,null,null,null,0,0,0,null,null,null,{"$f":"#VALUE!","v":{"$error":"#VALUE!"}},{"$f":"#VALUE!","v":{"$error":"#VALUE!"}}]
[null,null,0,null,null,0,null,null,null,null,null,null,null,null,null,null,{"$f":"IF(E260=\"متزوج\",2,IF(E260=\"متزوج+1\",4,IF(E260=\"متزوج+2\",6,IF(E260=\"متزوجة\",2,0))))","v":0},null,null,null,null,null,null,null,null,null,0,null,null,null,null,null,null,null,null,null,null,null,null,null,null,null,null,null,null,null,null,null,null,null,null,null,null,null,null,null,null,null,null,null,null,null,null,"",0,0,0,{"$f":"INT(IF(H260=\"عامل تعاقد\",I260*25/100,IF(H260=\"معلم مساعد\",I260*25/100,IF(H260=\"معلم\",I260*25/100,IF(H260=\"معلم أول\",I260*25/100,IF(H260=\"معلم أول أ\",I260*25/100,IF(H260=\"خبير\",I260*25/100,IF(H260=\"كبير\",I260*25/100,))))))))","v":0},{"$f":"INT(IF(H260=\"إدارى\",J260*0/100,IF(H260=\"معلم مساعد\",I260*125/100,IF(H260=\"معلم\",I260*75/100,IF(H260=\"معلم أول\",I260*50/100,IF(H260=\"معلم أول أ\",I260*25/100,IF(H260=\"خبير\",I260*25/100,IF(H260=\"كبير\",I260*25/100,))))))))","v":0},{"$f":"INT(IF(H260=\"عامل تعاقد\",I260*0.9166,IF(H260=\"معلم تعاقد\",I260*0.9166,0)))","v":0},{"$f":"INT(IF(H260=\"عامل تعاقد\",I260*0.5,IF(H260=\"معلم تعاقد\",I260*0.5,0)))","v":0},{"$f":"INT(IF(F260=1,I260*0.3333,0))","v":0},{"$f":"IF(H260=\"عامل تعاقد\",225,IF(H260=\"معلم تعاقد\",300,0))","v":0},null,null,null,null,null,null,0,{"$f":"IF(CB260<250,(CB260*0.006),IF(CB260<500,(CB260*0.0065),IF(CB260<1000,(CB260*0.007),IF(CB260<5000,(CB260*0.0075),IF(CB260>5000,(CB260*0.008),\" \" )))))","v":0},0,null,null,null,{"$f":"#VALUE!","v":{"$error":"#VALUE!"}},{"$f":"#VALUE!","v":{"$error":"#VALUE!"}}]
[null,null,0,null,null,0,null,null,null,null,null,null,null,null,null,null,{"$f":"IF(E261=\"متزوج\",2,IF(E261=\"متزوج+1\",4,IF(E261=\"متزوج+2\",6,IF(E261=\"متزوجة\",2,0))))","v":0},null,null,null,null,null,null,null,null,null,{"$f":"BU261","v":0},null,null,null,null,null,null,null,null,null,null,null,null,null,null,null,null,null,null,null,null,null,null,null,null,null,null,null,null,null,null,null,null,null,null,null,null,{"$f":"IF(H261=\"معلم مساعد\",10,IF(H261=\"معلم تعاقد\",10,IF(H261=\"معلم\",10,IF(H261=\"معلم أول\",10,IF(H261=\"معلم أول أ\",10,IF(H261=\"خبير\",10,IF(H261=\"كبير\",10,IF(H261=\"عامل تعاقد\",0,\"\"))))))))","v":""},{"$f":"IF(H261=\"عقد مميز\",I261*0/100,IF(H261=\"معلم تعاقد\",I261*0/100,IF(H261=\"معلم\",I261*50/100,IF(H261=\"معلم أول\",I261*50/100,IF(H261=\"معلم أول أ\",I261*50/100,IF(H261=\"خبير\",I261*50/100,IF(H261=\"كبير\",I261*50/100,)))))))","v":0},{"$f":"IF(H261=\"معلم مساعد\",I261*50/100,IF(H261=\"عامل تعاقد\",I261*0/100,IF(H261=\"معلم\",I261*50/100,IF(H261=\"معلم أول\",I261*50/100,IF(H261=\"معلم أول أ\",I261*50/100,IF(H261=\"خبير\",I261*50/100,IF(H261=\"كبير\",I261*50/100,)))))))","v":0},0,0,0,0,0,0,0,null,null,null,null,null,null,0,{"$f":"IF(CB261<250,(CB261*0.006),IF(CB261<500,(CB261*0.0065),IF(CB261<1000,(CB261*0.007),IF(CB261<5000,(CB261*0.0075),IF(CB261>5000,(CB261*0.008),\" \" )))))","v":0},{"$f":"CEILING($CC261,0.05)","v":0},null,null,null,{"$f":"#VALUE!","v":{"$error":"#VALUE!"}},{"$f":"#VALUE!","v":{"$error":"#VALUE!"}}]
[null,null,null,null,null,null,null,null,null,null,null,null,null,null,null,null,null,null,null,null,null,null,null,null,null,null,null,null,null,null,null,null,null,null,null,null,null,null,null,null,null,null,null,null,null,null,null,null,null,null,null,null,null,null,null,null,null,null,null,null,null,null,null,"",0,0,{"$f":"IF(H262=\"إدارى\",I262*0,IF(H262=\"معلم مساعد\",I262*0/100,IF(H262=\"معلم\",I262*50/100,IF(H262=\"معلم أول\",I262*75/100,IF(H262=\"معلم أول أ\",I262*100/100,IF(H262=\"خبير\",I262*125/100,IF(H262=\"كبير\",I262*150/100,)))))))","v":0},0,0,0,0,0,0,null,null,null,null,null,null,null,null,null,null,null,null,{"$f":"#VALUE!","v":{"$error":"#VALUE!"}},{"$f":"#VALUE!","v":{"$error":"#VALUE!"}}]
[null,null,null,null,null,null,null,null,null,null,null,null,null,null,null,null,null,null,null,null,null,null,null,null,null,null,null,null,null,null,null,null,null,null,null,null,null,null,null,null,null,null,null,null,null,null,null,null,null,null,null,null,null,null,null,null,null,null,null,null,null,null,null,"",0,0,0,0,0,0,0,0,0,null,null,null,null,null,null,null,null,null,null,null,null,{"$f":"#VALUE!","v":{"$error":"#VALUE!"}},{"$f":"#VALUE!","v":{"$error":"#VALUE!"}}]
[null,null,null,null,null,null,null,null,null,null,null,null,null,null,null,null,null,null,null,null,null,null,null,null,null,null,null,null,null,null,null,null,null,null,null,null,null,null,null,null,null,null,null,null,null,null,null,null,null,null,null,null,null,null,null,null,null,null,null,null,null,null,null,"",0,0,0,0,0,0,0,0,0,null,null,null,null,null,null,null,null,null,null,null,null,{"$f":"#VALUE!","v":{"$error":"#VALUE!"}},{"$f":"#VALUE!","v":{"$error":"#VALUE!"}}]
[null,null,null,null,null,null,null,null,null,null,null,null,null,null,null,null,null,null,null,null,null,null,null,null,null,null,null,null,null,null,null,null,null,null,null,null,null,null,null,null,null,null,null,null,null,null,null,null,null,null,null,null,null,null,null,null,null,null,null,null,null,null,null,"",0,0,0,0,0,0,0,0,0,null,null,null,null,null,null,null,null,null,null,null,null,{"$f":"#VALUE!","v":{"$error":"#VALUE!"}},{"$f":"#VALUE!","v":{"$error":"#VALUE!"}}]
[null,null,null,null,null,null,null,null,null,null,null,null,null,null,null,null,null,null,null,null,null,null,null,null,null,null,null,null,null,null,null,null,null,null,null,null,null,null,null,null,null,null,null,null,null,null,null,null,null,null,null,null,null,null,null,null,null,null,null,null,null,null,null,"",0,0,0,0,0,0,0,0,0,null,null,null,null,null,null,null,null,null,null,null,null,{"$f":"#VALUE!","v":{"$error":"#VALUE!"}},{"$f":"#VALUE!","v":{"$error":"#VALUE!"}}]
[null,null,null,null,null,null,null,null,null,null,null,null,null,null,null,null,null,null,null,null,null,null,null,null,null,null,null,null,null,null,null,null,null,null,null,null,null,null,null,null,null,null,null,null,null,null,null,null,null,null,null,null,null,null,null,null,null,null,null,null,null,null,null,"",0,0,0,0,0,0,0,0,0,null,null,null,null,null,null,null,null,null,null,null,null,{"$f":"#VALUE!","v":{"$error":"#VALUE!"}},{"$f":"#VALUE!","v":{"$error":"#VALUE!"}}]
[null,null,null,null,null,null,null,null,null,null,null,null,null,null,null,null,null,null,null,null,null,null,null,null,null,null,null,null,null,null,null,null,null,null,null,null,null,null,null,null,null,null,null,null,null,null,null,null,null,null,null,null,null,null,null,null,null,null,null,null,null,null,null,"",0,0,0,0,0,0,0,0,0,null,null,null,null,null,null,null,null,null,null,null,null,{"$f":"#VALUE!","v":{"$error":"#VALUE!"}},{"$f":"#VALUE!","v":{"$error":"#VALUE!"}}]
[null,null,null,null,null,null,null,null,null,null,null,null,null,null,null,null,null,null,null,null,null,null,null,null,null,null,null,null,null,null,null,null,null,null,null,null,null,null,null,null,null,null,null,null,null,null,null,null,null,null,null,null,null,null,null,null,null,null,null,null,null,null,null,"",0,0,0,0,0,0,0,0,0,null,null,null,null,null,null,null,null,null,null,null,null,{"$f":"#VALUE!","v":{"$error":"#VALUE!"}},{"$f":"#VALUE!","v":{"$error":"#VALUE!"}}]
[null,null,null,null,null,null,null,null,null,null,null,null,null,null,null,null,null,null,null,null,null,null,null,null,null,null,null,null,null,null,null,null,null,null,null,null,null,null,null,null,null,null,null,null,null,null,null,null,null,null,null,null,null,null,null,null,null,null,null,null,null,null,null,"",0,0,0,0,0,0,0,0,0,null,null,null,null,null,null,null,null,null,null,null,null,{"$f":"#VALUE!","v":{"$error":"#VALUE!"}},{"$f":"#VALUE!","v":{"$error":"#VALUE!"}}]
[null,null,null,null,null,null,null,null,null,null,null,null,null,null,null,null,null,null,null,null,null,null,null,null,null,null,null,null,null,null,null,null,null,null,null,null,null,null,null,null,null,null,null,null,null,null,null,null,null,null,null,null,null,null,null,null,null,null,null,null,null,null,null,"",0,0,0,0,0,0,0,0,0,null,null,null,null,null,null,null,null,null,null,null,null,{"$f":"#VALUE!","v":{"$error":"#VALUE!"}},{"$f":"#VALUE!","v":{"$error":"#VALUE!"}}]
[null,null,null,null,null,null,null,null,null,null,null,null,null,null,null,null,null,null,null,null,null,null,null,null,null,null,null,null,null,null,null,null,null,null,null,null,null,null,null,null,null,null,null,null,null,null,null,null,null,null,null,null,null,null,null,null,null,null,null,null,null,null,null,"",0,0,0,0,0,0,0,0,0,null,null,null,null,null,null,null,null,null,null,null,null,{"$f":"#VALUE!","v":{"$error":"#VALUE!"}},{"$f":"#VALUE!","v":{"$error":"#VALUE!"}}]
[null,null,null,null,null,null,null,null,null,null,null,null,null,null,null,null,null,null,null,null,null,null,null,null,null,null,null,null,null,null,null,null,null,null,null,null,null,null,null,null,null,null,null,null,null,null,null,null,null,null,null,null,null,null,null,null,null,null,null,null,null,null,null,"",0,0,0,0,0,0,0,0,0,null,null,null,null,null,null,null,null,null,null,null,null,{"$f":"#VALUE!","v":{"$error":"#VALUE!"}},{"$f":"#VALUE!","v":{"$error":"#VALUE!"}}]
[null,null,null,null,null,null,null,null,null,null,null,null,null,null,null,null,null,null,null,null,null,null,null,null,null,null,null,null,null,null,null,null,null,null,null,null,null,null,null,null,null,null,null,null,null,null,null,null,null,null,null,null,null,null,null,null,null,null,null,null,null,null,null,"",0,0,0,0,0,0,0,0,0,null,null,null,null,null,null,null,null,null,null,null,null,{"$f":"#VALUE!","v":{"$error":"#VALUE!"}},{"$f":"#VALUE!","v":{"$error":"#VALUE!"}}]
[null,null,null,null,null,null,null,null,null,null,null,null,null,null,null,null,null,null,null,null,null,null,null,null,null,null,null,null,null,null,null,null,null,null,null,null,null,null,null,null,null,null,null,null,null,null,null,null,null,null,null,null,null,null,null,null,null,null,null,null,null,null,null,"",0,0,0,0,0,0,0,0,0,null,null,null,null,null,null,null,null,null,null,null,null,{"$f":"#VALUE!","v":{"$error":"#VALUE!"}},{"$f":"#VALUE!","v":{"$error":"#VALUE!"}}]
[null,null,null,null,null,null,null,null,null,null,null,null,null,null,null,null,null,null,null,null,null,null,null,null,null,null,null,null,null,null,null,null,null,null,null,null,null,null,null,null,null,null,null,null,null,null,null,null,null,null,null,null,null,null,null,null,null,null,null,null,null,null,null,"",0,0,0,0,0,0,0,0,0,null,null,null,null,null,null,null,null,null,null,null,null,{"$f":"#VALUE!","v":{"$error":"#VALUE!"}},{"$f":"#VALUE!","v":{"$error":"#VALUE!"}}]
[null,null,null,null,null,null,null,null,null,null,null,null,null,null,null,null,null,null,null,null,null,null,null,null,null,null,null,null,null,null,null,null,null,null,null,null,null,null,null,null,null,null,null,null,null,null,null,null,null,null,null,null,null,null,null,null,null,null,null,null,null,null,null,"",0,0,0,0,0,0,0,0,0,null,null,null,null,null,null,null,null,null,null,null,null,{"$f":"#VALUE!","v":{"$error":"#VALUE!"}},{"$f":"#VALUE!","v":{"$error":"#VALUE!"}}]
[null,null,null,null,null,null,null,null,null,null,null,null,null,null,null,null,null,null,null,null,null,null,null,null,null,null,null,null,null,null,null,null,null,null,null,null,null,null,null,null,null,null,null,null,null,null,null,null,null,null,null,null,null,null,null,null,null,null,null,null,null,null,null,"",0,0,0,0,0,0,0,0,0,null,null,null,null,null,null,null,null,null,null,null,null,{"$f":"#VALUE!","v":{"$error":"#VALUE!"}},{"$f":"#VALUE!","v":{"$error":"#VALUE!"}}]
[null,null,null,null,null,null,null,null,null,null,null,null,null,null,null,null,null,null,null,null,null,null,null,null,null,null,null,null,null,null,null,null,null,null,null,null,null,null,null,null,null,null,null,null,null,null,null,null,null,null,null,null,null,null,null,null,null,null,null,null,null,null,null,"",0,0,0,0,0,0,0,0,0,null,null,null,null,null,null,null,null,null,null,null,null,{"$f":"#VALUE!","v":{"$error":"#VALUE!"}},{"$f":"#VALUE!","v":{"$error":"#VALUE!"}}]
[null,null,null,null,null,null,null,null,null,null,null,null,null,null,null,null,null,null,null,null,null,null,null,null,null,null,null,null,null,null,null,null,null,null,null,null,null,null,null,null,null,null,null,null,null,null,null,null,null,null,null,null,null,null,null,null,null,null,null,null,null,null,null,"",0,0,0,0,0,0,0,0,0,null,null,null,null,null,null,null,null,null,null,null,null,{"$f":"#VALUE!","v":{"$error":"#VALUE!"}},{"$f":"#VALUE!","v":{"$error":"#VALUE!"}}]
[null,null,null,null,null,null,null,null,null,null,null,null,null,null,null,null,null,null,null,null,null,null,null,null,null,null,null,null,null,null,null,null,null,null,null,null,null,null,null,null,null,null,null,null,null,null,null,null,null,null,null,null,null,null,null,null,null,null,null,null,null,null,null,"",0,0,0,0,0,0,0,0,0,null,null,null,null,null,null,null,null,null,null,null,null,{"$f":"#VALUE!","v":{"$error":"#VALUE!"}},{"$f":"#VALUE!","v":{"$error":"#VALUE!"}}]
[null,null,null,null,null,null,null,null,null,null,null,null,null,null,null,null,null,null,null,null,null,null,null,null,null,null,null,null,null,null,null,null,null,null,null,null,null,null,null,null,null,null,null,null,null,null,null,null,null,null,null,null,null,null,null,null,null,null,null,null,null,null,null,"",0,0,0,0,0,0,0,0,0,null,null,null,null,null,null,null,null,null,null,null,null,{"$f":"#VALUE!","v":{"$error":"#VALUE!"}},{"$f":"#VALUE!","v":{"$error":"#VALUE!"}}]
[null,null,null,null,null,null,null,null,null,null,null,null,null,null,null,null,null,null,null,null,null,null,null,null,null,null,null,null,null,null,null,null,null,null,null,null,null,null,null,null,null,null,null,null,null,null,null,null,null,null,null,null,null,null,null,null,null,null,null,null,null,null,null,"",0,0,0,0,0,0,0,0,0,null,null,null,null,null,null,null,null,null,null,null,null,{"$f":"#VALUE!","v":{"$error":"#VALUE!"}},{"$f":"#VALUE!","v":{"$error":"#VALUE!"}}]
[null,null,null,null,null,null,null,null,null,null,null,null,null,null,null,null,null,null,null,null,null,null,null,null,null,null,null,null,null,null,null,null,null,null,null,null,null,null,null,null,null,null,null,null,null,null,null,null,null,null,null,null,null,null,null,null,null,null,null,null,null,null,null,"",0,{"$f":"FLOOR(IF(H284=\"إدارى\",I284*0,IF(H284=\"معلم مساعد\",I284*50/100,IF(H284=\"معلم\",I284*50/100,IF(H284=\"معلم أول\",I284*50/100,IF(H284=\"معلم أول أ\",I284*50/100,IF(H284=\"خبير\",I284*50/100,IF(H284=\"كبير\",I284*50/100,))))))),0.05)","v":0},0,0,0,0,0,0,0,null,null,null,null,null,null,null,null,null,null,null,null,{"$f":"#VALUE!","v":{"$error":"#VALUE!"}},{"$f":"#VALUE!","v":{"$error":"#VALUE!"}}]
[null,null,null,null,null,null,null,null,null,null,null,null,null,null,null,null,null,null,null,null,null,null,null,null,null,null,null,null,null,null,null,null,null,null,null,null,null,null,null,null,null,null,null,null,null,null,null,null,null,null,null,null,null,null,null,null,null,null,null,null,null,null,null,"",0,0,0,0,0,0,0,0,0,null,null,null,null,null,null,null,null,null,null,null,null,{"$f":"#VALUE!","v":{"$error":"#VALUE!"}},{"$f":"#VALUE!","v":{"$error":"#VALUE!"}}]
[null,null,null,null,null,null,null,null,null,null,null,null,null,null,null,null,null,null,null,null,null,null,null,null,null,null,null,null,null,null,null,null,null,null,null,null,null,null,null,null,null,null,null,null,null,null,null,null,null,null,null,null,null,null,null,null,null,null,null,null,null,null,null,"",0,0,0,0,0,0,0,0,0,null,null,null,null,null,null,null,null,null,null,null,null,{"$f":"#VALUE!","v":{"$error":"#VALUE!"}},{"$f":"#VALUE!","v":{"$error":"#VALUE!"}}]
[null,null,null,null,null,null,null,null,null,null,null,null,null,null,null,null,null,null,null,null,null,null,null,null,null,null,null,null,null,null,null,null,null,null,null,null,null,null,null,null,null,null,null,null,null,null,null,null,null,null,null,null,null,null,null,null,null,null,null,null,null,null,null,"",0,0,0,0,0,0,0,0,0,null,null,null,null,null,null,null,null,null,null,null,null,{"$f":"#VALUE!","v":{"$error":"#VALUE!"}},{"$f":"#VALUE!","v":{"$error":"#VALUE!"}}]
[null,null,null,null,null,null,null,null,null,null,null,null,null,null,null,null,null,null,null,null,null,null,null,null,null,null,null,null,null,null,null,null,null,null,null,null,null,null,null,null,null,null,null,null,null,null,null,null,null,null,null,null,null,null,null,null,null,null,null,null,null,null,null,"",0,0,0,0,0,0,0,0,0,null,null,null,null,null,null,null,null,null,null,null,null,{"$f":"#VALUE!","v":{"$error":"#VALUE!"}},{"$f":"#VALUE!","v":{"$error":"#VALUE!"}}]
[null,null,null,null,null,null,null,null,null,null,null,null,null,null,null,null,null,null,null,null,null,null,null,null,null,null,null,null,null,null,null,null,null,null,null,null,null,null,null,null,null,null,null,null,null,null,null,null,null,null,null,null,null,null,null,null,null,null,null,null,null,null,null,"",0,0,0,0,0,0,0,0,0,null,null,null,null,null,null,null,null,null,null,null,null,{"$f":"#VALUE!","v":{"$error":"#VALUE!"}},{"$f":"#VALUE!","v":{"$error":"#VALUE!"}}]
[null,null,null,null,null,null,null,null,null,null,null,null,null,null,null,null,null,null,null,null,null,null,null,null,null,null,null,null,null,null,null,null,null,null,null,null,null,null,null,null,null,null,null,null,null,null,null,null,null,null,null,null,null,null,null,null,null,null,null,null,null,null,null,"",0,0,0,0,0,0,0,0,0,null,null,null,null,null,null,null,null,null,null,null,null,{"$f":"#VALUE!","v":{"$error":"#VALUE!"}},{"$f":"#VALUE!","v":{"$error":"#VALUE!"}}]
[null,null,null,null,null,null,null,null,null,null,null,null,null,null,null,null,null,null,null,null,null,null,null,null,null,null,null,null,null,null,null,null,null,null,null,null,null,null,null,null,null,null,null,null,null,null,null,null,null,null,null,null,null,null,null,null,null,null,null,null,null,null,null,"",0,0,0,0,0,0,0,0,0,null,null,null,null,null,null,null,null,null,null,null,null,{"$f":"#VALUE!","v":{"$error":"#VALUE!"}},{"$f":"#VALUE!","v":{"$error":"#VALUE!"}}]
[null,null,null,null,null,null,null,null,null,null,null,null,null,null,null,null,null,null,null,null,null,null,null,null,null,null,null,null,null,null,null,null,null,null,null,null,null,null,null,null,null,null,null,null,null,null,null,null,null,null,null,null,null,null,null,null,null,null,null,null,null,null,null,"",0,0,0,0,0,0,0,0,0,null,null,null,null,null,null,null,null,null,null,null,null,{"$f":"#VALUE!","v":{"$error":"#VALUE!"}},{"$f":"#VALUE!","v":{"$error":"#VALUE!"}}]
[null,null,null,null,null,null,null,null,null,null,null,null,null,null,null,null,null,null,null,null,null,null,null,null,null,null,null,null,null,null,null,null,null,null,null,null,null,null,null,null,null,null,null,null,null,null,null,null,null,null,null,null,null,null,null,null,null,null,null,null,null,null,null,"",0,0,0,0,0,0,0,0,0,null,null,null,null,null,null,null,null,null,null,null,null,{"$f":"#VALUE!","v":{"$error":"#VALUE!"}},{"$f":"#VALUE!","v":{"$error":"#VALUE!"}}]
[null,null,null,null,null,null,null,null,null,null,null,null,null,null,null,null,null,null,null,null,null,null,null,null,null,null,null,null,null,null,null,null,null,null,null,null,null,null,null,null,null,null,null,null,null,null,null,null,null,null,null,null,null,null,null,null,null,null,null,null,null,null,null,"",0,0,0,0,0,0,0,0,0,null,null,null,null,null,null,null,null,null,null,null,null,{"$f":"#VALUE!","v":{"$error":"#VALUE!"}},{"$f":"#VALUE!","v":{"$error":"#VALUE!"}}]
[null,null,null,null,null,null,null,null,null,null,null,null,null,null,null,null,null,null,null,null,null,null,null,null,null,null,null,null,null,null,null,null,null,null,null,null,null,null,null,null,null,null,null,null,null,null,null,null,null,null,null,null,null,null,null,null,null,null,null,null,null,null,null,"",0,0,0,0,0,0,0,0,0,null,null,null,null,null,null,null,null,null,null,null,null,{"$f":"#VALUE!","v":{"$error":"#VALUE!"}},{"$f":"#VALUE!","v":{"$error":"#VALUE!"}}]
[null,null,null,null,null,null,null,null,null,null,null,null,null,null,null,null,null,null,null,null,null,null,null,null,null,null,null,null,null,null,null,null,null,null,null,null,null,null,null,null,null,null,null,null,null,null,null,null,null,null,null,null,null,null,null,null,null,null,null,null,null,null,null,"",0,0,0,0,0,0,0,0,0,null,null,null,null,null,null,null,null,null,null,null,null,{"$f":"#VALUE!","v":{"$error":"#VALUE!"}},{"$f":"#VALUE!","v":{"$error":"#VALUE!"}}]
[null,null,null,null,null,null,null,null,null,null,null,null,null,null,null,null,null,null,null,null,null,null,null,null,null,null,null,null,null,null,null,null,null,null,null,null,null,null,null,null,null,null,null,null,null,null,null,null,null,null,null,null,null,null,null,null,null,null,null,null,null,null,null,"",0,0,0,0,0,0,0,0,0,null,null,null,null,null,null,null,null,null,null,null,null,{"$f":"#VALUE!","v":{"$error":"#VALUE!"}},{"$f":"#VALUE!","v":{"$error":"#VALUE!"}}]
[null,null,null,null,null,null,null,null,null,null,null,null,null,null,null,null,null,null,null,null,null,null,null,null,null,null,null,null,null,null,null,null,null,null,null,null,null,null,null,null,null,null,null,null,null,null,null,null,null,null,null,null,null,null,null,null,null,null,null,null,null,null,null,"",0,0,0,0,0,0,0,0,0,null,null,null,null,null,null,null,null,null,null,null,null,{"$f":"#VALUE!","v":{"$error":"#VALUE!"}},{"$f":"#VALUE!","v":{"$error":"#VALUE!"}}]
[null,null,null,null,null,null,null,null,null,null,null,null,null,null,null,null,null,null,null,null,null,null,null,null,null,null,null,null,null,null,null,null,null,null,null,null,null,null,null,null,null,null,null,null,null,null,null,null,null,null,null,null,null,null,null,null,null,null,null,null,null,null,null,"",0,0,0,0,0,0,0,0,0,null,null,null,null,null,null,null,null,null,null,null,null,{"$f":"#VALUE!","v":{"$error":"#VALUE!"}},{"$f":"#VALUE!","v":{"$error":"#VALUE!"}}]
[null,null,null,null,null,null,null,null,null,null,null,null,null,null,null,null,null,null,null,null,null,null,null,null,null,null,null,null,null,null,null,null,null,null,null,null,null,null,null,null,null,null,null,null,null,null,null,null,null,null,null,null,null,null,null,null,null,null,null,null,null,null,null,"",0,0,0,0,0,0,0,0,0,null,null,null,null,null,null,null,null,null,null,null,null,{"$f":"#VALUE!","v":{"$error":"#VALUE!"}},{"$f":"#VALUE!","v":{"$error":"#VALUE!"}}]
[null,null,null,null,null,null,null,null,null,null,null,null,null,null,null,null,null,null,null,null,null,null,null,null,null,null,null,null,null,null,null,null,null,null,null,null,null,null,null,null,null,null,null,null,null,null,null,null,null,null,null,null,null,null,null,null,null,null,null,null,null,null,null,"",0,0,0,0,0,0,0,0,0,null,null,null,null,null,null,null,null,null,null,null,null,{"$f":"#VALUE!","v":{"$error":"#VALUE!"}},{"$f":"#VALUE!","v":{"$error":"#VALUE!"}}]
[null,null,null,null,null,null,null,null,null,null,null,null,null,null,null,null,null,null,null,null,null,null,null,null,null,null,null,null,null,null,null,null,null,null,null,null,null,null,null,null,null,null,null,null,null,null,null,null,null,null,null,null,null,null,null,null,null,null,null,null,null,null,null,"",0,0,0,0,0,0,0,0,0,null,null,null,null,null,null,null,null,null,null,null,null,{"$f":"#VALUE!","v":{"$error":"#VALUE!"}},{"$f":"#VALUE!","v":{"$error":"#VALUE!"}}]
[null,null,null,null,null,null,null,null,null,null,null,null,null,null,null,null,null,null,null,null,null,null,null,null,null,null,null,null,null,null,null,null,null,null,null,null,null,null,null,null,null,null,null,null,null,null,null,null,null,null,null,null,null,null,null,null,null,null,null,null,null,null,null,"",0,0,0,0,0,0,0,0,0,null,null,null,null,null,null,null,null,null,null,null,null,{"$f":"#VALUE!","v":{"$error":"#VALUE!"}},{"$f":"#VALUE!","v":{"$error":"#VALUE!"}}]
[null,null,null,null,null,null,null,null,null,null,null,null,null,null,null,null,null,null,null,null,null,null,null,null,null,null,null,null,null,null,null,null,null,null,null,null,null,null,null,null,null,null,null,null,null,null,null,null,null,null,null,null,null,null,null,null,null,null,null,null,null,null,null,"",0,0,0,0,0,0,0,0,0,null,null,null,null,null,null,null,null,null,null,null,null,{"$f":"#VALUE!","v":{"$error":"#VALUE!"}},{"$f":"#VALUE!","v":{"$error":"#VALUE!"}}]
[null,null,null,null,null,null,null,null,null,null,null,null,null,null,null,null,null,null,null,null,null,null,null,null,null,null,null,null,null,null,null,null,null,null,null,null,null,null,null,null,null,null,null,null,null,null,null,null,null,null,null,null,null,null,null,null,null,null,null,null,null,null,null,"",0,0,0,0,0,0,0,0,0,null,null,null,null,null,null,null,null,null,null,null,null,{"$f":"#VALUE!","v":{"$error":"#VALUE!"}},{"$f":"#VALUE!","v":{"$error":"#VALUE!"}}]
[null,null,null,null,null,null,null,null,null,null,null,null,null,null,null,null,null,null,null,null,null,null,null,null,null,null,null,null,null,null,null,null,null,null,null,null,null,null,null,null,null,null,null,null,null,null,null,null,null,null,null,null,null,null,null,null,null,null,null,null,null,null,null,"",0,0,0,0,0,0,0,0,0,null,null,null,null,null,null,null,null,null,null,null,null,{"$f":"#VALUE!","v":{"$error":"#VALUE!"}},{"$f":"#VALUE!","v":{"$error":"#VALUE!"}}]
[null,null,null,null,null,null,null,null,null,null,null,null,null,null,null,null,null,null,null,null,null,null,null,null,null,null,null,null,null,null,null,null,null,null,null,null,null,null,null,null,null,null,null,null,null,null,null,null,null,null,null,null,null,null,null,null,null,null,null,null,null,null,null,"",0,0,0,0,0,0,0,0,0,null,null,null,null,null,null,null,null,null,null,null,null,{"$f":"#VALUE!","v":{"$error":"#VALUE!"}},{"$f":"#VALUE!","v":{"$error":"#VALUE!"}}]
[null,null,null,null,null,null,null,null,null,null,null,null,null,null,null,null,null,null,null,null,null,null,null,null,null,null,null,null,null,null,null,null,null,null,null,null,null,null,null,null,null,null,null,null,null,null,null,null,null,null,null,null,null,null,null,null,null,null,null,null,null,null,null,"",0,0,0,0,0,0,0,0,0,null,null,null,null,null,null,null,null,null,null,null,null,{"$f":"#VALUE!","v":{"$error":"#VALUE!"}},{"$f":"#VALUE!","v":{"$error":"#VALUE!"}}]
[null,null,null,null,null,null,null,null,null,null,null,null,null,null,null,null,null,null,null,null,null,null,null,null,null,null,null,null,null,null,null,null,null,null,null,null,null,null,null,null,null,null,null,null,null,null,null,null,null,null,null,null,null,null,null,null,null,null,null,null,null,null,null,"",0,0,0,0,0,0,0,0,0,null,null,null,null,null,null,null,null,null,null,null,null,{"$f":"#VALUE!","v":{"$error":"#VALUE!"}},{"$f":"#VALUE!","v":{"$error":"#VALUE!"}}]
[null,null,null,null,null,null,null,null,null,null,null,null,null,null,null,null,null,null,null,null,null,null,null,null,null,null,null,null,null,null,null,null,null,null,null,null,null,null,null,null,null,null,null,null,null,null,null,null,null,null,null,null,null,null,null,null,null,null,null,null,null,null,null,"",0,0,0,0,0,0,0,0,0,null,null,null,null,null,null,null,null,null,null,null,null,{"$f":"#VALUE!","v":{"$error":"#VALUE!"}},{"$f":"#VALUE!","v":{"$error":"#VALUE!"}}]
[null,null,null,null,null,null,null,null,null,null,null,null,null,null,null,null,null,null,null,null,null,null,null,null,null,null,null,null,null,null,null,null,null,null,null,null,null,null,null,null,null,null,null,null,null,null,null,null,null,null,null,null,null,null,null,null,null,null,null,null,null,null,null,"",0,0,0,0,0,0,0,0,0,null,null,null,null,null,null,null,null,null,null,null,null,{"$f":"#VALUE!","v":{"$error":"#VALUE!"}},{"$f":"#VALUE!","v":{"$error":"#VALUE!"}}]
[null,null,null,null,null,null,null,null,null,null,null,null,null,null,null,null,null,null,null,null,null,null,null,null,null,null,null,null,null,null,null,null,null,null,null,null,null,null,null,null,null,null,null,null,null,null,null,null,null,null,null,null,null,null,null,null,null,null,null,null,null,null,null,"",0,0,0,0,0,0,0,0,0,null,null,null,null,null,null,null,null,null,null,null,null,{"$f":"#VALUE!","v":{"$error":"#VALUE!"}},{"$f":"#VALUE!","v":{"$error":"#VALUE!"}}]
[null,null,null,null,null,null,null,null,null,null,null,null,null,null,null,null,null,null,null,null,null,null,null,null,null,null,null,null,null,null,null,null,null,null,null,null,null,null,null,null,null,null,null,null,null,null,null,null,null,null,null,null,null,null,null,null,null,null,null,null,null,null,null,"",0,0,0,0,0,0,0,0,0,null,null,null,null,null,null,null,null,null,null,null,null,{"$f":"#VALUE!","v":{"$error":"#VALUE!"}},{"$f":"#VALUE!","v":{"$error":"#VALUE!"}}]
[null,null,null,null,null,null,null,null,null,null,null,null,null,null,null,null,null,null,null,null,null,null,null,null,null,null,null,null,null,null,null,null,null,null,null,null,null,null,null,null,null,null,null,null,null,null,null,null,null,null,null,null,null,null,null,null,null,null,null,null,null,null,null,"",0,0,0,0,0,0,0,0,0,null,null,null,null,null,null,null,null,null,null,null,null,{"$f":"#VALUE!","v":{"$error":"#VALUE!"}},{"$f":"#VALUE!","v":{"$error":"#VALUE!"}}]
[null,null,null,null,null,null,null,null,null,null,null,null,null,null,null,null,null,null,null,null,null,null,null,null,null,null,null,null,null,null,null,null,null,null,null,null,null,null,null,null,null,null,null,null,null,null,null,null,null,null,null,null,null,null,null,null,null,null,null,null,null,null,null,"",0,0,0,0,0,0,0,0,0,null,null,null,null,null,null,null,null,null,null,null,null,{"$f":"#VALUE!","v":{"$error":"#VALUE!"}},{"$f":"#VALUE!","v":{"$error":"#VALUE!"}}]
[null,null,null,null,null,null,null,null,null,null,null,null,null,null,null,null,null,null,null,null,null,null,null,null,null,null,null,null,null,null,null,null,null,null,null,null,null,null,null,null,null,null,null,null,null,null,null,null,null,null,null,null,null,null,null,null,null,null,null,null,null,null,null,"",0,0,0,0,0,0,0,0,0,null,null,null,null,null,null,null,null,null,null,null,null,{"$f":"#VALUE!","v":{"$error":"#VALUE!"}},{"$f":"#VALUE!","v":{"$error":"#VALUE!"}}]
[null,null,null,null,null,null,null,null,null,null,null,null,null,null,null,null,null,null,null,null,null,null,null,null,null,null,null,null,null,null,null,null,null,null,null,null,null,null,null,null,null,null,null,null,null,null,null,null,null,null,null,null,null,null,null,null,null,null,null,null,null,null,null,"",0,0,0,0,0,0,0,0,0,null,null,null,null,null,null,null,null,null,null,null,null,{"$f":"#VALUE!","v":{"$error":"#VALUE!"}},{"$f":"#VALUE!","v":{"$error":"#VALUE!"}}]
[null,null,null,null,null,null,null,null,null,null,null,null,null,null,null,null,null,null,null,null,null,null,null,null,null,null,null,null,null,null,null,null,null,null,null,null,null,null,null,null,null,null,null,null,null,null,null,null,null,null,null,null,null,null,null,null,null,null,null,null,null,null,null,"",0,0,0,0,0,0,0,0,0,null,null,null,null,null,null,null,null,null,null,null,null,{"$f":"#VALUE!","v":{"$error":"#VALUE!"}},{"$f":"#VALUE!","v":{"$error":"#VALUE!"}}]
[null,null,null,null,null,null,null,null,null,null,null,null,null,null,null,null,null,null,null,null,null,null,null,null,null,null,null,null,null,null,null,null,null,null,null,null,null,null,null,null,null,null,null,null,null,null,null,null,null,null,null,null,null,null,null,null,null,null,null,null,null,null,null,"",0,0,0,0,0,0,0,0,0,null,null,null,null,null,null,null,null,null,null,null,null,{"$f":"#VALUE!","v":{"$error":"#VALUE!"}},{"$f":"#VALUE!","v":{"$error":"#VALUE!"}}]
[null,null,null,null,null,null,null,null,null,null,null,null,null,null,null,null,null,null,null,null,null,null,null,null,null,null,null,null,null,null,null,null,null,null,null,null,null,null,null,null,null,null,null,null,null,null,null,null,null,null,null,null,null,null,null,null,null,null,null,null,null,null,null,"",0,0,0,0,0,0,0,0,0,null,null,null,null,null,null,null,null,null,null,null,null,{"$f":"#VALUE!","v":{"$error":"#VALUE!"}},{"$f":"#VALUE!","v":{"$error":"#VALUE!"}}]
[null,null,null,null,null,null,null,null,null,null,null,null,null,null,null,null,null,null,null,null,null,null,null,null,null,null,null,null,null,null,null,null,null,null,null,null,null,null,null,null,null,null,null,null,null,null,null,null,null,null,null,null,null,null,null,null,null,null,null,null,null,null,null,"",0,0,0,0,0,0,0,0,0,null,null,null,null,null,null,null,null,null,null,null,null,{"$f":"#VALUE!","v":{"$error":"#VALUE!"}},{"$f":"#VALUE!","v":{"$error":"#VALUE!"}}]
[null,null,null,null,null,null,null,null,null,null,null,null,null,null,null,null,null,null,null,null,null,null,null,null,null,null,null,null,null,null,null,null,null,null,null,null,null,null,null,null,null,null,null,null,null,null,null,null,null,null,null,null,null,null,null,null,null,null,null,null,null,null,null,"",0,0,0,0,0,0,0,0,0,null,null,null,null,null,null,null,null,null,null,null,null,{"$f":"#VALUE!","v":{"$error":"#VALUE!"}},{"$f":"#VALUE!","v":{"$error":"#VALUE!"}}]
[null,null,null,null,null,null,null,null,null,null,null,null,null,null,null,null,null,null,null,null,null,null,null,null,null,null,null,null,null,null,null,null,null,null,null,null,null,null,null,null,null,null,null,null,null,null,null,null,null,null,null,null,null,null,null,null,null,null,null,null,null,null,null,"",0,0,0,0,0,0,0,0,0,null,null,null,null,null,null,null,null,null,null,null,null,{"$f":"#VALUE!","v":{"$error":"#VALUE!"}},{"$f":"#VALUE!","v":{"$error":"#VALUE!"}}]
[null,null,null,null,null,null,null,null,null,null,null,null,null,null,null,null,null,null,null,null,null,null,null,null,null,null,null,null,null,null,null,null,null,null,null,null,null,null,null,null,null,null,null,null,null,null,null,null,null,null,null,null,null,null,null,null,null,null,null,null,null,null,null,"",0,0,0,{"$f":"INT(IF(H324=\"عامل تعاقد\",I324*25/100,IF(H324=\"معلم مساعد\",I324*25/100,IF(H324=\"معلم\",I324*25/100,IF(H324=\"معلم أول\",I324*25/100,IF(H324=\"معلم أول أ\",I324*25/100,IF(H324=\"خبير\",I324*25/100,IF(H324=\"كبير\",I324*25/100,))))))))","v":0},{"$f":"INT(IF(H324=\"إدارى\",J324*0/100,IF(H324=\"معلم مساعد\",I324*125/100,IF(H324=\"معلم\",I324*75/100,IF(H324=\"معلم أول\",I324*50/100,IF(H324=\"معلم أول أ\",I324*25/100,IF(H324=\"خبير\",I324*25/100,IF(H324=\"كبير\",I324*25/100,))))))))","v":0},{"$f":"INT(IF(H324=\"عامل تعاقد\",I324*0.9166,IF(H324=\"معلم تعاقد\",I324*0.9166,0)))","v":0},{"$f":"INT(IF(H324=\"عامل تعاقد\",I324*0.5,IF(H324=\"معلم تعاقد\",I324*0.5,0)))","v":0},{"$f":"INT(IF(F324=1,I324*0.3333,0))","v":0},{"$f":"IF(H324=\"عامل تعاقد\",225,IF(H324=\"معلم تعاقد\",300,0))","v":0},null,null,null,null,null,null,null,null,null,null,null,null,{"$f":"#VALUE!","v":{"$error":"#VALUE!"}},{"$f":"#VALUE!","v":{"$error":"#VALUE!"}}]
[null,null,null,null,null,null,null,null,null,null,null,null,null,null,null,null,null,null,null,null,null,null,null,null,null,null,null,null,null,null,null,null,null,null,null,null,null,null,null,null,null,null,null,null,null,null,null,null,null,null,null,null,null,null,null,null,null,null,null,null,null,null,null,{"$f":"IF(H325=\"معلم مساعد\",10,IF(H325=\"معلم تعاقد\",10,IF(H325=\"معلم\",10,IF(H325=\"معلم أول\",10,IF(H325=\"معلم أول أ\",10,IF(H325=\"خبير\",10,IF(H325=\"كبير\",10,IF(H325=\"عامل تعاقد\",0,\"\"))))))))","v":""},{"$f":"IF(H325=\"عقد مميز\",I325*0/100,IF(H325=\"معلم تعاقد\",I325*0/100,IF(H325=\"معلم\",I325*50/100,IF(H325=\"معلم أول\",I325*50/100,IF(H325=\"معلم أول أ\",I325*50/100,IF(H325=\"خبير\",I325*50/100,IF(H325=\"كبير\",I325*50/100,)))))))","v":0},0,0,0,0,0,0,0,0,null,null,null,null,null,null,null,null,null,null,null,null,{"$f":"#VALUE!","v":{"$error":"#VALUE!"}},{"$f":"#VALUE!","v":{"$error":"#VALUE!"}}]
[null,null,null,null,null,null,null,null,null,null,null,null,null,null,null,null,null,null,null,null,null,null,null,null,null,null,null,null,null,null,null,null,null,null,null,null,null,null,null,null,null,null,null,null,null,null,null,null,null,null,null,null,null,null,null,null,null,null,null,null,null,null,null,"",0,0,{"$f":"IF(H326=\"إدارى\",I326*0,IF(H326=\"معلم مساعد\",I326*0/100,IF(H326=\"معلم\",I326*50/100,IF(H326=\"معلم أول\",I326*75/100,IF(H326=\"معلم أول أ\",I326*100/100,IF(H326=\"خبير\",I326*125/100,IF(H326=\"كبير\",I326*150/100,)))))))","v":0},0,0,0,0,0,0,null,null,null,null,null,null,null,null,null,null,null,null,{"$f":"#VALUE!","v":{"$error":"#VALUE!"}},{"$f":"#VALUE!","v":{"$error":"#VALUE!"}}]
[null,null,null,null,null,null,null,null,null,null,null,null,null,null,null,null,null,null,null,null,null,null,null,null,null,null,null,null,null,null,null,null,null,null,null,null,null,null,null,null,null,null,null,null,null,null,null,null,null,null,null,null,null,null,null,null,null,null,null,null,null,null,null,"",0,0,0,0,0,0,0,0,0,null,null,null,null,null,null,null,null,null,null,null,null,{"$f":"#VALUE!","v":{"$error":"#VALUE!"}},{"$f":"#VALUE!","v":{"$error":"#VALUE!"}}]
[null,null,null,null,null,null,null,null,null,null,null,null,null,null,null,null,null,null,null,null,null,null,null,null,null,null,null,null,null,null,null,null,null,null,null,null,null,null,null,null,null,null,null,null,null,null,null,null,null,null,null,null,null,null,null,null,null,null,null,null,null,null,null,"",0,0,0,0,0,0,0,0,0,null,null,null,null,null,null,null,null,null,null,null,null,{"$f":"#VALUE!","v":{"$error":"#VALUE!"}},{"$f":"#VALUE!","v":{"$error":"#VALUE!"}}]
[null,null,null,null,null,null,null,null,null,null,null,null,null,null,null,null,null,null,null,null,null,null,null,null,null,null,null,null,null,null,null,null,null,null,null,null,null,null,null,null,null,null,null,null,null,null,null,null,null,null,null,null,null,null,null,null,null,null,null,null,null,null,null,"",0,0,0,0,0,0,0,0,0,null,null,null,null,null,null,null,null,null,null,null,null,{"$f":"#VALUE!","v":{"$error":"#VALUE!"}},{"$f":"#VALUE!","v":{"$error":"#VALUE!"}}]
[null,null,null,null,null,null,null,null,null,null,null,null,null,null,null,null,null,null,null,null,null,null,null,null,null,null,null,null,null,null,null,null,null,null,null,null,null,null,null,null,null,null,null,null,null,null,null,null,null,null,null,null,null,null,null,null,null,null,null,null,null,null,null,"",0,0,0,0,0,0,0,0,0,null,null,null,null,null,null,null,null,null,null,null,null,{"$f":"#VALUE!","v":{"$error":"#VALUE!"}},{"$f":"#VALUE!","v":{"$error":"#VALUE!"}}]
[null,null,null,null,null,null,null,null,null,null,null,null,null,null,null,null,null,null,null,null,null,null,null,null,null,null,null,null,null,null,null,null,null,null,null,null,null,null,null,null,null,null,null,null,null,null,null,null,null,null,null,null,null,null,null,null,null,null,null,null,null,null,null,"",0,0,0,0,0,0,0,0,0,null,null,null,null,null,null,null,null,null,null,null,null,{"$f":"#VALUE!","v":{"$error":"#VALUE!"}},{"$f":"#VALUE!","v":{"$error":"#VALUE!"}}]
[null,null,null,null,null,null,null,null,null,null,null,null,null,null,null,null,null,null,null,null,null,null,null,null,null,null,null,null,null,null,null,null,null,null,null,null,null,null,null,null,null,null,null,null,null,null,null,null,null,null,null,null,null,null,null,null,null,null,null,null,null,null,null,"",0,0,0,0,0,0,0,0,0,null,null,null,null,null,null,null,null,null,null,null,null,{"$f":"#VALUE!","v":{"$error":"#VALUE!"}},{"$f":"#VALUE!","v":{"$error":"#VALUE!"}}]
[null,null,null,null,null,null,null,null,null,null,null,null,null,null,null,null,null,null,null,null,null,null,null,null,null,null,null,null,null,null,null,null,null,null,null,null,null,null,null,null,null,null,null,null,null,null,null,null,null,null,null,null,null,null,null,null,null,null,null,null,null,null,null,"",0,0,0,0,0,0,0,0,0,null,null,null,null,null,null,null,null,null,null,null,null,{"$f":"#VALUE!","v":{"$error":"#VALUE!"}},{"$f":"#VALUE!","v":{"$error":"#VALUE!"}}]
[null,null,null,null,null,null,null,null,null,null,null,null,null,null,null,null,null,null,null,null,null,null,null,null,null,null,null,null,null,null,null,null,null,null,null,null,null,null,null,null,null,null,null,null,null,null,null,null,null,null,null,null,null,null,null,null,null,null,null,null,null,null,null,"",0,0,0,0,0,0,0,0,0,null,null,null,null,null,null,null,null,null,null,null,null,{"$f":"#VALUE!","v":{"$error":"#VALUE!"}},{"$f":"#VALUE!","v":{"$error":"#VALUE!"}}]
[null,null,null,null,null,null,null,null,null,null,null,null,null,null,null,null,null,null,null,null,null,null,null,null,null,null,null,null,null,null,null,null,null,null,null,null,null,null,null,null,null,null,null,null,null,null,null,null,null,null,null,null,null,null,null,null,null,null,null,null,null,null,null,"",0,0,0,0,0,0,0,0,0,null,null,null,null,null,null,null,null,null,null,null,null,{"$f":"#VALUE!","v":{"$error":"#VALUE!"}},{"$f":"#VALUE!","v":{"$error":"#VALUE!"}}]
[null,null,null,null,null,null,null,null,null,null,null,null,null,null,null,null,null,null,null,null,null,null,null,null,null,null,null,null,null,null,null,null,null,null,null,null,null,null,null,null,null,null,null,null,null,null,null,null,null,null,null,null,null,null,null,null,null,null,null,null,null,null,null,"",0,0,0,0,0,0,0,0,0,null,null,null,null,null,null,null,null,null,null,null,null,{"$f":"#VALUE!","v":{"$error":"#VALUE!"}},{"$f":"#VALUE!","v":{"$error":"#VALUE!"}}]
[null,null,null,null,null,null,null,null,null,null,null,null,null,null,null,null,null,null,null,null,null,null,null,null,null,null,null,null,null,null,null,null,null,null,null,null,null,null,null,null,null,null,null,null,null,null,null,null,null,null,null,null,null,null,null,null,null,null,null,null,null,null,null,"",0,0,0,0,0,0,0,0,0,null,null,null,null,null,null,null,null,null,null,null,null,{"$f":"#VALUE!","v":{"$error":"#VALUE!"}},{"$f":"#VALUE!","v":{"$error":"#VALUE!"}}]
[null,null,null,null,null,null,null,null,null,null,null,null,null,null,null,null,null,null,null,null,null,null,null,null,null,null,null,null,null,null,null,null,null,null,null,null,null,null,null,null,null,null,null,null,null,null,null,null,null,null,null,null,null,null,null,null,null,null,null,null,null,null,null,"",0,0,0,0,0,0,0,0,0,null,null,null,null,null,null,null,null,null,null,null,null,{"$f":"#VALUE!","v":{"$error":"#VALUE!"}},{"$f":"#VALUE!","v":{"$error":"#VALUE!"}}]
[null,null,null,null,null,null,null,null,null,null,null,null,null,null,null,null,null,null,null,null,null,null,null,null,null,null,null,null,null,null,null,null,null,null,null,null,null,null,null,null,null,null,null,null,null,null,null,null,null,null,null,null,null,null,null,null,null,null,null,null,null,null,null,"",0,0,0,0,0,0,0,0,0,null,null,null,null,null,null,null,null,null,null,null,null,{"$f":"#VALUE!","v":{"$error":"#VALUE!"}},{"$f":"#VALUE!","v":{"$error":"#VALUE!"}}]
[null,null,null,null,null,null,null,null,null,null,null,null,null,null,null,null,null,null,null,null,null,null,null,null,null,null,null,null,null,null,null,null,null,null,null,null,null,null,null,null,null,null,null,null,null,null,null,null,null,null,null,null,null,null,null,null,null,null,null,null,null,null,null,"",0,0,0,0,0,0,0,0,0,null,null,null,null,null,null,null,null,null,null,null,null,{"$f":"#VALUE!","v":{"$error":"#VALUE!"}},{"$f":"#VALUE!","v":{"$error":"#VALUE!"}}]
[null,null,null,null,null,null,null,null,null,null,null,null,null,null,null,null,null,null,null,null,null,null,null,null,null,null,null,null,null,null,null,null,null,null,null,null,null,null,null,null,null,null,null,null,null,null,null,null,null,null,null,null,null,null,null,null,null,null,null,null,null,null,null,"",0,0,0,0,0,0,0,0,0,null,null,null,null,null,null,null,null,null,null,null,null,{"$f":"#VALUE!","v":{"$error":"#VALUE!"}},{"$f":"#VALUE!","v":{"$error":"#VALUE!"}}]
[null,null,null,null,null,null,null,null,null,null,null,null,null,null,null,null,null,null,null,null,null,null,null,null,null,null,null,null,null,null,null,null,null,null,null,null,null,null,null,null,null,null,null,null,null,null,null,null,null,null,null,null,null,null,null,null,null,null,null,null,null,null,null,"",0,0,0,0,0,0,0,0,0,null,null,null,null,null,null,null,null,null,null,null,null,{"$f":"#VALUE!","v":{"$error":"#VALUE!"}},{"$f":"#VALUE!","v":{"$error":"#VALUE!"}}]
[null,null,null,null,null,null,null,null,null,null,null,null,null,null,null,null,null,null,null,null,null,null,null,null,null,null,null,null,null,null,null,null,null,null,null,null,null,null,null,null,null,null,null,null,null,null,null,null,null,null,null,null,null,null,null,null,null,null,null,null,null,null,null,"",0,0,0,0,0,0,0,0,0,null,null,null,null,null,null,null,null,null,null,null,null,{"$f":"#VALUE!","v":{"$error":"#VALUE!"}},{"$f":"#VALUE!","v":{"$error":"#VALUE!"}}]
[null,null,null,null,null,null,null,null,null,null,null,null,null,null,null,null,null,null,null,null,null,null,null,null,null,null,null,null,null,null,null,null,null,null,null,null,null,null,null,null,null,null,null,null,null,null,null,null,null,null,null,null,null,null,null,null,null,null,null,null,null,null,null,"",0,0,0,0,0,0,0,0,0,null,null,null,null,null,null,null,null,null,null,null,null,{"$f":"#VALUE!","v":{"$error":"#VALUE!"}},{"$f":"#VALUE!","v":{"$error":"#VALUE!"}}]
[null,null,null,null,null,null,null,null,null,null,null,null,null,null,null,null,null,null,null,null,null,null,null,null,null,null,null,null,null,null,null,null,null,null,null,null,null,null,null,null,null,null,null,null,null,null,null,null,null,null,null,null,null,null,null,null,null,null,null,null,null,null,null,"",0,0,0,0,0,0,0,0,0,null,null,null,null,null,null,null,null,null,null,null,null,{"$f":"#VALUE!","v":{"$error":"#VALUE!"}},{"$f":"#VALUE!","v":{"$error":"#VALUE!"}}]
[null,null,null,null,null,null,null,null,null,null,null,null,null,null,null,null,null,null,null,null,null,null,null,null,null,null,null,null,null,null,null,null,null,null,null,null,null,null,null,null,null,null,null,null,null,null,null,null,null,null,null,null,null,null,null,null,null,null,null,null,null,null,null,"",0,0,0,0,0,0,0,0,0,null,null,null,null,null,null,null,null,null,null,null,null,{"$f":"#VALUE!","v":{"$error":"#VALUE!"}},{"$f":"#VALUE!","v":{"$error":"#VALUE!"}}]
[null,null,null,null,null,null,null,null,null,null,null,null,null,null,null,null,null,null,null,null,null,null,null,null,null,null,null,null,null,null,null,null,null,null,null,null,null,null,null,null,null,null,null,null,null,null,null,null,null,null,null,null,null,null,null,null,null,null,null,null,null,null,null,"",0,0,0,0,0,0,0,0,0,null,null,null,null,null,null,null,null,null,null,null,null,{"$f":"#VALUE!","v":{"$error":"#VALUE!"}},{"$f":"#VALUE!","v":{"$error":"#VALUE!"}}]
[null,null,null,null,null,null,null,null,null,null,null,null,null,null,null,null,null,null,null,null,null,null,null,null,null,null,null,null,null,null,null,null,null,null,null,null,null,null,null,null,null,null,null,null,null,null,null,null,null,null,null,null,null,null,null,null,null,null,null,null,null,null,null,"",0,{"$f":"FLOOR(IF(H348=\"إدارى\",I348*0,IF(H348=\"معلم مساعد\",I348*50/100,IF(H348=\"معلم\",I348*50/100,IF(H348=\"معلم أول\",I348*50/100,IF(H348=\"معلم أول أ\",I348*50/100,IF(H348=\"خبير\",I348*50/100,IF(H348=\"كبير\",I348*50/100,))))))),0.05)","v":0},0,0,0,0,0,0,0,null,null,null,null,null,null,null,null,null,null,null,null,{"$f":"#VALUE!","v":{"$error":"#VALUE!"}},{"$f":"#VALUE!","v":{"$error":"#VALUE!"}}]
[null,null,null,null,null,null,null,null,null,null,null,null,null,null,null,null,null,null,null,null,null,null,null,null,null,null,null,null,null,null,null,null,null,null,null,null,null,null,null,null,null,null,null,null,null,null,null,null,null,null,null,null,null,null,null,null,null,null,null,null,null,null,null,"",0,0,0,0,0,0,0,0,0,null,null,null,null,null,null,null,null,null,null,null,null,{"$f":"#VALUE!","v":{"$error":"#VALUE!"}},{"$f":"#VALUE!","v":{"$error":"#VALUE!"}}]
[null,null,null,null,null,null,null,null,null,null,null,null,null,null,null,null,null,null,null,null,null,null,null,null,null,null,null,null,null,null,null,null,null,null,null,null,null,null,null,null,null,null,null,null,null,null,null,null,null,null,null,null,null,null,null,null,null,null,null,null,null,null,null,"",0,0,0,0,0,0,0,0,0,null,null,null,null,null,null,null,null,null,null,null,null,{"$f":"#VALUE!","v":{"$error":"#VALUE!"}},{"$f":"#VALUE!","v":{"$error":"#VALUE!"}}]
[null,null,null,null,null,null,null,null,null,null,null,null,null,null,null,null,null,null,null,null,null,null,null,null,null,null,null,null,null,null,null,null,null,null,null,null,null,null,null,null,null,null,null,null,null,null,null,null,null,null,null,null,null,null,null,null,null,null,null,null,null,null,null,"",0,0,0,0,0,0,0,0,0,null,null,null,null,null,null,null,null,null,null,null,null,{"$f":"#VALUE!","v":{"$error":"#VALUE!"}},{"$f":"#VALUE!","v":{"$error":"#VALUE!"}}]
[null,null,null,null,null,null,null,null,null,null,null,null,null,null,null,null,null,null,null,null,null,null,null,null,null,null,null,null,null,null,null,null,null,null,null,null,null,null,null,null,null,null,null,null,null,null,null,null,null,null,null,null,null,null,null,null,null,null,null,null,null,null,null,"",0,0,0,0,0,0,0,0,0,null,null,null,null,null,null,null,null,null,null,null,null,{"$f":"#VALUE!","v":{"$error":"#VALUE!"}},{"$f":"#VALUE!","v":{"$error":"#VALUE!"}}]
[null,null,null,null,null,null,null,null,null,null,null,null,null,null,null,null,null,null,null,null,null,null,null,null,null,null,null,null,null,null,null,null,null,null,null,null,null,null,null,null,null,null,null,null,null,null,null,null,null,null,null,null,null,null,null,null,null,null,null,null,null,null,null,"",0,0,0,0,0,0,0,0,0,null,null,null,null,null,null,null,null,null,null,null,null,{"$f":"#VALUE!","v":{"$error":"#VALUE!"}},{"$f":"#VALUE!","v":{"$error":"#VALUE!"}}]
[null,null,null,null,null,null,null,null,null,null,null,null,null,null,null,null,null,null,null,null,null,null,null,null,null,null,null,null,null,null,null,null,null,null,null,null,null,null,null,null,null,null,null,null,null,null,null,null,null,null,null,null,null,null,null,null,null,null,null,null,null,null,null,"",0,0,0,0,0,0,0,0,0,null,null,null,null,null,null,null,null,null,null,null,null,{"$f":"#VALUE!","v":{"$error":"#VALUE!"}},{"$f":"#VALUE!","v":{"$error":"#VALUE!"}}]
[null,null,null,null,null,null,null,null,null,null,null,null,null,null,null,null,null,null,null,null,null,null,null,null,null,null,null,null,null,null,null,null,null,null,null,null,null,null,null,null,null,null,null,null,null,null,null,null,null,null,null,null,null,null,null,null,null,null,null,null,null,null,null,"",0,0,0,0,0,0,0,0,0,null,null,null,null,null,null,null,null,null,null,null,null,{"$f":"#VALUE!","v":{"$error":"#VALUE!"}},{"$f":"#VALUE!","v":{"$error":"#VALUE!"}}]
[null,null,null,null,null,null,null,null,null,null,null,null,null,null,null,null,null,null,null,null,null,null,null,null,null,null,null,null,null,null,null,null,null,null,null,null,null,null,null,null,null,null,null,null,null,null,null,null,null,null,null,null,null,null,null,null,null,null,null,null,null,null,null,"",0,0,0,0,0,0,0,0,0,null,null,null,null,null,null,null,null,null,null,null,null,{"$f":"#VALUE!","v":{"$error":"#VALUE!"}},{"$f":"#VALUE!","v":{"$error":"#VALUE!"}}]
[null,null,null,null,null,null,null,null,null,null,null,null,null,null,null,null,null,null,null,null,null,null,null,null,null,null,null,null,null,null,null,null,null,null,null,null,null,null,null,null,null,null,null,null,null,null,null,null,null,null,null,null,null,null,null,null,null,null,null,null,null,null,null,"",0,0,0,0,0,0,0,0,0,null,null,null,null,null,null,null,null,null,null,null,null,{"$f":"IF(H357=\"عقد مميز\",I357*0/100,IF(H357=\"معلم مساعد\",I357*125/100,IF(H357=\"معلم\",I357*75/100,IF(H357=\"معلم اول\",I357*50/100,IF(H357=\"معلم اول ا\",I357*25/100,IF(H357=\"معلم خبير\",I357*25/100,IF(H357=\"معلم كبير\",I357*25/100,)))))))","v":0},{"$f":"IF(H357=\"عقد مميز\",I357*25/100,IF(H357=\"معلم مساعد\",I357*25/100,IF(H357=\"معلم\",I357*25/100,IF(H357=\"معلم اول\",I357*25/100,IF(H357=\"معلم اول ا\",I357*25/100,IF(H357=\"معلم خبير\",I357*25/100,IF(H357=\"معلم كبير\",I357*25,0)))))))","v":0}]
[null,null,null,null,null,null,null,null,null,null,null,null,null,null,null,null,null,null,null,null,null,null,null,null,null,null,null,null,null,null,null,null,null,null,null,null,null,null,null,null,null,null,null,null,null,null,null,null,null,null,null,null,null,null,null,null,null,null,null,null,null,null,null,"",0,0,0,0,0,0,0,0,0]
[null,null,null,null,null,null,null,null,null,null,null,null,null,null,null,null,null,null,null,null,null,null,null,null,null,null,null,null,null,null,null,null,null,null,null,null,null,null,null,null,null,null,null,null,null,null,null,null,null,null,null,null,null,null,null,null,null,null,null,null,null,null,null,"",0,0,0,0,0,0,0,0,0]
[null,null,null,null,null,null,null,null,null,null,null,null,null,null,null,null,null,null,null,null,null,null,null,null,null,null,null,null,null,null,null,null,null,null,null,null,null,null,null,null,null,null,null,null,null,null,null,null,null,null,null,null,null,null,null,null,null,null,null,null,null,null,null,"",0,0,0,0,0,0,0,0,0]
[null,null,null,null,null,null,null,null,null,null,null,null,null,null,null,null,null,null,null,null,null,null,null,null,null,null,null,null,null,null,null,null,null,null,null,null,null,null,null,null,null,null,null,null,null,null,null,null,null,null,null,null,null,null,null,null,null,null,null,null,null,null,null,"",0,0,0,0,0,0,0,0,0]
[null,null,null,null,null,null,null,null,null,null,null,null,null,null,null,null,null,null,null,null,null,null,null,null,null,null,null,null,null,null,null,null,null,null,null,null,null,null,null,null,null,null,null,null,null,null,null,null,null,null,null,null,null,null,null,null,null,null,null,null,null,null,null,"",0,0,0,0,0,0,0,0,0]
[null,null,null,null,null,null,null,null,null,null,null,null,null,null,null,null,null,null,null,null,null,null,null,null,null,null,null,null,null,null,null,null,null,null,null,null,null,null,null,null,null,null,null,null,null,null,null,null,null,null,null,null,null,null,null,null,null,null,null,null,null,null,null,"",0,0,0,0,0,0,0,0,0]
[null,null,null,null,null,null,null,null,null,null,null,null,null,null,null,null,null,null,null,null,null,null,null,null,null,null,null,null,null,null,null,null,null,null,null,null,null,null,null,null,null,null,null,null,null,null,null,null,null,null,null,null,null,null,null,null,null,null,null,null,null,null,null,"",0,0,0,0,0,0,0,0,0]
[null,null,null,null,null,null,null,null,null,null,null,null,null,null,null,null,null,null,null,null,null,null,null,null,null,null,null,null,null,null,null,null,null,null,null,null,null,null,null,null,null,null,null,null,null,null,null,null,null,null,null,null,null,null,null,null,null,null,null,null,null,null,null,"",0,0,0,0,0,0,0,0,0]
[null,null,null,null,null,null,null,null,null,null,null,null,null,null,null,null,null,null,null,null,null,null,null,null,null,null,null,null,null,null,null,null,null,null,null,null,null,null,null,null,null,null,null,null,null,null,null,null,null,null,null,null,null,null,null,null,null,null,null,null,null,null,null,"",0,0,0,0,0,0,0,0,0]
[null,null,null,null,null,null,null,null,null,null,null,null,null,null,null,null,null,null,null,null,null,null,null,null,null,null,null,null,null,null,null,null,null,null,null,null,null,null,null,null,null,null,null,null,null,null,null,null,null,null,null,null,null,null,null,null,null,null,null,null,null,null,null,"",0,0,0,0,0,0,0,0,0]
[null,null,null,null,null,null,null,null,null,null,null,null,null,null,null,null,null,null,null,null,null,null,null,null,null,null,null,null,null,null,null,null,null,null,null,null,null,null,null,null,null,null,null,null,null,null,null,null,null,null,null,null,null,null,null,null,null,null,null,null,null,null,null,"",0,0,0,0,0,0,0,0,0]
[null,null,null,null,null,null,null,null,null,null,null,null,null,null,null,null,null,null,null,null,null,null,null,null,null,null,null,null,null,null,null,null,null,null,null,null,null,null,null,null,null,null,null,null,null,null,null,null,null,null,null,null,null,null,null,null,null,null,null,null,null,null,null,"",0,0,0,0,0,0,0,0,0]
[null,null,null,null,null,null,null,null,null,null,null,null,null,null,null,null,null,null,null,null,null,null,null,null,null,null,null,null,null,null,null,null,null,null,null,null,null,null,null,null,null,null,null,null,null,null,null,null,null,null,null,null,null,null,null,null,null,null,null,null,null,null,null,"",0,0,0,0,0,0,0,0,0]
[null,null,null,null,null,null,null,null,null,null,null,null,null,null,null,null,null,null,null,null,null,null,null,null,null,null,null,null,null,null,null,null,null,null,null,null,null,null,null,null,null,null,null,null,null,null,null,null,null,null,null,null,null,null,null,null,null,null,null,null,null,null,null,"",0,0,0,0,0,0,0,0,0]
[null,null,null,null,null,null,null,null,null,null,null,null,null,null,null,null,null,null,null,null,null,null,null,null,null,null,null,null,null,null,null,null,null,null,null,null,null,null,null,null,null,null,null,null,null,null,null,null,null,null,null,null,null,null,null,null,null,null,null,null,null,null,null,"",0,0,0,0,0,0,0,0,0]
[null,null,null,null,null,null,null,null,null,null,null,null,null,null,null,null,null,null,null,null,null,null,null,null,null,null,null,null,null,null,null,null,null,null,null,null,null,null,null,null,null,null,null,null,null,null,null,null,null,null,null,null,null,null,null,null,null,null,null,null,null,null,null,"",0,0,0,0,0,0,0,0,0]
[null,null,null,null,null,null,null,null,null,null,null,null,null,null,null,null,null,null,null,null,null,null,null,null,null,null,null,null,null,null,null,null,null,null,null,null,null,null,null,null,null,null,null,null,null,null,null,null,null,null,null,null,null,null,null,null,null,null,null,null,null,null,null,"",0,0,0,0,0,0,0,0,0]
[null,null,null,null,null,null,null,null,null,null,null,null,null,null,null,null,null,null,null,null,null,null,null,null,null,null,null,null,null,null,null,null,null,null,null,null,null,null,null,null,null,null,null,null,null,null,null,null,null,null,null,null,null,null,null,null,null,null,null,null,null,null,null,"",0,0,0,0,0,0,0,0,0]
[null,null,null,null,null,null,null,null,null,null,null,null,null,null,null,null,null,null,null,null,null,null,null,null,null,null,null,null,null,null,null,null,null,null,null,null,null,null,null,null,null,null,null,null,null,null,null,null,null,null,null,null,null,null,null,null,null,null,null,null,null,null,null,"",0,0,0,0,0,0,0,0,0]
[null,null,null,null,null,null,null,null,null,null,null,null,null,null,null,null,null,null,null,null,null,null,null,null,null,null,null,null,null,null,null,null,null,null,null,null,null,null,null,null,null,null,null,null,null,null,null,null,null,null,null,null,null,null,null,null,null,null,null,null,null,null,null,"",0,0,0,0,0,0,0,0,0]
[null,null,null,null,null,null,null,null,null,null,null,null,null,null,null,null,null,null,null,null,null,null,null,null,null,null,null,null,null,null,null,null,null,null,null,null,null,null,null,null,null,null,null,null,null,null,null,null,null,null,null,null,null,null,null,null,null,null,null,null,null,null,null,"",0,0,0,0,0,0,0,0,0]
[null,null,null,null,null,null,null,null,null,null,null,null,null,null,null,null,null,null,null,null,null,null,null,null,null,null,null,null,null,null,null,null,null,null,null,null,null,null,null,null,null,null,null,null,null,null,null,null,null,null,null,null,null,null,null,null,null,null,null,null,null,null,null,"",0,0,0,0,0,0,0,0,0]
[null,null,null,null,null,null,null,null,null,null,null,null,null,null,null,null,null,null,null,null,null,null,null,null,null,null,null,null,null,null,null,null,null,null,null,null,null,null,null,null,null,null,null,null,null,null,null,null,null,null,null,null,null,null,null,null,null,null,null,null,null,null,null,"",0,0,0,0,0,0,0,0,0]
[null,null,null,null,null,null,null,null,null,null,null,null,null,null,null,null,null,null,null,null,null,null,null,null,null,null,null,null,null,null,null,null,null,null,null,null,null,null,null,null,null,null,null,null,null,null,null,null,null,null,null,null,null,null,null,null,null,null,null,null,null,null,null,"",0,0,0,0,0,0,0,0,0]
[null,null,null,null,null,null,null,null,null,null,null,null,null,null,null,null,null,null,null,null,null,null,null,null,null,null,null,null,null,null,null,null,null,null,null,null,null,null,null,null,null,null,null,null,null,null,null,null,null,null,null,null,null,null,null,null,null,null,null,null,null,null,null,"",0,0,0,0,0,0,0,0,0]
[null,null,null,null,null,null,null,null,null,null,null,null,null,null,null,null,null,null,null,null,null,null,null,null,null,null,null,null,null,null,null,null,null,null,null,null,null,null,null,null,null,null,null,null,null,null,null,null,null,null,null,null,null,null,null,null,null,null,null,null,null,null,null,"",0,0,0,0,0,0,0,0,0]
[null,null,null,null,null,null,null,null,null,null,null,null,null,null,null,null,null,null,null,null,null,null,null,null,null,null,null,null,null,null,null,null,null,null,null,null,null,null,null,null,null,null,null,null,null,null,null,null,null,null,null,null,null,null,null,null,null,null,null,null,null,null,null,"",0,0,0,0,0,0,0,0,0]
[null,null,null,null,null,null,null,null,null,null,null,null,null,null,null,null,null,null,null,null,null,null,null,null,null,null,null,null,null,null,null,null,null,null,null,null,null,null,null,null,null,null,null,null,null,null,null,null,null,null,null,null,null,null,null,null,null,null,null,null,null,null,null,"",0,0,0,0,0,0,0,0,0]
[null,null,null,null,null,null,null,null,null,null,null,null,null,null,null,null,null,null,null,null,null,null,null,null,null,null,null,null,null,null,null,null,null,null,null,null,null,null,null,null,null,null,null,null,null,null,null,null,null,null,null,null,null,null,null,null,null,null,null,null,null,null,null,"",0,0,0,0,0,0,0,0,0]
[null,null,null,null,null,null,null,null,null,null,null,null,null,null,null,null,null,null,null,null,null,null,null,null,null,null,null,null,null,null,null,null,null,null,null,null,null,null,null,null,null,null,null,null,null,null,null,null,null,null,null,null,null,null,null,null,null,null,null,null,null,null,null,"",0,0,0,0,0,0,0,0,0]
[null,null,null,null,null,null,null,null,null,null,null,null,null,null,null,null,null,null,null,null,null,null,null,null,null,null,null,null,null,null,null,null,null,null,null,null,null,null,null,null,null,null,null,null,null,null,null,null,null,null,null,null,null,null,null,null,null,null,null,null,null,null,null,"",0,0,0,{"$f":"INT(IF(H388=\"عامل تعاقد\",I388*25/100,IF(H388=\"معلم مساعد\",I388*25/100,IF(H388=\"معلم\",I388*25/100,IF(H388=\"معلم أول\",I388*25/100,IF(H388=\"معلم أول أ\",I388*25/100,IF(H388=\"خبير\",I388*25/100,IF(H388=\"كبير\",I388*25/100,))))))))","v":0},{"$f":"INT(IF(H388=\"إدارى\",J388*0/100,IF(H388=\"معلم مساعد\",I388*125/100,IF(H388=\"معلم\",I388*75/100,IF(H388=\"معلم أول\",I388*50/100,IF(H388=\"معلم أول أ\",I388*25/100,IF(H388=\"خبير\",I388*25/100,IF(H388=\"كبير\",I388*25/100,))))))))","v":0},0,0,0,0]
[null,null,null,null,null,null,null,null,null,null,null,null,null,null,null,null,null,null,null,null,null,null,null,null,null,null,null,null,null,null,null,null,null,null,null,null,null,null,null,null,null,null,null,null,null,null,null,null,null,null,null,null,null,null,null,null,null,null,null,null,null,null,null,{"$f":"IF(H389=\"معلم مساعد\",10,IF(H389=\"معلم تعاقد\",10,IF(H389=\"معلم\",10,IF(H389=\"معلم أول\",10,IF(H389=\"معلم أول أ\",10,IF(H389=\"خبير\",10,IF(H389=\"كبير\",10,IF(H389=\"عامل تعاقد\",0,\"\"))))))))","v":""},{"$f":"IF(H389=\"عقد مميز\",I389*0/100,IF(H389=\"معلم تعاقد\",I389*0/100,IF(H389=\"معلم\",I389*50/100,IF(H389=\"معلم أول\",I389*50/100,IF(H389=\"معلم أول أ\",I389*50/100,IF(H389=\"خبير\",I389*50/100,IF(H389=\"كبير\",I389*50/100,)))))))","v":0},0,0,0,0,{"$f":"INT(IF(H389=\"عامل تعاقد\",I389*0.9166,IF(H389=\"معلم تعاقد\",I389*0.9166,0)))","v":0},{"$f":"INT(IF(H389=\"عامل تعاقد\",I389*0.5,IF(H389=\"معلم تعاقد\",I389*0.5,0)))","v":0},{"$f":"INT(IF(F389=1,I389*0.3333,0))","v":0},{"$f":"IF(H389=\"عامل تعاقد\",225,IF(H389=\"معلم تعاقد\",300,0))","v":0}]
[null,null,null,null,null,null,null,null,null,null,null,null,null,null,null,null,null,null,null,null,null,null,null,null,null,null,null,null,null,null,null,null,null,null,null,null,null,null,null,null,null,null,null,null,null,null,null,null,null,null,null,null,null,null,null,null,null,null,null,null,null,null,null,"",0,0,{"$f":"IF(H390=\"إدارى\",I390*0,IF(H390=\"معلم مساعد\",I390*0/100,IF(H390=\"معلم\",I390*50/100,IF(H390=\"معلم أول\",I390*75/100,IF(H390=\"معلم أول أ\",I390*100/100,IF(H390=\"خبير\",I390*125/100,IF(H390=\"كبير\",I390*150/100,)))))))","v":0},0,0,0,0,0,0]
[null,null,null,null,null,null,null,null,null,null,null,null,null,null,null,null,null,null,null,null,null,null,null,null,null,null,null,null,null,null,null,null,null,null,null,null,null,null,null,null,null,null,null,null,null,null,null,null,null,null,null,null,null,null,null,null,null,null,null,null,null,null,null,"",0,0,0,0,0,0,0,0,0]
[null,null,null,null,null,null,null,null,null,null,null,null,null,null,null,null,null,null,null,null,null,null,null,null,null,null,null,null,null,null,null,null,null,null,null,null,null,null,null,null,null,null,null,null,null,null,null,null,null,null,null,null,null,null,null,null,null,null,null,null,null,null,null,"",0,0,0,0,0,0,0,0,0]
[null,null,null,null,null,null,null,null,null,null,null,null,null,null,null,null,null,null,null,null,null,null,null,null,null,null,null,null,null,null,null,null,null,null,null,null,null,null,null,null,null,null,null,null,null,null,null,null,null,null,null,null,null,null,null,null,null,null,null,null,null,null,null,"",0,0,0,0,0,0,0,0,0]
[null,null,null,null,null,null,null,null,null,null,null,null,null,null,null,null,null,null,null,null,null,null,null,null,null,null,null,null,null,null,null,null,null,null,null,null,null,null,null,null,null,null,null,null,null,null,null,null,null,null,null,null,null,null,null,null,null,null,null,null,null,null,null,"",0,0,0,0,0,0,0,0,0]
[null,null,null,null,null,null,null,null,null,null,null,null,null,null,null,null,null,null,null,null,null,null,null,null,null,null,null,null,null,null,null,null,null,null,null,null,null,null,null,null,null,null,null,null,null,null,null,null,null,null,null,null,null,null,null,null,null,null,null,null,null,null,null,"",0,0,0,0,0,0,0,0,0]
[null,null,null,null,null,null,null,null,null,null,null,null,null,null,null,null,null,null,null,null,null,null,null,null,null,null,null,null,null,null,null,null,null,null,null,null,null,null,null,null,null,null,null,null,null,null,null,null,null,null,null,null,null,null,null,null,null,null,null,null,null,null,null,"",0,0,0,0,0,0,0,0,0]
[null,null,null,null,null,null,null,null,null,null,null,null,null,null,null,null,null,null,null,null,null,null,null,null,null,null,null,null,null,null,null,null,null,null,null,null,null,null,null,null,null,null,null,null,null,null,null,null,null,null,null,null,null,null,null,null,null,null,null,null,null,null,null,"",0,0,0,0,0,0,0,0,0]
[null,null,null,null,null,null,null,null,null,null,null,null,null,null,null,null,null,null,null,null,null,null,null,null,null,null,null,null,null,null,null,null,null,null,null,null,null,null,null,null,null,null,null,null,null,null,null,null,null,null,null,null,null,null,null,null,null,null,null,null,null,null,null,"",0,0,0,0,0,0,0,0,0]
[null,null,null,null,null,null,null,null,null,null,null,null,null,null,null,null,null,null,null,null,null,null,null,null,null,null,null,null,null,null,null,null,null,null,null,null,null,null,null,null,null,null,null,null,null,null,null,null,null,null,null,null,null,null,null,null,null,null,null,null,null,null,null,"",0,0,0,0,0,0,0,0,0]
[null,null,null,null,null,null,null,null,null,null,null,null,null,null,null,null,null,null,null,null,null,null,null,null,null,null,null,null,null,null,null,null,null,null,null,null,null,null,null,null,null,null,null,null,null,null,null,null,null,null,null,null,null,null,null,null,null,null,null,null,null,null,null,"",0,0,0,0,0,0,0,0,0]
[null,null,null,null,null,null,null,null,null,null,null,null,null,null,null,null,null,null,null,null,null,null,null,null,null,null,null,null,null,null,null,null,null,null,null,null,null,null,null,null,null,null,null,null,null,null,null,null,null,null,null,null,null,null,null,null,null,null,null,null,null,null,null,"",0,0,0,0,0,0,0,0,0]
[null,null,null,null,null,null,null,null,null,null,null,null,null,null,null,null,null,null,null,null,null,null,null,null,null,null,null,null,null,null,null,null,null,null,null,null,null,null,null,null,null,null,null,null,null,null,null,null,null,null,null,null,null,null,null,null,null,null,null,null,null,null,null,"",0,0,0,0,0,0,0,0,0]
[null,null,null,null,null,null,null,null,null,null,null,null,null,null,null,null,null,null,null,null,null,null,null,null,null,null,null,null,null,null,null,null,null,null,null,null,null,null,null,null,null,null,null,null,null,null,null,null,null,null,null,null,null,null,null,null,null,null,null,null,null,null,null,"",0,0,0,0,0,0,0,0,0]
[null,null,null,null,null,null,null,null,null,null,null,null,null,null,null,null,null,null,null,null,null,null,null,null,null,null,null,null,null,null,null,null,null,null,null,null,null,null,null,null,null,null,null,null,null,null,null,null,null,null,null,null,null,null,null,null,null,null,null,null,null,null,null,"",0,0,0,0,0,0,0,0,0]
[null,null,null,null,null,null,null,null,null,null,null,null,null,null,null,null,null,null,null,null,null,null,null,null,null,null,null,null,null,null,null,null,null,null,null,null,null,null,null,null,null,null,null,null,null,null,null,null,null,null,null,null,null,null,null,null,null,null,null,null,null,null,null,"",0,0,0,0,0,0,0,0,0]
[null,null,null,null,null,null,null,null,null,null,null,null,null,null,null,null,null,null,null,null,null,null,null,null,null,null,null,null,null,null,null,null,null,null,null,null,null,null,null,null,null,null,null,null,null,null,null,null,null,null,null,null,null,null,null,null,null,null,null,null,null,null,null,"",0,0,0,0,0,0,0,0,0]
[null,null,null,null,null,null,null,null,null,null,null,null,null,null,null,null,null,null,null,null,null,null,null,null,null,null,null,null,null,null,null,null,null,null,null,null,null,null,null,null,null,null,null,null,null,null,null,null,null,null,null,null,null,null,null,null,null,null,null,null,null,null,null,"",0,0,0,0,0,0,0,0,0]
[null,null,null,null,null,null,null,null,null,null,null,null,null,null,null,null,null,null,null,null,null,null,null,null,null,null,null,null,null,null,null,null,null,null,null,null,null,null,null,null,null,null,null,null,null,null,null,null,null,null,null,null,null,null,null,null,null,null,null,null,null,null,null,"",0,0,0,0,0,0,0,0,0]
[null,null,null,null,null,null,null,null,null,null,null,null,null,null,null,null,null,null,null,null,null,null,null,null,null,null,null,null,null,null,null,null,null,null,null,null,null,null,null,null,null,null,null,null,null,null,null,null,null,null,null,null,null,null,null,null,null,null,null,null,null,null,null,"",0,0,0,0,0,0,0,0,0]
[null,null,null,null,null,null,null,null,null,null,null,null,null,null,null,null,null,null,null,null,null,null,null,null,null,null,null,null,null,null,null,null,null,null,null,null,null,null,null,null,null,null,null,null,null,null,null,null,null,null,null,null,null,null,null,null,null,null,null,null,null,null,null,"",0,0,0,0,0,0,0,0,0]
[null,null,null,null,null,null,null,null,null,null,null,null,null,null,null,null,null,null,null,null,null,null,null,null,null,null,null,null,null,null,null,null,null,null,null,null,null,null,null,null,null,null,null,null,null,null,null,null,null,null,null,null,null,null,null,null,null,null,null,null,null,null,null,"",0,0,0,0,0,0,0,0,0]
[null,null,null,null,null,null,null,null,null,null,null,null,null,null,null,null,null,null,null,null,null,null,null,null,null,null,null,null,null,null,null,null,null,null,null,null,null,null,null,null,null,null,null,null,null,null,null,null,null,null,null,null,null,null,null,null,null,null,null,null,null,null,null,"",0,{"$f":"FLOOR(IF(H412=\"إدارى\",I412*0,IF(H412=\"معلم مساعد\",I412*50/100,IF(H412=\"معلم\",I412*50/100,IF(H412=\"معلم أول\",I412*50/100,IF(H412=\"معلم أول أ\",I412*50/100,IF(H412=\"خبير\",I412*50/100,IF(H412=\"كبير\",I412*50/100,))))))),0.05)","v":0},0,0,0,0,0,0,0]
[null,null,null,null,null,null,null,null,null,null,null,null,null,null,null,null,null,null,null,null,null,null,null,null,null,null,null,null,null,null,null,null,null,null,null,null,null,null,null,null,null,null,null,null,null,null,null,null,null,null,null,null,null,null,null,null,null,null,null,null,null,null,null,"",0,0,0,0,0,0,0,0,0]
[null,null,null,null,null,null,null,null,null,null,null,null,null,null,null,null,null,null,null,null,null,null,null,null,null,null,null,null,null,null,null,null,null,null,null,null,null,null,null,null,null,null,null,null,null,null,null,null,null,null,null,null,null,null,null,null,null,null,null,null,null,null,null,"",0,0,0,0,0,0,0,0,0]
[null,null,null,null,null,null,null,null,null,null,null,null,null,null,null,null,null,null,null,null,null,null,null,null,null,null,null,null,null,null,null,null,null,null,null,null,null,null,null,null,null,null,null,null,null,null,null,null,null,null,null,null,null,null,null,null,null,null,null,null,null,null,null,"",0,0,0,0,0,0,0,0,0]
[null,null,null,null,null,null,null,null,null,null,null,null,null,null,null,null,null,null,null,null,null,null,null,null,null,null,null,null,null,null,null,null,null,null,null,null,null,null,null,null,null,null,null,null,null,null,null,null,null,null,null,null,null,null,null,null,null,null,null,null,null,null,null,"",0,0,0,0,0,0,0,0,0]
[null,null,null,null,null,null,null,null,null,null,null,null,null,null,null,null,null,null,null,null,null,null,null,null,null,null,null,null,null,null,null,null,null,null,null,null,null,null,null,null,null,null,null,null,null,null,null,null,null,null,null,null,null,null,null,null,null,null,null,null,null,null,null,"",0,0,0,0,0,0,0,0,0]
[null,null,null,null,null,null,null,null,null,null,null,null,null,null,null,null,null,null,null,null,null,null,null,null,null,null,null,null,null,null,null,null,null,null,null,null,null,null,null,null,null,null,null,null,null,null,null,null,null,null,null,null,null,null,null,null,null,null,null,null,null,null,null,"",0,0,0,0,0,0,0,0,0]
[null,null,null,null,null,null,null,null,null,null,null,null,null,null,null,null,null,null,null,null,null,null,null,null,null,null,null,null,null,null,null,null,null,null,null,null,null,null,null,null,null,null,null,null,null,null,null,null,null,null,null,null,null,null,null,null,null,null,null,null,null,null,null,"",0,0,0,0,0,0,0,0,0]
[null,null,null,null,null,null,null,null,null,null,null,null,null,null,null,null,null,null,null,null,null,null,null,null,null,null,null,null,null,null,null,null,null,null,null,null,null,null,null,null,null,null,null,null,null,null,null,null,null,null,null,null,null,null,null,null,null,null,null,null,null,null,null,"",0,0,0,0,0,0,0,0,0]
[null,null,null,null,null,null,null,null,null,null,null,null,null,null,null,null,null,null,null,null,null,null,null,null,null,null,null,null,null,null,null,null,null,null,null,null,null,null,null,null,null,null,null,null,null,null,null,null,null,null,null,null,null,null,null,null,null,null,null,null,null,null,null,"",0,0,0,0,0,0,0,0,0]
[null,null,null,null,null,null,null,null,null,null,null,null,null,null,null,null,null,null,null,null,null,null,null,null,null,null,null,null,null,null,null,null,null,null,null,null,null,null,null,null,null,null,null,null,null,null,null,null,null,null,null,null,null,null,null,null,null,null,null,null,null,null,null,"",0,0,0,0,0,0,0,0,0]
[null,null,null,null,null,null,null,null,null,null,null,null,null,null,null,null,null,null,null,null,null,null,null,null,null,null,null,null,null,null,null,null,null,null,null,null,null,null,null,null,null,null,null,null,null,null,null,null,null,null,null,null,null,null,null,null,null,null,null,null,null,null,null,"",0,0,0,0,0,0,0,0,0]
[null,null,null,null,null,null,null,null,null,null,null,null,null,null,null,null,null,null,null,null,null,null,null,null,null,null,null,null,null,null,null,null,null,null,null,null,null,null,null,null,null,null,null,null,null,null,null,null,null,null,null,null,null,null,null,null,null,null,null,null,null,null,null,"",0,0,0,0,0,0,0,0,0]
[null,null,null,null,null,null,null,null,null,null,null,null,null,null,null,null,null,null,null,null,null,null,null,null,null,null,null,null,null,null,null,null,null,null,null,null,null,null,null,null,null,null,null,null,null,null,null,null,null,null,null,null,null,null,null,null,null,null,null,null,null,null,null,"",0,0,0,0,0,0,0,0,0]
[null,null,null,null,null,null,null,null,null,null,null,null,null,null,null,null,null,null,null,null,null,null,null,null,null,null,null,null,null,null,null,null,null,null,null,null,null,null,null,null,null,null,null,null,null,null,null,null,null,null,null,null,null,null,null,null,null,null,null,null,null,null,null,"",0,0,0,0,0,0,0,0,0]
[null,null,null,null,null,null,null,null,null,null,null,null,null,null,null,null,null,null,null,null,null,null,null,null,null,null,null,null,null,null,null,null,null,null,null,null,null,null,null,null,null,null,null,null,null,null,null,null,null,null,null,null,null,null,null,null,null,null,null,null,null,null,null,"",0,0,0,0,0,0,0,0,0]
[null,null,null,null,null,null,null,null,null,null,null,null,null,null,null,null,null,null,null,null,null,null,null,null,null,null,null,null,null,null,null,null,null,null,null,null,null,null,null,null,null,null,null,null,null,null,null,null,null,null,null,null,null,null,null,null,null,null,null,null,null,null,null,null,0,0,0,0,0,0,0]
[null,null,null,null,null,null,null,null,null,null,null,null,null,null,null,null,null,null,null,null,null,null,null,null,null,null,null,null,null,null,null,null,null,null,null,null,null,null,null,null,null,null,null,null,null,null,null,null,null,null,null,null,null,null,null,null,null,null,null,null,null,null,null,null,0,0,0,0,0,0,0]
[null,null,null,null,null,null,null,null,null,null,null,null,null,null,null,null,null,null,null,null,null,null,null,null,null,null,null,null,null,null,null,null,null,null,null,null,null,null,null,null,null,null,null,null,null,null,null,null,null,null,null,null,null,null,null,null,null,null,null,null,null,null,null,null,0,0,0,0,0]
[null,null,null,null,null,null,null,null,null,null,null,null,null,null,null,null,null,null,null,null,null,null,null,null,null,null,null,null,null,null,null,null,null,null,null,null,null,null,null,null,null,null,null,null,null,null,null,null,null,null,null,null,null,null,null,null,null,null,null,null,null,null,null,null,0,0,0,0,0]
[null,null,null,null,null,null,null,null,null,null,null,null,null,null,null,null,null,null,null,null,null,null,null,null,null,null,null,null,null,null,null,null,null,null,null,null,null,null,null,null,null,null,null,null,null,null,null,null,null,null,null,null,null,null,null,null,null,null,null,null,null,null,null,null,0,0,0,0,0]
[null,null,null,null,null,null,null,null,null,null,null,null,null,null,null,null,null,null,null,null,null,null,null,null,null,null,null,null,null,null,null,null,null,null,null,null,null,null,null,null,null,null,null,null,null,null,null,null,null,null,null,null,null,null,null,null,null,null,null,null,null,null,null,null,0,0,0,0,0]
[null,null,null,null,null,null,null,null,null,null,null,null,null,null,null,null,null,null,null,null,null,null,null,null,null,null,null,null,null,null,null,null,null,null,null,null,null,null,null,null,null,null,null,null,null,null,null,null,null,null,null,null,null,null,null,null,null,null,null,null,null,null,null,null,0,0,0,0,0]
[null,null,null,null,null,null,null,null,null,null,null,null,null,null,null,null,null,null,null,null,null,null,null,null,null,null,null,null,null,null,null,null,null,null,null,null,null,null,null,null,null,null,null,null,null,null,null,null,null,null,null,null,null,null,null,null,null,null,null,null,null,null,null,null,0,0,0,0,0]
[null,null,null,null,null,null,null,null,null,null,null,null,null,null,null,null,null,null,null,null,null,null,null,null,null,null,null,null,null,null,null,null,null,null,null,null,null,null,null,null,null,null,null,null,null,null,null,null,null,null,null,null,null,null,null,null,null,null,null,null,null,null,null,null,0,0,0,0,0]
[null,null,null,null,null,null,null,null,null,null,null,null,null,null,null,null,null,null,null,null,null,null,null,null,null,null,null,null,null,null,null,null,null,null,null,null,null,null,null,null,null,null,null,null,null,null,null,null,null,null,null,null,null,null,null,null,null,null,null,null,null,null,null,null,0,0,0,0,0]
[null,null,null,null,null,null,null,null,null,null,null,null,null,null,null,null,null,null,null,null,null,null,null,null,null,null,null,null,null,null,null,null,null,null,null,null,null,null,null,null,null,null,null,null,null,null,null,null,null,null,null,null,null,null,null,null,null,null,null,null,null,null,null,null,0,0,0,0,0]
[null,null,null,null,null,null,null,null,null,null,null,null,null,null,null,null,null,null,null,null,null,null,null,null,null,null,null,null,null,null,null,null,null,null,null,null,null,null,null,null,null,null,null,null,null,null,null,null,null,null,null,null,null,null,null,null,null,null,null,null,null,null,null,null,0,0,0,0,0]
[null,null,null,null,null,null,null,null,null,null,null,null,null,null,null,null,null,null,null,null,null,null,null,null,null,null,null,null,null,null,null,null,null,null,null,null,null,null,null,null,null,null,null,null,null,null,null,null,null,null,null,null,null,null,null,null,null,null,null,null,null,null,null,null,0,0,0,0,0]
[null,null,null,null,null,null,null,null,null,null,null,null,null,null,null,null,null,null,null,null,null,null,null,null,null,null,null,null,null,null,null,null,null,null,null,null,null,null,null,null,null,null,null,null,null,null,null,null,null,null,null,null,null,null,null,null,null,null,null,null,null,null,null,null,0,0,0,0,0]
[null,null,null,null,null,null,null,null,null,null,null,null,null,null,null,null,null,null,null,null,null,null,null,null,null,null,null,null,null,null,null,null,null,null,null,null,null,null,null,null,null,null,null,null,null,null,null,null,null,null,null,null,null,null,null,null,null,null,null,null,null,null,null,null,0,0,0,0,0]
[null,null,null,null,null,null,null,null,null,null,null,null,null,null,null,null,null,null,null,null,null,null,null,null,null,null,null,null,null,null,null,null,null,null,null,null,null,null,null,null,null,null,null,null,null,null,null,null,null,null,null,null,null,null,null,null,null,null,null,null,null,null,null,null,0,0,0,0,0]
[null,null,null,null,null,null,null,null,null,null,null,null,null,null,null,null,null,null,null,null,null,null,null,null,null,null,null,null,null,null,null,null,null,null,null,null,null,null,null,null,null,null,null,null,null,null,null,null,null,null,null,null,null,null,null,null,null,null,null,null,null,null,null,null,0,0,0,0,0]
[null,null,null,null,null,null,null,null,null,null,null,null,null,null,null,null,null,null,null,null,null,null,null,null,null,null,null,null,null,null,null,null,null,null,null,null,null,null,null,null,null,null,null,null,null,null,null,null,null,null,null,null,null,null,null,null,null,null,null,null,null,null,null,null,0,0,0,0,0]
[null,null,null,null,null,null,null,null,null,null,null,null,null,null,null,null,null,null,null,null,null,null,null,null,null,null,null,null,null,null,null,null,null,null,null,null,null,null,null,null,null,null,null,null,null,null,null,null,null,null,null,null,null,null,null,null,null,null,null,null,null,null,null,null,0,0,0,0,0]
[null,null,null,null,null,null,null,null,null,null,null,null,null,null,null,null,null,null,null,null,null,null,null,null,null,null,null,null,null,null,null,null,null,null,null,null,null,null,null,null,null,null,null,null,null,null,null,null,null,null,null,null,null,null,null,null,null,null,null,null,null,null,null,null,0,0,0,0,0]
[null,null,null,null,null,null,null,null,null,null,null,null,null,null,null,null,null,null,null,null,null,null,null,null,null,null,null,null,null,null,null,null,null,null,null,null,null,null,null,null,null,null,null,null,null,null,null,null,null,null,null,null,null,null,null,null,null,null,null,null,null,null,null,null,0,0,0,0,0]
[null,null,null,null,null,null,null,null,null,null,null,null,null,null,null,null,null,null,null,null,null,null,null,null,null,null,null,null,null,null,null,null,null,null,null,null,null,null,null,null,null,null,null,null,null,null,null,null,null,null,null,null,null,null,null,null,null,null,null,null,null,null,null,null,0,0,0,0,0]
[null,null,null,null,null,null,null,null,null,null,null,null,null,null,null,null,null,null,null,null,null,null,null,null,null,null,null,null,null,null,null,null,null,null,null,null,null,null,null,null,null,null,null,null,null,null,null,null,null,null,null,null,null,null,null,null,null,null,null,null,null,null,null,null,0,0,0,0,0]
[null,null,null,null,null,null,null,null,null,null,null,null,null,null,null,null,null,null,null,null,null,null,null,null,null,null,null,null,null,null,null,null,null,null,null,null,null,null,null,null,null,null,null,null,null,null,null,null,null,null,null,null,null,null,null,null,null,null,null,null,null,null,null,null,0,0,0,0,0]
[null,null,null,null,null,null,null,null,null,null,null,null,null,null,null,null,null,null,null,null,null,null,null,null,null,null,null,null,null,null,null,null,null,null,null,null,null,null,null,null,null,null,null,null,null,null,null,null,null,null,null,null,null,null,null,null,null,null,null,null,null,null,null,null,0,0,0,{"$f":"INT(IF(H452=\"عامل تعاقد\",I452*25/100,IF(H452=\"معلم مساعد\",I452*25/100,IF(H452=\"معلم\",I452*25/100,IF(H452=\"معلم أول\",I452*25/100,IF(H452=\"معلم أول أ\",I452*25/100,IF(H452=\"خبير\",I452*25/100,IF(H452=\"كبير\",I452*25/100,))))))))","v":0},{"$f":"INT(IF(H452=\"إدارى\",J452*0/100,IF(H452=\"معلم مساعد\",I452*125/100,IF(H452=\"معلم\",I452*75/100,IF(H452=\"معلم أول\",I452*50/100,IF(H452=\"معلم أول أ\",I452*25/100,IF(H452=\"خبير\",I452*25/100,IF(H452=\"كبير\",I452*25/100,))))))))","v":0}]
[null,null,null,null,null,null,null,null,null,null,null,null,null,null,null,null,null,null,null,null,null,null,null,null,null,null,null,null,null,null,null,null,null,null,null,null,null,null,null,null,null,null,null,null,null,null,null,null,null,null,null,null,null,null,null,null,null,null,null,null,null,null,null,null,{"$f":"IF(H453=\"عقد مميز\",I453*0/100,IF(H453=\"معلم تعاقد\",I453*0/100,IF(H453=\"معلم\",I453*50/100,IF(H453=\"معلم أول\",I453*50/100,IF(H453=\"معلم أول أ\",I453*50/100,IF(H453=\"خبير\",I453*50/100,IF(H453=\"كبير\",I453*50/100,)))))))","v":0},0,0,0,0]
[null,null,null,null,null,null,null,null,null,null,null,null,null,null,null,null,null,null,null,null,null,null,null,null,null,null,null,null,null,null,null,null,null,null,null,null,null,null,null,null,null,null,null,null,null,null,null,null,null,null,null,null,null,null,null,null,null,null,null,null,null,null,null,null,0,0,{"$f":"IF(H454=\"إدارى\",I454*0,IF(H454=\"معلم مساعد\",I454*0/100,IF(H454=\"معلم\",I454*50/100,IF(H454=\"معلم أول\",I454*75/100,IF(H454=\"معلم أول أ\",I454*100/100,IF(H454=\"خبير\",I454*125/100,IF(H454=\"كبير\",I454*150/100,)))))))","v":0},0,0]
[null,null,null,null,null,null,null,null,null,null,null,null,null,null,null,null,null,null,null,null,null,null,null,null,null,null,null,null,null,null,null,null,null,null,null,null,null,null,null,null,null,null,null,null,null,null,null,null,null,null,null,null,null,null,null,null,null,null,null,null,null,null,null,null,0,0,0,0,0]
[null,null,null,null,null,null,null,null,null,null,null,null,null,null,null,null,null,null,null,null,null,null,null,null,null,null,null,null,null,null,null,null,null,null,null,null,null,null,null,null,null,null,null,null,null,null,null,null,null,null,null,null,null,null,null,null,null,null,null,null,null,null,null,null,0,0,0,0,0]
[null,null,null,null,null,null,null,null,null,null,null,null,null,null,null,null,null,null,null,null,null,null,null,null,null,null,null,null,null,null,null,null,null,null,null,null,null,null,null,null,null,null,null,null,null,null,null,null,null,null,null,null,null,null,null,null,null,null,null,null,null,null,null,null,0,0,0,0,0]
[null,null,null,null,null,null,null,null,null,null,null,null,null,null,null,null,null,null,null,null,null,null,null,null,null,null,null,null,null,null,null,null,null,null,null,null,null,null,null,null,null,null,null,null,null,null,null,null,null,null,null,null,null,null,null,null,null,null,null,null,null,null,null,null,0,0,0,0,0]
[null,null,null,null,null,null,null,null,null,null,null,null,null,null,null,null,null,null,null,null,null,null,null,null,null,null,null,null,null,null,null,null,null,null,null,null,null,null,null,null,null,null,null,null,null,null,null,null,null,null,null,null,null,null,null,null,null,null,null,null,null,null,null,null,0,0,0,0,0]
[null,null,null,null,null,null,null,null,null,null,null,null,null,null,null,null,null,null,null,null,null,null,null,null,null,null,null,null,null,null,null,null,null,null,null,null,null,null,null,null,null,null,null,null,null,null,null,null,null,null,null,null,null,null,null,null,null,null,null,null,null,null,null,null,0,0,0,0,0]
[null,null,null,null,null,null,null,null,null,null,null,null,null,null,null,null,null,null,null,null,null,null,null,null,null,null,null,null,null,null,null,null,null,null,null,null,null,null,null,null,null,null,null,null,null,null,null,null,null,null,null,null,null,null,null,null,null,null,null,null,null,null,null,null,0,0,0,0,0]
[null,null,null,null,null,null,null,null,null,null,null,null,null,null,null,null,null,null,null,null,null,null,null,null,null,null,null,null,null,null,null,null,null,null,null,null,null,null,null,null,null,null,null,null,null,null,null,null,null,null,null,null,null,null,null,null,null,null,null,null,null,null,null,null,0,0,0,0,0]
[null,null,null,null,null,null,null,null,null,null,null,null,null,null,null,null,null,null,null,null,null,null,null,null,null,null,null,null,null,null,null,null,null,null,null,null,null,null,null,null,null,null,null,null,null,null,null,null,null,null,null,null,null,null,null,null,null,null,null,null,null,null,null,null,0,0,0,0,0]

{"sheet":"الاستمارة ","index":2,"n_rows":25,"n_cols":104,"rows_kept":25,"cut":false,"hidden":false,"merged":[[2,86,5,86],[3,51,3,69],[3,70,3,72],[3,73,4,82],[4,42,5,42],[4,51,4,58],[4,59,4,63],[4,70,5,70],[4,71,5,71],[4,72,5,72],[1,0,1,50],[1,51,1,55],[1,56,1,69],[2,50,5,50],[2,51,2,82],[3,43,5,43],[3,44,4,46],[3,47,5,47],[3,48,5,48],[3,49,5,49],[0,43,0,46],[0,51,0,56],[0,58,0,61],[0,64,0,69],[0,73,0,83],[22,2,22,3],[22,4,22,5],[21,83,21,84],[2,89,5,89],[3,1,5,1],[3,2,4,6],[3,7,5,7],[3,8,4,12],[3,13,5,13],[3,14,4,40],[3,41,5,41],[2,2,2,48],[2,83,5,83],[2,84,5,84],[2,85,5,85],[2,87,5,87]]}
[null,null,null,null,null,null,null,null,null,null,null,null,null,{"$f":"'العاملين '!BA9","v":0},"كشــــــــــــــــــــــــــــــف المرتبات عن شــــــــــــــــــــــــــــــــهر /",null,null,null,null,null,null,null,null,null,null,null,null,null,null,null,null,null,null,null,null,null,null,null,null,null,null,null,null,{"$f":"ورقة1!C3","v":"مارس 2018"},null,null,null,null,null,null,null,{"$f":"ورقة1!C3","v":"مارس 2018"},null,null,null,null,null," ","ســــــــــــــــــــــــــــــــنة /",null,null,null,null,null,{"$f":"IF($CH12>0,ورقة1!$C$5,0)","v":2018},null,null,null,null,null,"م",null,null,"كشف 1"]
[{"$f":"ورقة1!C1","v":"الشهداء التعليمية"},null,null,null,null,null,null,null,null,null,null,null,null,null,null,null,null,null,null,null,null,null,null,null,null,null,null,null,null,null,null,null,null,null,null,null,null,null,null,null,null,null,null,null,null,null,null,null,null,null,null,"مدرسة /  ",null,null,null,null,{"$f":"IF($CH12>0,ورقة1!$C$2,\" \")","v":"الادارة"},null,null,null,null,null,null,null,null,null,null,null,null,null,null,null,null,null,null," ",null,null,null,null,null,null,null,null,null,null,{"$f":"FLOOR(CN12,0.05)","v":0},null,null,null,null,null,null,null,null,null,null,null,null,{"$f":"'العاملين '!CA10","v":1370},null,null,null,{"$f":"'العاملين '!CA10","v":1370}]
[1,null,"الاســــــــــــــــــــــــــتحـــــــــــــــــــــــــــــــــقــــــــــــــــــــــــــــــــــــــــــــــــــــــــــــــــــــــــــاقـــــــــــــــــــــــــــــــــــات ",null,null,null,null,null,null,null,null,null,null,null,null,null,null,null,null,null,null,null,null,null,null,null,null,null,null,null,null,null,null,null,null,null,null,null,null,null,null,null,null,null,null,null,null,null,null,null,"جملة الاستــــحقــاقات ","الأســـــــــــــــــــــــــــــــــــــتـــــــقـــــــــــــــــطاعـــــــــــــــــات ",null,null,null,null,null,null,null,null,null,null,null,null,null,null,null,null,null,null,null,null,null,null,null,null,null,null,null,null,null,null,null,"جملة الأستقطاعات ","الصافي المستحق ","الاســـــــــــــــــــم ","التوقيع بالاســــــــــــتلام ","صافي الشهر السابق ",null,"اسم البنك"]
[1,"م ","الاجور الاســــــــــــــــــــــــــاسية ",null,null,null,null,"الجملة ","الاجور المتغيرة الخاضعة بكامل قيمتها للتأمينات والمعاشات ",null,null,null,null,"الجملة ","الاجور المتغيرة الاخري بنسبة        %",null,null,null,null,null,null,null,null,null,null,null,null,null,null,null,null,null,null,null,null,null,null,null,null,null,null,"الجملة ",{"$f":"'العاملين '!CA5","v":2800},"غير خاضع","حصص الاجور المتغيرة ",null,null,"الجملة ","منحة ","انقطاع",null,"لحســــــــــــــــــــاب الهيئة القوميـــــــــــــــــــــة للتـــــــــــــــــأمين الإجتـــــــــــــــــــــــــماعي ",null,null,null,null,null,null,null,null,null,null,null,null,null,null,null,null,null,null,"لحساب جاري دائنة مصلحة الضرائب ",null,null,"لحساب دائنين مختلفين "]
[1,null,null,null,null,null,null,null,null,null,null,null,null,null,null,null,null,null,null,null,null,null,null,null,null,null,null,null,null,null,null,null,null,null,null,null,null,null,null,null,null,null,"خاضع",null,null,null,null,null,null,null,null,"استقطاعات الأجور الاســــــــــــــــــاسية ",null,null,null,null,null,null,null,"استقطاعات الأجور المتغيرة ",null,null,null,null,"الأقساط الخاصة عن الأجور الأساسية ",null,null,null,null,null,"ضريبة دخل  ","دمغة عادية   ","دمغة نسبية"]
[1,null,"المرتب "," حصة الحكومة  15%",0.01,"أل 2 %","أ ل3 %",null,"علاوة 2012","علاوة 2013","علاوة 2014","علاوة 2015","علاوة 2016",null,{"$f":"'العاملين '!P2","v":"ع اجتماعية"},{"$f":"'العاملين '!Q2","v":"ع اجتماعيةاضافية"},{"$f":"'العاملين '!R2","v":"أعباء وظيفية"},{"$f":"'العاملين '!AA2","v":"الحدالادنى"},{"$f":"'العاملين '!S2","v":"بدل نظارة"},{"$f":"'العاملين '!T2","v":"حافز مدير"},{"$f":"'العاملين '!U2","v":"بدل تفرغ"},{"$f":"'العاملين '!V2","v":"بدل تجاريين"},{"$f":"'العاملين '!W2","v":"بدل عدوي"},{"$f":"'العاملين '!X2","v":"حافز ماجستير"},{"$f":"'العاملين '!Y2","v":"حافزدكتوراة"},{"$f":"'العاملين '!Z2","v":"بدل تسكين"},{"$f":"'العاملين '!BM2","v":"بدل معلم اضافى"},{"$f":"'العاملين '!BN2","v":"بدل معلم "},{"$f":"'العاملين '!BO2","v":"بدل اعتماد "},{"$f":"'العاملين '!BP2","v":"حافز 25 %"},{"$f":"'العاملين '!BQ2","v":"حافز أداء "},{"$f":"'العاملين '!BR2","v":"الـ91.5"},{"$f":"'العاملين '!BS2","v":"ال50%"},{"$f":"'العاملين '!BT2","v":"ال 33%"},"الاجر الوظيفي","الاجر المكمل","الحافزالتعويضي",{"$f":"'العاملين '!AD2","v":"اكتب ما تشاء"},{"$f":"'العاملين '!AE2","v":"اكتب ما تشاء"},{"$f":"'العاملين '!AF2","v":"اكتب ما تشاء"},{"$f":"'العاملين '!AG2","v":"اكتب ما تشاء"},null,null,null,"ألـ 15 %","ألـ 1 %","ألـ 3%",null,null,null,null," حصة الحكومة  15%","إصابة عمل  1%","الـ 2%",null," حصة الموظف  10%","ال8%","ألـ 3%","ألـ 1 %"," حصة الحكومة  15%","إصابة عمل  1%"," حصة الموظف  10%","ال3%","ال1%","زمالة   7 %","زمالة  جماعى","نقابه","رابطة ","نادى محافظة","نادي الادارة",null,null,null,{"$f":"'العاملين '!AP2","v":"أرباب عهد"},{"$f":"'العاملين '!AQ2","v":"خدمات عمالية"},{"$f":"'العاملين '!AR2","v":"نقابة بحث علمى 5%"},{"$f":"'العاملين '!AS3","v":"ناصر"},{"$f":"'العاملين '!AT3","v":"القاهرة"},{"$f":"'العاملين '!AU3","v":"الاهلى"},"خصومات اخرى","نقابةتجاريين",{"$f":"'العاملين '!AX2","v":"نصف العلاوة"},"كسر قرش",null,null,null,null,null,null,null,null,null,{"$f":"'العاملين '!CA10","v":1370}]
[1,1,{"$f":"IF($CI7>0,VLOOKUP($CI7,'العاملين '!$A$3:$AR$260,10),0)","v":16650},{"$f":"ROUND(IF(C7<=$CO$6,C7*0.15,$CO$6*0.15),2)","v":205.5},{"$f":"ROUND(IF(C7<$A$3,C7*$E$6,IF(C7>=$A$3,$E$6*$A$3)),2)","v":0.01},{"$f":"ROUND(IF(C7<=$CO$6,C7*0.02,$CO$6*0.02),2)","v":27.4},{"$f":"ROUND(IF(C7<=$CO$6,C7*0.03,$CO$6*0.03),2)","v":41.1},{"$f":"IF($C7>0,SUM(C7:G7),\" \")","v":16924.009999999998},{"$f":"IF($CI7>0,VLOOKUP($CI7,'العاملين '!$A$3:$AR$260,11),0)","v":0},{"$f":"IF($CI7>0,VLOOKUP($CI7,'العاملين '!$A$3:$AR$260,12),0)","v":62.23},{"$f":"IF($CI7>0,VLOOKUP($CI7,'العاملين '!$A$3:$AR$260,13),0)","v":62.73},{"$f":"IF($CI7>0,VLOOKUP($CI7,'العاملين '!$A$3:$AR$260,14),0)","v":66.69},{"$f":"IF($CI7>0,VLOOKUP($CI7,'العاملين '!$A$3:$AR$260,15),0)","v":0},{"$f":"IF($C7>0,SUM(I7:M7),0)","v":191.64999999999998},{"$f":"IF($CI7>0,VLOOKUP($CI7,'العاملين '!$A$3:$AR$260,16),0)","v":4},{"$f":"IF($CI7>0,VLOOKUP($CI7,'العاملين '!$A$3:$AR$260,17),0)","v":6},{"$f":"IF($CI7>0,VLOOKUP($CI7,'العاملين '!$A$3:$AR$260,18),0)","v":350},{"$f":"IF($CI7>0,VLOOKUP($CI7,'العاملين '!$A$3:$AR$260,27),0)","v":0},{"$f":"IF($CI7>0,VLOOKUP($CI7,'العاملين '!$A$3:$AR$260,19),0)","v":0},{"$f":"IF($CI7>0,VLOOKUP($CI7,'العاملين '!$A$3:$AR$260,20),0)","v":0},{"$f":"IF($CI7>0,VLOOKUP($CI7,'العاملين '!$A$3:$AR$260,21),0)","v":0},{"$f":"IF($CI7>0,VLOOKUP($CI7,'العاملين '!$A$3:$AR$260,22),0)","v":0},{"$f":"IF($CI7>0,VLOOKUP($CI7,'العاملين '!$A$3:$AR$260,23),0)","v":" "},{"$f":"IF($CI7>0,VLOOKUP($CI7,'العاملين '!$A$3:$AR$260,24),0)","v":0},{"$f":"IF($CI7>0,VLOOKUP($CI7,'العاملين '!$A$3:$AR$260,25),0)","v":0},{"$f":"IF($CI7>0,VLOOKUP($CI7,'العاملين '!$A$3:$AR$260,26),0)","v":0},{"$f":"IF($CI7>0,VLOOKUP($CI7,'العاملين '!$A$3:$CR$260,65),0)","v":333.49},{"$f":"IF($CI7>0,VLOOKUP($CI7,'العاملين '!$A$3:$CR$260,66),0)","v":333.49},{"$f":"IF($CI7>0,VLOOKUP($CI7,'العاملين '!$A$3:$CR$260,67),0)","v":333.49},{"$f":"IF($CI7>0,VLOOKUP($CI7,'العاملين '!$A$3:$CR$260,68),0)","v":166},{"$f":"IF($CI7>0,VLOOKUP($CI7,'العاملين '!$A$3:$CR$260,69),0)","v":500},{"$f":"IF($CI7>0,VLOOKUP($CI7,'العاملين '!$A$3:$CR$260,70),0)","v":0},{"$f":"IF($CI7>0,VLOOKUP($CI7,'العاملين '!$A$3:$CR$260,71),0)","v":0},{"$f":"IF($CI7>0,VLOOKUP($CI7,'العاملين '!$A$3:$CR$260,72),0)","v":0},null,null,null,null,null,null,{"$f":"IF($CI7>0,VLOOKUP($CI7,'العاملين '!$A$3:$AR$260,25),0)","v":0},{"$f":"SUM(N7:AO7)","v":2218.12},{"$f":"IF(AP7>$AQ$4,$AQ$4,AP7)","v":2218.12},{"$f":"AP7-AQ7","v":0},{"$f":"ROUND(($AQ7)*15%,2)","v":332.72},{"$f":"ROUND(($AQ7)*1%,2)","v":22.18},{"$f":"ROUND(($AQ7)*3%,2)","v":66.540000000000006},{"$f":"SUM(AS7:AU7)","v":421.44000000000005},{"$f":"IF($CI7>0,VLOOKUP($CI7,'العاملين '!$A$3:$CR$260,64),0)","v":10},{"$f":"IF($CI7>0,VLOOKUP($CI7,'العاملين '!$A$3:$CR$260,52),0)","v":" "},{"$f":"SUM(AW7,AV7,AP7,H7,AX7)","v":19573.57},{"$f":"ROUND(IF(C7<=$CO$6,C7*0.15,$CO$6*0.15),2)","v":205.5},{"$f":"ROUND(IF(C7<=$CO$6,C7*0.01,$CO$6*0.01),2)","v":13.7},{"$f":"ROUND(IF(C7<=$CO$6,C7*0.02,$CO$6*0.02),2)","v":27.4},null,{"$f":"IF($C7>0,ROUND(($C7)*10%,2),\" \")","v":1665},{"$f":"ROUND(IF(C7<=$CO$6,C7*0.08,$CO$6*0.08),2)","v":109.6},{"$f":"ROUND(IF(C7<=$CO$6,C7*0.03,$CO$6*0.03),2)","v":41.1},{"$f":"ROUND(IF(C7<=$CO$6,C7*0.01,$CO$6*0.01),2)","v":13.7},{"$f":"AS7","v":332.72},22.18,{"$f":"ROUND(($AQ7)*10%,2)","v":221.81},{"$f":"AU7","v":66.540000000000006},{"$f":"AT7","v":22.18},{"$f":"IF($CK7=1,ROUND(($C7)*7%,2),IF($CK7=2,VLOOKUP($CI7,'العاملين '!$A$3:$CT$260,53),0))","v":1165.5},{"$f":"IF($CK7=1,0.5,IF($CK7=2,VLOOKUP($CI7,'العاملين '!$A$3:$CS$260,54),0))","v":0.5},{"$f":"IF($CK7=1,4.5,IF($CK7=2,VLOOKUP($CI7,'العاملين '!$A$3:$CT$260,55),0))","v":4.5},{"$f":"IF($CI7>0,VLOOKUP($CI7,'العاملين '!$A$3:$AR$260,38),0)","v":1},{"$f":"IF($CK7=1,0.2,IF($CK7=2,VLOOKUP($CI7,'العاملين '!$A$3:$CT$260,55),0))","v":0.2},{"$f":"IF($CK7=1,0.05,IF($CK7=2,VLOOKUP($CI7,'العاملين '!$A$3:$CT$260,55),0))","v":0.05},{"$f":"IF($CI7>0,VLOOKUP($CI7,'العاملين '!$A$3:$AR$260,39),0)","v":7.25},{"$f":"IF($CI7>0,VLOOKUP($CI7,'العاملين '!$A$3:$AR$260,40),0)","v":15.45},{"$f":"IF($CI7>0,VLOOKUP($CI7,'العاملين '!$A$3:$AR$260,41),0)","v":0},{"$f":"IF($CI7>0,VLOOKUP($CI7,'العاملين '!$A$3:$AR$260,42),0)","v":0},{"$f":"IF($CI7>0,VLOOKUP($CI7,'العاملين '!$A$3:$AR$260,43),0)","v":0},{"$f":"IF($CI7>0,VLOOKUP($CI7,'العاملين '!$A$3:$AR$260,44),0)","v":0},{"$f":"IF($CI7>0,VLOOKUP($CI7,'العاملين '!$A$3:$CR$260,45),0)","v":0},{"$f":"IF($CI7>0,VLOOKUP($CI7,'العاملين '!$A$3:$CR$260,46),0)","v":0},{"$f":"IF($CI7>0,VLOOKUP($CI7,'العاملين '!$A$3:$CR$260,47),0)","v":0},{"$f":"IF($CI7>0,VLOOKUP($CI7,'العاملين '!$A$3:$CR$260,48),0)","v":0},null,{"$f":"IF($CI7>0,VLOOKUP($CI7,'العاملين '!$A$3:$AR$260,41),0)","v":0},{"$f":"CM7-CG7","v":3.9999999999054126E-2},{"$f":"SUM(AZ7:CE7)","v":3935.9199999999978},{"$f":"FLOOR(CM7,0.05)","v":15637.650000000001},{"$f":"IF($CI7>0,VLOOKUP($CI7,'العاملين '!$A$3:$AR$260,2),0)","v":"محمد1"},1,null,{"$f":"IF($CI7>0,VLOOKUP($CI7,'العاملين '!$A$3:$CR$260,3),0)","v":1},{"$f":"IF($CI7>0,VLOOKUP($CI7,'العاملين '!$A$3:$CR$260,49),0)","v":"khwv"},{"$f":"AY7-SUM(AZ7:CD7)","v":15637.69},null,{"$f":"'العاملين '!BA10","v":0}]
[0,2,{"$f":"IF($CI8>0,VLOOKUP($CI8,'العاملين '!$A$3:$AR$260,10),0)","v":16650},{"$f":"ROUND(IF(C8<=$CO$6,C8*0.15,$CO$6*0.15),2)","v":205.5},{"$f":"ROUND(IF(C8<$A$3,C8*$E$6,IF(C8>=$A$3,$E$6*$A$3)),2)","v":0.01},{"$f":"ROUND(IF(C8<=$CO$6,C8*0.02,$CO$6*0.02),2)","v":27.4},{"$f":"ROUND(IF(C8<=$CO$6,C8*0.03,$CO$6*0.03),2)","v":41.1},{"$f":"IF($C8>0,SUM(C8:G8),\" \")","v":16924.009999999998},{"$f":"IF($CI8>0,VLOOKUP($CI8,'العاملين '!$A$3:$AR$260,11),0)","v":0},{"$f":"IF($CI8>0,VLOOKUP($CI8,'العاملين '!$A$3:$AR$260,12),0)","v":62.23},{"$f":"IF($CI8>0,VLOOKUP($CI8,'العاملين '!$A$3:$AR$260,13),0)","v":62.73},{"$f":"IF($CI8>0,VLOOKUP($CI8,'العاملين '!$A$3:$AR$260,14),0)","v":66.69},{"$f":"IF($CI8>0,VLOOKUP($CI8,'العاملين '!$A$3:$AR$260,15),0)","v":0},{"$f":"IF($C8>0,SUM(I8:M8),0)","v":191.64999999999998},{"$f":"IF($CI8>0,VLOOKUP($CI8,'العاملين '!$A$3:$AR$260,16),0)","v":4},{"$f":"IF($CI8>0,VLOOKUP($CI8,'العاملين '!$A$3:$AR$260,17),0)","v":6},{"$f":"IF($CI8>0,VLOOKUP($CI8,'العاملين '!$A$3:$AR$260,18),0)","v":350},{"$f":"IF($CI8>0,VLOOKUP($CI8,'العاملين '!$A$3:$AR$260,27),0)","v":0},{"$f":"IF($CI8>0,VLOOKUP($CI8,'العاملين '!$A$3:$AR$260,19),0)","v":0},{"$f":"IF($CI8>0,VLOOKUP($CI8,'العاملين '!$A$3:$AR$260,20),0)","v":0},{"$f":"IF($CI8>0,VLOOKUP($CI8,'العاملين '!$A$3:$AR$260,21),0)","v":0},{"$f":"IF($CI8>0,VLOOKUP($CI8,'العاملين '!$A$3:$AR$260,22),0)","v":0},{"$f":"IF($CI8>0,VLOOKUP($CI8,'العاملين '!$A$3:$AR$260,23),0)","v":" "},{"$f":"IF($CI8>0,VLOOKUP($CI8,'العاملين '!$A$3:$AR$260,24),0)","v":0},{"$f":"IF($CI8>0,VLOOKUP($CI8,'العاملين '!$A$3:$AR$260,25),0)","v":0},{"$f":"IF($CI8>0,VLOOKUP($CI8,'العاملين '!$A$3:$AR$260,26),0)","v":0},{"$f":"IF($CI8>0,VLOOKUP($CI8,'العاملين '!$A$3:$CR$260,65),0)","v":333.49},{"$f":"IF($CI8>0,VLOOKUP($CI8,'العاملين '!$A$3:$CR$260,66),0)","v":333.49},{"$f":"IF($CI8>0,VLOOKUP($CI8,'العاملين '!$A$3:$CR$260,67),0)","v":333.49},{"$f":"IF($CI8>0,VLOOKUP($CI8,'العاملين '!$A$3:$CR$260,68),0)","v":166},{"$f":"IF($CI8>0,VLOOKUP($CI8,'العاملين '!$A$3:$CR$260,69),0)","v":500},{"$f":"IF($CI8>0,VLOOKUP($CI8,'العاملين '!$A$3:$CR$260,70),0)","v":0},{"$f":"IF($CI8>0,VLOOKUP($CI8,'العاملين '!$A$3:$CR$260,71),0)","v":0},{"$f":"IF($CI8>0,VLOOKUP($CI8,'العاملين '!$A$3:$CR$260,72),0)","v":0},null,null,null,null,null,null,{"$f":"IF($CI8>0,VLOOKUP($CI8,'العاملين '!$A$3:$AR$260,25),0)","v":0},{"$f":"SUM(N8:AO8)","v":2218.12},{"$f":"IF(AP8>$AQ$4,$AQ$4,AP8)","v":2218.12},{"$f":"AP8-AQ8","v":0},{"$f":"ROUND(($AQ8)*15%,2)","v":332.72},{"$f":"ROUND(($AQ8)*1%,2)","v":22.18},{"$f":"ROUND(($AQ8)*3%,2)","v":66.540000000000006},{"$f":"SUM(AS8:AU8)","v":421.44000000000005},{"$f":"IF($CI8>0,VLOOKUP($CI8,'العاملين '!$A$3:$CR$260,64),0)","v":10},{"$f":"IF($CI8>0,VLOOKUP($CI8,'العاملين '!$A$3:$CR$260,52),0)","v":" "},{"$f":"SUM(AW8,AV8,AP8,H8,AX8)","v":19573.57},{"$f":"ROUND(IF(C8<=$CO$6,C8*0.15,$CO$6*0.15),2)","v":205.5},{"$f":"ROUND(IF(C8<=$CO$6,C8*0.01,$CO$6*0.01),2)","v":13.7},{"$f":"ROUND(IF(C8<=$CO$6,C8*0.02,$CO$6*0.02),2)","v":27.4},null,{"$f":"IF($C8>0,ROUND(($C8)*10%,2),\" \")","v":1665},{"$f":"ROUND(IF(C8<=$CO$6,C8*0.08,$CO$6*0.08),2)","v":109.6},{"$f":"ROUND(IF(C8<=$CO$6,C8*0.03,$CO$6*0.03),2)","v":41.1},{"$f":"ROUND(IF(C8<=$CO$6,C8*0.01,$CO$6*0.01),2)","v":13.7},332.72,22.18,{"$f":"ROUND(($AQ8)*10%,2)","v":221.81},{"$f":"AU8","v":66.540000000000006},{"$f":"AT8","v":22.18},{"$f":"IF($CK8=1,ROUND(($C8)*7%,2),IF($CK8=2,VLOOKUP($CI8,'العاملين '!$A$3:$CT$260,53),0))","v":1165.5},{"$f":"IF($CK8=1,0.5,IF($CK8=2,VLOOKUP($CI8,'العاملين '!$A$3:$CS$260,54),0))","v":0.5},{"$f":"IF($CK8=1,4.5,IF($CK8=2,VLOOKUP($CI8,'العاملين '!$A$3:$CT$260,55),0))","v":4.5},{"$f":"IF($CI8>0,VLOOKUP($CI8,'العاملين '!$A$3:$AR$260,38),0)","v":1},{"$f":"IF($CK8=1,0.2,IF($CK8=2,VLOOKUP($CI8,'العاملين '!$A$3:$CT$260,55),0))","v":0.2},{"$f":"IF($CK8=1,0.05,IF($CK8=2,VLOOKUP($CI8,'العاملين '!$A$3:$CT$260,55),0))","v":0.05},{"$f":"IF($CI8>0,VLOOKUP($CI8,'العاملين '!$A$3:$AR$260,39),0)","v":7.25},{"$f":"IF($CI8>0,VLOOKUP($CI8,'العاملين '!$A$3:$AR$260,40),0)","v":15.45},{"$f":"IF($CI8>0,VLOOKUP($CI8,'العاملين '!$A$3:$AR$260,41),0)","v":0},{"$f":"IF($CI8>0,VLOOKUP($CI8,'العاملين '!$A$3:$AR$260,42),0)","v":0},{"$f":"IF($CI8>0,VLOOKUP($CI8,'العاملين '!$A$3:$AR$260,43),0)","v":0},{"$f":"IF($CI8>0,VLOOKUP($CI8,'العاملين '!$A$3:$AR$260,44),0)","v":0},{"$f":"IF($CI8>0,VLOOKUP($CI8,'العاملين '!$A$3:$CR$260,45),0)","v":0},{"$f":"IF($CI8>0,VLOOKUP($CI8,'العاملين '!$A$3:$CR$260,46),0)","v":0},{"$f":"IF($CI8>0,VLOOKUP($CI8,'العاملين '!$A$3:$CR$260,47),0)","v":0},{"$f":"IF($CI8>0,VLOOKUP($CI8,'العاملين '!$A$3:$CR$260,48),0)","v":0},null,{"$f":"IF($CI8>0,VLOOKUP($CI8,'العاملين '!$A$3:$AR$260,41),0)","v":0},{"$f":"CM8-CG8","v":3.9999999999054126E-2},{"$f":"SUM(AZ8:CE8)","v":3935.9199999999978},{"$f":"FLOOR(CM8,0.05)","v":15637.650000000001},{"$f":"IF($CI8>0,VLOOKUP($CI8,'العاملين '!$A$3:$AR$260,2),0)","v":"محمد1"},1,null,{"$f":"IF($CI8>0,VLOOKUP($CI8,'العاملين '!$A$3:$CR$260,3),0)","v":1},{"$f":"IF($CI8>0,VLOOKUP($CI8,'العاملين '!$A$3:$CR$260,49),0)","v":"khwv"},{"$f":"AY8-SUM(AZ8:CD8)","v":15637.69}]
[0,3,{"$f":"IF($CI9>0,VLOOKUP($CI9,'العاملين '!$A$3:$AR$260,10),0)","v":16650},{"$f":"ROUND(IF(C9<=$CO$6,C9*0.15,$CO$6*0.15),2)","v":205.5},{"$f":"ROUND(IF(C9<$A$3,C9*$E$6,IF(C9>=$A$3,$E$6*$A$3)),2)","v":0.01},{"$f":"ROUND(IF(C9<=$CO$6,C9*0.02,$CO$6*0.02),2)","v":27.4},{"$f":"ROUND(IF(C9<=$CO$6,C9*0.03,$CO$6*0.03),2)","v":41.1},{"$f":"IF($C9>0,SUM(C9:G9),\" \")","v":16924.009999999998},{"$f":"IF($CI9>0,VLOOKUP($CI9,'العاملين '!$A$3:$AR$260,11),0)","v":0},{"$f":"IF($CI9>0,VLOOKUP($CI9,'العاملين '!$A$3:$AR$260,12),0)","v":62.23},{"$f":"IF($CI9>0,VLOOKUP($CI9,'العاملين '!$A$3:$AR$260,13),0)","v":62.73},{"$f":"IF($CI9>0,VLOOKUP($CI9,'العاملين '!$A$3:$AR$260,14),0)","v":66.69},{"$f":"IF($CI9>0,VLOOKUP($CI9,'العاملين '!$A$3:$AR$260,15),0)","v":0},{"$f":"IF($C9>0,SUM(I9:M9),0)","v":191.64999999999998},{"$f":"IF($CI9>0,VLOOKUP($CI9,'العاملين '!$A$3:$AR$260,16),0)","v":4},{"$f":"IF($CI9>0,VLOOKUP($CI9,'العاملين '!$A$3:$AR$260,17),0)","v":6},{"$f":"IF($CI9>0,VLOOKUP($CI9,'العاملين '!$A$3:$AR$260,18),0)","v":350},{"$f":"IF($CI9>0,VLOOKUP($CI9,'العاملين '!$A$3:$AR$260,27),0)","v":0},{"$f":"IF($CI9>0,VLOOKUP($CI9,'العاملين '!$A$3:$AR$260,19),0)","v":0},{"$f":"IF($CI9>0,VLOOKUP($CI9,'العاملين '!$A$3:$AR$260,20),0)","v":0},{"$f":"IF($CI9>0,VLOOKUP($CI9,'العاملين '!$A$3:$AR$260,21),0)","v":0},{"$f":"IF($CI9>0,VLOOKUP($CI9,'العاملين '!$A$3:$AR$260,22),0)","v":0},{"$f":"IF($CI9>0,VLOOKUP($CI9,'العاملين '!$A$3:$AR$260,23),0)","v":" "},{"$f":"IF($CI9>0,VLOOKUP($CI9,'العاملين '!$A$3:$AR$260,24),0)","v":0},{"$f":"IF($CI9>0,VLOOKUP($CI9,'العاملين '!$A$3:$AR$260,25),0)","v":0},{"$f":"IF($CI9>0,VLOOKUP($CI9,'العاملين '!$A$3:$AR$260,26),0)","v":0},{"$f":"IF($CI9>0,VLOOKUP($CI9,'العاملين '!$A$3:$CR$260,65),0)","v":333.49},{"$f":"IF($CI9>0,VLOOKUP($CI9,'العاملين '!$A$3:$CR$260,66),0)","v":333.49},{"$f":"IF($CI9>0,VLOOKUP($CI9,'العاملين '!$A$3:$CR$260,67),0)","v":333.49},{"$f":"IF($CI9>0,VLOOKUP($CI9,'العاملين '!$A$3:$CR$260,68),0)","v":166},{"$f":"IF($CI9>0,VLOOKUP($CI9,'العاملين '!$A$3:$CR$260,69),0)","v":500},{"$f":"IF($CI9>0,VLOOKUP($CI9,'العاملين '!$A$3:$CR$260,70),0)","v":0},{"$f":"IF($CI9>0,VLOOKUP($CI9,'العاملين '!$A$3:$CR$260,71),0)","v":0},{"$f":"IF($CI9>0,VLOOKUP($CI9,'العاملين '!$A$3:$CR$260,72),0)","v":0},null,null,null,null,null,null,{"$f":"IF($CI9>0,VLOOKUP($CI9,'العاملين '!$A$3:$AR$260,25),0)","v":0},{"$f":"SUM(N9:AO9)","v":2218.12},{"$f":"IF(AP9>$AQ$4,$AQ$4,AP9)","v":2218.12},{"$f":"AP9-AQ9","v":0},{"$f":"ROUND(($AQ9)*15%,2)","v":332.72},{"$f":"ROUND(($AQ9)*1%,2)","v":22.18},{"$f":"ROUND(($AQ9)*3%,2)","v":66.540000000000006},{"$f":"SUM(AS9:AU9)","v":421.44000000000005},{"$f":"IF($CI9>0,VLOOKUP($CI9,'العاملين '!$A$3:$CR$260,64),0)","v":10},{"$f":"IF($CI9>0,VLOOKUP($CI9,'العاملين '!$A$3:$CR$260,52),0)","v":" "},{"$f":"SUM(AW9,AV9,AP9,H9,AX9)","v":19573.57},{"$f":"ROUND(IF(C9<=$CO$6,C9*0.15,$CO$6*0.15),2)","v":205.5},{"$f":"ROUND(IF(C9<=$CO$6,C9*0.01,$CO$6*0.01),2)","v":13.7},{"$f":"ROUND(IF(C9<=$CO$6,C9*0.02,$CO$6*0.02),2)","v":27.4},null,{"$f":"IF($C9>0,ROUND(($C9)*10%,2),\" \")","v":1665},{"$f":"ROUND(IF(C9<=$CO$6,C9*0.08,$CO$6*0.08),2)","v":109.6},{"$f":"ROUND(IF(C9<=$CO$6,C9*0.03,$CO$6*0.03),2)","v":41.1},{"$f":"ROUND(IF(C9<=$CO$6,C9*0.01,$CO$6*0.01),2)","v":13.7},332.72,22.18,{"$f":"ROUND(($AQ9)*10%,2)","v":221.81},{"$f":"AU9","v":66.540000000000006},{"$f":"AT9","v":22.18},{"$f":"IF($CK9=1,ROUND(($C9)*7%,2),IF($CK9=2,VLOOKUP($CI9,'العاملين '!$A$3:$CT$260,53),0))","v":1165.5},{"$f":"IF($CK9=1,0.5,IF($CK9=2,VLOOKUP($CI9,'العاملين '!$A$3:$CS$260,54),0))","v":0.5},{"$f":"IF($CK9=1,4.5,IF($CK9=2,VLOOKUP($CI9,'العاملين '!$A$3:$CT$260,55),0))","v":4.5},{"$f":"IF($CI9>0,VLOOKUP($CI9,'العاملين '!$A$3:$AR$260,38),0)","v":1},{"$f":"IF($CK9=1,0.2,IF($CK9=2,VLOOKUP($CI9,'العاملين '!$A$3:$CT$260,55),0))","v":0.2},{"$f":"IF($CK9=1,0.05,IF($CK9=2,VLOOKUP($CI9,'العاملين '!$A$3:$CT$260,55),0))","v":0.05},{"$f":"IF($CI9>0,VLOOKUP($CI9,'العاملين '!$A$3:$AR$260,39),0)","v":7.25},{"$f":"IF($CI9>0,VLOOKUP($CI9,'العاملين '!$A$3:$AR$260,40),0)","v":15.45},{"$f":"IF($CI9>0,VLOOKUP($CI9,'العاملين '!$A$3:$AR$260,41),0)","v":0},{"$f":"IF($CI9>0,VLOOKUP($CI9,'العاملين '!$A$3:$AR$260,42),0)","v":0},{"$f":"IF($CI9>0,VLOOKUP($CI9,'العاملين '!$A$3:$AR$260,43),0)","v":0},{"$f":"IF($CI9>0,VLOOKUP($CI9,'العاملين '!$A$3:$AR$260,44),0)","v":0},{"$f":"IF($CI9>0,VLOOKUP($CI9,'العاملين '!$A$3:$CR$260,45),0)","v":0},{"$f":"IF($CI9>0,VLOOKUP($CI9,'العاملين '!$A$3:$CR$260,46),0)","v":0},{"$f":"IF($CI9>0,VLOOKUP($CI9,'العاملين '!$A$3:$CR$260,47),0)","v":0},{"$f":"IF($CI9>0,VLOOKUP($CI9,'العاملين '!$A$3:$CR$260,48),0)","v":0},null,{"$f":"IF($CI9>0,VLOOKUP($CI9,'العاملين '!$A$3:$AR$260,41),0)","v":0},{"$f":"CM9-CG9","v":3.9999999999054126E-2},{"$f":"SUM(AZ9:CE9)","v":3935.9199999999978},{"$f":"FLOOR(CM9,0.05)","v":15637.650000000001},{"$f":"IF($CI9>0,VLOOKUP($CI9,'العاملين '!$A$3:$AR$260,2),0)","v":"محمد1"},1,null,{"$f":"IF($CI9>0,VLOOKUP($CI9,'العاملين '!$A$3:$CR$260,3),0)","v":1},{"$f":"IF($CI9>0,VLOOKUP($CI9,'العاملين '!$A$3:$CR$260,49),0)","v":"khwv"},{"$f":"AY9-SUM(AZ9:CD9)","v":15637.69}]
[0,"الجملة",{"$f":"SUM(C7:C9)","v":49950},{"$f":"SUM(D7:D9)","v":616.5},0.03,82.199999999999989,123.30000000000001,50772.03,0,186.69,188.19,200.07,0,574.94999999999993,12,18,1050,0,0,0,0,0,0,0,0,0,1000.47,1000.47,1000.47,498,1500,0,0,0,0,0,0,0,0,0,0,6654.36,6654.36,0,998.16000000000008,66.539999999999992,199.62,1264.3200000000002,30,0,58720.71,616.5,41.099999999999994,82.199999999999989,0,4995,328.79999999999995,123.30000000000001,41.099999999999994,998.16000000000008,66.539999999999992,665.43000000000006,199.62,66.539999999999992,3496.5,1.5,13.5,{"$f":"SUM(BP7:BP9)","v":3},0.60000000000000009,0.15000000000000002,21.75,46.349999999999994,0,0,0,0,0,0,0,0,0,0,0.11999999999716238,11807.759999999993,46912.950000000004,"الجملة",null,null,{"$f":"IF($CI10>0,VLOOKUP($CI10,'العاملين '!$A$3:$CR$260,3),0)","v":0},{"$f":"IF($CI10>0,VLOOKUP($CI10,'العاملين '!$A$3:$CR$260,49),0)","v":0},46913.07]
[0,"استمارة9",{"$f":"#REF!","v":{"$error":"#REF!"}},{"$f":"#REF!","v":{"$error":"#REF!"}},{"$f":"#REF!","v":{"$error":"#REF!"}},{"$f":"#REF!","v":{"$error":"#REF!"}},{"$f":"#REF!","v":{"$error":"#REF!"}},{"$f":"#REF!","v":{"$error":"#REF!"}},{"$f":"#REF!","v":{"$error":"#REF!"}},{"$f":"#REF!","v":{"$error":"#REF!"}},{"$f":"#REF!","v":{"$error":"#REF!"}},{"$f":"#REF!","v":{"$error":"#REF!"}},{"$f":"#REF!","v":{"$error":"#REF!"}},{"$f":"#REF!","v":{"$error":"#REF!"}},{"$f":"#REF!","v":{"$error":"#REF!"}},{"$f":"#REF!","v":{"$error":"#REF!"}},{"$f":"#REF!","v":{"$error":"#REF!"}},{"$f":"#REF!","v":{"$error":"#REF!"}},{"$f":"#REF!","v":{"$error":"#REF!"}},{"$f":"#REF!","v":{"$error":"#REF!"}},{"$f":"#REF!","v":{"$error":"#REF!"}},{"$f":"#REF!","v":{"$error":"#REF!"}},{"$f":"#REF!","v":{"$error":"#REF!"}},{"$f":"#REF!","v":{"$error":"#REF!"}},{"$f":"#REF!","v":{"$error":"#REF!"}},{"$f":"#REF!","v":{"$error":"#REF!"}},{"$f":"#REF!","v":{"$error":"#REF!"}},{"$f":"#REF!","v":{"$error":"#REF!"}},{"$f":"#REF!","v":{"$error":"#REF!"}},{"$f":"#REF!","v":{"$error":"#REF!"}},{"$f":"#REF!","v":{"$error":"#REF!"}},{"$f":"#REF!","v":{"$error":"#REF!"}},{"$f":"#REF!","v":{"$error":"#REF!"}},{"$f":"#REF!","v":{"$error":"#REF!"}},{"$f":"#REF!","v":{"$error":"#REF!"}},{"$f":"#REF!","v":{"$error":"#REF!"}},{"$f":"#REF!","v":{"$error":"#REF!"}},{"$f":"#REF!","v":{"$error":"#REF!"}},{"$f":"#REF!","v":{"$error":"#REF!"}},{"$f":"#REF!","v":{"$error":"#REF!"}},{"$f":"#REF!","v":{"$error":"#REF!"}},{"$f":"#REF!","v":{"$error":"#REF!"}},{"$f":"#REF!","v":{"$error":"#REF!"}},{"$f":"#REF!","v":{"$error":"#REF!"}},{"$f":"#REF!","v":{"$error":"#REF!"}},{"$f":"#REF!","v":{"$error":"#REF!"}},{"$f":"#REF!","v":{"$error":"#REF!"}},{"$f":"#REF!","v":{"$error":"#REF!"}},{"$f":"#REF!","v":{"$error":"#REF!"}},{"$f":"#REF!","v":{"$error":"#REF!"}},{"$f":"#REF!","v":{"$error":"#REF!"}},{"$f":"#REF!","v":{"$error":"#REF!"}},{"$f":"#REF!","v":{"$error":"#REF!"}},{"$f":"#REF!","v":{"$error":"#REF!"}},{"$f":"#REF!","v":{"$error":"#REF!"}},{"$f":"#REF!","v":{"$error":"#REF!"}},{"$f":"#REF!","v":{"$error":"#REF!"}},{"$f":"#REF!","v":{"$error":"#REF!"}},{"$f":"#REF!","v":{"$error":"#REF!"}},{"$f":"#REF!","v":{"$error":"#REF!"}},{"$f":"#REF!","v":{"$error":"#REF!"}},{"$f":"#REF!","v":{"$error":"#REF!"}},{"$f":"#REF!","v":{"$error":"#REF!"}},{"$f":"#REF!","v":{"$error":"#REF!"}},{"$f":"#REF!","v":{"$error":"#REF!"}},{"$f":"#REF!","v":{"$error":"#REF!"}},{"$f":"#REF!","v":{"$error":"#REF!"}},{"$f":"#REF!","v":{"$error":"#REF!"}},{"$f":"#REF!","v":{"$error":"#REF!"}},{"$f":"#REF!","v":{"$error":"#REF!"}},{"$f":"#REF!","v":{"$error":"#REF!"}},{"$f":"#REF!","v":{"$error":"#REF!"}},{"$f":"#REF!","v":{"$error":"#REF!"}},{"$f":"#REF!","v":{"$error":"#REF!"}},{"$f":"#REF!","v":{"$error":"#REF!"}},{"$f":"#REF!","v":{"$error":"#REF!"}},{"$f":"#REF!","v":{"$error":"#REF!"}},{"$f":"#REF!","v":{"$error":"#REF!"}},{"$f":"#REF!","v":{"$error":"#REF!"}},{"$f":"#REF!","v":{"$error":"#REF!"}},{"$f":"#REF!","v":{"$error":"#REF!"}},{"$f":"#REF!","v":{"$error":"#REF!"}},{"$f":"#REF!","v":{"$error":"#REF!"}},{"$f":"#REF!","v":{"$error":"#REF!"}},{"$f":"#REF!","v":{"$error":"#REF!"}},"جملة كشف 9",0,null,{"$f":"IF($CI11>0,VLOOKUP($CI11,'العاملين '!$A$3:$CR$260,3),0)","v":0},{"$f":"IF($CI11>0,VLOOKUP($CI11,'العاملين '!$A$3:$CR$260,49),0)","v":0},{"$f":"AY11-SUM(AZ11:CD11)","v":{"$error":"#REF!"}}]
[0,"استمارة8",{"$f":"#REF!","v":{"$error":"#REF!"}},{"$f":"#REF!","v":{"$error":"#REF!"}},{"$f":"#REF!","v":{"$error":"#REF!"}},{"$f":"#REF!","v":{"$error":"#REF!"}},{"$f":"#REF!","v":{"$error":"#REF!"}},{"$f":"#REF!","v":{"$error":"#REF!"}},{"$f":"#REF!","v":{"$error":"#REF!"}},{"$f":"#REF!","v":{"$error":"#REF!"}},{"$f":"#REF!","v":{"$error":"#REF!"}},{"$f":"#REF!","v":{"$error":"#REF!"}},{"$f":"#REF!","v":{"$error":"#REF!"}},{"$f":"#REF!","v":{"$error":"#REF!"}},{"$f":"#REF!","v":{"$error":"#REF!"}},{"$f":"#REF!","v":{"$error":"#REF!"}},{"$f":"#REF!","v":{"$error":"#REF!"}},{"$f":"#REF!","v":{"$error":"#REF!"}},{"$f":"#REF!","v":{"$error":"#REF!"}},{"$f":"#REF!","v":{"$error":"#REF!"}},{"$f":"#REF!","v":{"$error":"#REF!"}},{"$f":"#REF!","v":{"$error":"#REF!"}},{"$f":"#REF!","v":{"$error":"#REF!"}},{"$f":"#REF!","v":{"$error":"#REF!"}},{"$f":"#REF!","v":{"$error":"#REF!"}},{"$f":"#REF!","v":{"$error":"#REF!"}},{"$f":"#REF!","v":{"$error":"#REF!"}},{"$f":"#REF!","v":{"$error":"#REF!"}},{"$f":"#REF!","v":{"$error":"#REF!"}},{"$f":"#REF!","v":{"$error":"#REF!"}},{"$f":"#REF!","v":{"$error":"#REF!"}},{"$f":"#REF!","v":{"$error":"#REF!"}},{"$f":"#REF!","v":{"$error":"#REF!"}},{"$f":"#REF!","v":{"$error":"#REF!"}},{"$f":"#REF!","v":{"$error":"#REF!"}},{"$f":"#REF!","v":{"$error":"#REF!"}},{"$f":"#REF!","v":{"$error":"#REF!"}},{"$f":"#REF!","v":{"$error":"#REF!"}},{"$f":"#REF!","v":{"$error":"#REF!"}},{"$f":"#REF!","v":{"$error":"#REF!"}},{"$f":"#REF!","v":{"$error":"#REF!"}},{"$f":"#REF!","v":{"$error":"#REF!"}},{"$f":"#REF!","v":{"$error":"#REF!"}},{"$f":"#REF!","v":{"$error":"#REF!"}},{"$f":"#REF!","v":{"$error":"#REF!"}},{"$f":"#REF!","v":{"$error":"#REF!"}},{"$f":"#REF!","v":{"$error":"#REF!"}},{"$f":"#REF!","v":{"$error":"#REF!"}},{"$f":"#REF!","v":{"$error":"#REF!"}},{"$f":"#REF!","v":{"$error":"#REF!"}},{"$f":"#REF!","v":{"$error":"#REF!"}},{"$f":"#REF!","v":{"$error":"#REF!"}},{"$f":"#REF!","v":{"$error":"#REF!"}},{"$f":"#REF!","v":{"$error":"#REF!"}},{"$f":"#REF!","v":{"$error":"#REF!"}},{"$f":"#REF!","v":{"$error":"#REF!"}},{"$f":"#REF!","v":{"$error":"#REF!"}},{"$f":"#REF!","v":{"$error":"#REF!"}},{"$f":"#REF!","v":{"$error":"#REF!"}},{"$f":"#REF!","v":{"$error":"#REF!"}},{"$f":"#REF!","v":{"$error":"#REF!"}},{"$f":"#REF!","v":{"$error":"#REF!"}},{"$f":"#REF!","v":{"$error":"#REF!"}},{"$f":"#REF!","v":{"$error":"#REF!"}},{"$f":"#REF!","v":{"$error":"#REF!"}},{"$f":"#REF!","v":{"$error":"#REF!"}},{"$f":"#REF!","v":{"$error":"#REF!"}},{"$f":"#REF!","v":{"$error":"#REF!"}},{"$f":"#REF!","v":{"$error":"#REF!"}},{"$f":"#REF!","v":{"$error":"#REF!"}},{"$f":"#REF!","v":{"$error":"#REF!"}},{"$f":"#REF!","v":{"$error":"#REF!"}},{"$f":"#REF!","v":{"$error":"#REF!"}},{"$f":"#REF!","v":{"$error":"#REF!"}},{"$f":"#REF!","v":{"$error":"#REF!"}},{"$f":"#REF!","v":{"$error":"#REF!"}},{"$f":"#REF!","v":{"$error":"#REF!"}},{"$f":"#REF!","v":{"$error":"#REF!"}},{"$f":"#REF!","v":{"$error":"#REF!"}},{"$f":"#REF!","v":{"$error":"#REF!"}},{"$f":"#REF!","v":{"$error":"#REF!"}},{"$f":"#REF!","v":{"$error":"#REF!"}},{"$f":"#REF!","v":{"$error":"#REF!"}},{"$f":"#REF!","v":{"$error":"#REF!"}},{"$f":"#REF!","v":{"$error":"#REF!"}},"جملة كشف 8",0,null,{"$f":"IF($CI12>0,VLOOKUP($CI12,'العاملين '!$A$3:$CR$260,3),0)","v":0},{"$f":"IF($CI12>0,VLOOKUP($CI12,'العاملين '!$A$3:$CR$260,49),0)","v":0},{"$error":"#REF!"}]
[0,"استمارة7",{"$f":"#REF!","v":{"$error":"#REF!"}},{"$f":"#REF!","v":{"$error":"#REF!"}},{"$f":"#REF!","v":{"$error":"#REF!"}},{"$f":"#REF!","v":{"$error":"#REF!"}},{"$f":"#REF!","v":{"$error":"#REF!"}},{"$f":"#REF!","v":{"$error":"#REF!"}},{"$f":"#REF!","v":{"$error":"#REF!"}},{"$f":"#REF!","v":{"$error":"#REF!"}},{"$f":"#REF!","v":{"$error":"#REF!"}},{"$f":"#REF!","v":{"$error":"#REF!"}},{"$f":"#REF!","v":{"$error":"#REF!"}},{"$f":"#REF!","v":{"$error":"#REF!"}},{"$f":"#REF!","v":{"$error":"#REF!"}},{"$f":"#REF!","v":{"$error":"#REF!"}},{"$f":"#REF!","v":{"$error":"#REF!"}},{"$f":"#REF!","v":{"$error":"#REF!"}},{"$f":"#REF!","v":{"$error":"#REF!"}},{"$f":"#REF!","v":{"$error":"#REF!"}},{"$f":"#REF!","v":{"$error":"#REF!"}},{"$f":"#REF!","v":{"$error":"#REF!"}},{"$f":"#REF!","v":{"$error":"#REF!"}},{"$f":"#REF!","v":{"$error":"#REF!"}},{"$f":"#REF!","v":{"$error":"#REF!"}},{"$f":"#REF!","v":{"$error":"#REF!"}},{"$f":"#REF!","v":{"$error":"#REF!"}},{"$f":"#REF!","v":{"$error":"#REF!"}},{"$f":"#REF!","v":{"$error":"#REF!"}},{"$f":"#REF!","v":{"$error":"#REF!"}},{"$f":"#REF!","v":{"$error":"#REF!"}},{"$f":"#REF!","v":{"$error":"#REF!"}},{"$f":"#REF!","v":{"$error":"#REF!"}},{"$f":"#REF!","v":{"$error":"#REF!"}},{"$f":"#REF!","v":{"$error":"#REF!"}},{"$f":"#REF!","v":{"$error":"#REF!"}},{"$f":"#REF!","v":{"$error":"#REF!"}},{"$f":"#REF!","v":{"$error":"#REF!"}},{"$f":"#REF!","v":{"$error":"#REF!"}},{"$f":"#REF!","v":{"$error":"#REF!"}},{"$f":"#REF!","v":{"$error":"#REF!"}},{"$f":"#REF!","v":{"$error":"#REF!"}},{"$f":"#REF!","v":{"$error":"#REF!"}},{"$f":"#REF!","v":{"$error":"#REF!"}},{"$f":"#REF!","v":{"$error":"#REF!"}},{"$f":"#REF!","v":{"$error":"#REF!"}},{"$f":"#REF!","v":{"$error":"#REF!"}},{"$f":"#REF!","v":{"$error":"#REF!"}},{"$f":"#REF!","v":{"$error":"#REF!"}},{"$f":"#REF!","v":{"$error":"#REF!"}},{"$f":"#REF!","v":{"$error":"#REF!"}},{"$f":"#REF!","v":{"$error":"#REF!"}},{"$f":"#REF!","v":{"$error":"#REF!"}},{"$f":"#REF!","v":{"$error":"#REF!"}},{"$f":"#REF!","v":{"$error":"#REF!"}},{"$f":"#REF!","v":{"$error":"#REF!"}},{"$f":"#REF!","v":{"$error":"#REF!"}},{"$f":"#REF!","v":{"$error":"#REF!"}},{"$f":"#REF!","v":{"$error":"#REF!"}},{"$f":"#REF!","v":{"$error":"#REF!"}},{"$f":"#REF!","v":{"$error":"#REF!"}},{"$f":"#REF!","v":{"$error":"#REF!"}},{"$f":"#REF!","v":{"$error":"#REF!"}},{"$f":"#REF!","v":{"$error":"#REF!"}},{"$f":"#REF!","v":{"$error":"#REF!"}},{"$f":"#REF!","v":{"$error":"#REF!"}},{"$f":"#REF!","v":{"$error":"#REF!"}},{"$f":"#REF!","v":{"$error":"#REF!"}},{"$f":"#REF!","v":{"$error":"#REF!"}},{"$f":"#REF!","v":{"$error":"#REF!"}},{"$f":"#REF!","v":{"$error":"#REF!"}},{"$f":"#REF!","v":{"$error":"#REF!"}},{"$f":"#REF!","v":{"$error":"#REF!"}},{"$f":"#REF!","v":{"$error":"#REF!"}},{"$f":"#REF!","v":{"$error":"#REF!"}},{"$f":"#REF!","v":{"$error":"#REF!"}},{"$f":"#REF!","v":{"$error":"#REF!"}},{"$f":"#REF!","v":{"$error":"#REF!"}},{"$f":"#REF!","v":{"$error":"#REF!"}},{"$f":"#REF!","v":{"$error":"#REF!"}},{"$f":"#REF!","v":{"$error":"#REF!"}},{"$f":"#REF!","v":{"$error":"#REF!"}},{"$f":"#REF!","v":{"$error":"#REF!"}},{"$f":"#REF!","v":{"$error":"#REF!"}},{"$f":"#REF!","v":{"$error":"#REF!"}},"جملة كشف 7",0,null,{"$f":"IF($CI13>0,VLOOKUP($CI13,'العاملين '!$A$3:$CR$260,3),0)","v":0},{"$f":"IF($CI13>0,VLOOKUP($CI13,'العاملين '!$A$3:$CR$260,49),0)","v":0},{"$error":"#REF!"}]
[0,"استمارة6",{"$f":"#REF!","v":{"$error":"#REF!"}},{"$f":"#REF!","v":{"$error":"#REF!"}},{"$f":"#REF!","v":{"$error":"#REF!"}},{"$f":"#REF!","v":{"$error":"#REF!"}},{"$f":"#REF!","v":{"$error":"#REF!"}},{"$f":"#REF!","v":{"$error":"#REF!"}},{"$f":"#REF!","v":{"$error":"#REF!"}},{"$f":"#REF!","v":{"$error":"#REF!"}},{"$f":"#REF!","v":{"$error":"#REF!"}},{"$f":"#REF!","v":{"$error":"#REF!"}},{"$f":"#REF!","v":{"$error":"#REF!"}},{"$f":"#REF!","v":{"$error":"#REF!"}},{"$f":"#REF!","v":{"$error":"#REF!"}},{"$f":"#REF!","v":{"$error":"#REF!"}},{"$f":"#REF!","v":{"$error":"#REF!"}},{"$f":"#REF!","v":{"$error":"#REF!"}},{"$f":"#REF!","v":{"$error":"#REF!"}},{"$f":"#REF!","v":{"$error":"#REF!"}},{"$f":"#REF!","v":{"$error":"#REF!"}},{"$f":"#REF!","v":{"$error":"#REF!"}},{"$f":"#REF!","v":{"$error":"#REF!"}},{"$f":"#REF!","v":{"$error":"#REF!"}},{"$f":"#REF!","v":{"$error":"#REF!"}},{"$f":"#REF!","v":{"$error":"#REF!"}},{"$f":"#REF!","v":{"$error":"#REF!"}},{"$f":"#REF!","v":{"$error":"#REF!"}},{"$f":"#REF!","v":{"$error":"#REF!"}},{"$f":"#REF!","v":{"$error":"#REF!"}},{"$f":"#REF!","v":{"$error":"#REF!"}},{"$f":"#REF!","v":{"$error":"#REF!"}},{"$f":"#REF!","v":{"$error":"#REF!"}},{"$f":"#REF!","v":{"$error":"#REF!"}},{"$f":"#REF!","v":{"$error":"#REF!"}},{"$f":"#REF!","v":{"$error":"#REF!"}},{"$f":"#REF!","v":{"$error":"#REF!"}},{"$f":"#REF!","v":{"$error":"#REF!"}},{"$f":"#REF!","v":{"$error":"#REF!"}},{"$f":"#REF!","v":{"$error":"#REF!"}},{"$f":"#REF!","v":{"$error":"#REF!"}},{"$f":"#REF!","v":{"$error":"#REF!"}},{"$f":"#REF!","v":{"$error":"#REF!"}},{"$f":"#REF!","v":{"$error":"#REF!"}},{"$f":"#REF!","v":{"$error":"#REF!"}},{"$f":"#REF!","v":{"$error":"#REF!"}},{"$f":"#REF!","v":{"$error":"#REF!"}},{"$f":"#REF!","v":{"$error":"#REF!"}},{"$f":"#REF!","v":{"$error":"#REF!"}},{"$f":"#REF!","v":{"$error":"#REF!"}},{"$f":"#REF!","v":{"$error":"#REF!"}},{"$f":"#REF!","v":{"$error":"#REF!"}},{"$f":"#REF!","v":{"$error":"#REF!"}},{"$f":"#REF!","v":{"$error":"#REF!"}},{"$f":"#REF!","v":{"$error":"#REF!"}},{"$f":"#REF!","v":{"$error":"#REF!"}},{"$f":"#REF!","v":{"$error":"#REF!"}},{"$f":"#REF!","v":{"$error":"#REF!"}},{"$f":"#REF!","v":{"$error":"#REF!"}},{"$f":"#REF!","v":{"$error":"#REF!"}},{"$f":"#REF!","v":{"$error":"#REF!"}},{"$f":"#REF!","v":{"$error":"#REF!"}},{"$f":"#REF!","v":{"$error":"#REF!"}},{"$f":"#REF!","v":{"$error":"#REF!"}},{"$f":"#REF!","v":{"$error":"#REF!"}},{"$f":"#REF!","v":{"$error":"#REF!"}},{"$f":"#REF!","v":{"$error":"#REF!"}},{"$f":"#REF!","v":{"$error":"#REF!"}},{"$f":"#REF!","v":{"$error":"#REF!"}},{"$f":"#REF!","v":{"$error":"#REF!"}},{"$f":"#REF!","v":{"$error":"#REF!"}},{"$f":"#REF!","v":{"$error":"#REF!"}},{"$f":"#REF!","v":{"$error":"#REF!"}},{"$f":"#REF!","v":{"$error":"#REF!"}},{"$f":"#REF!","v":{"$error":"#REF!"}},{"$f":"#REF!","v":{"$error":"#REF!"}},{"$f":"#REF!","v":{"$error":"#REF!"}},{"$f":"#REF!","v":{"$error":"#REF!"}},{"$f":"#REF!","v":{"$error":"#REF!"}},{"$f":"#REF!","v":{"$error":"#REF!"}},{"$f":"#REF!","v":{"$error":"#REF!"}},{"$f":"#REF!","v":{"$error":"#REF!"}},{"$f":"#REF!","v":{"$error":"#REF!"}},{"$f":"#REF!","v":{"$error":"#REF!"}},{"$f":"#REF!","v":{"$error":"#REF!"}},"جملة كشف 6",0,null,{"$f":"IF($CI14>0,VLOOKUP($CI14,'العاملين '!$A$3:$CR$260,3),0)","v":0},{"$f":"IF($CI14>0,VLOOKUP($CI14,'العاملين '!$A$3:$CR$260,49),0)","v":0},{"$error":"#REF!"}]
[0,"استمارة5",{"$f":"#REF!","v":{"$error":"#REF!"}},{"$f":"#REF!","v":{"$error":"#REF!"}},{"$f":"#REF!","v":{"$error":"#REF!"}},{"$f":"#REF!","v":{"$error":"#REF!"}},{"$f":"#REF!","v":{"$error":"#REF!"}},{"$f":"#REF!","v":{"$error":"#REF!"}},{"$f":"#REF!","v":{"$error":"#REF!"}},{"$f":"#REF!","v":{"$error":"#REF!"}},{"$f":"#REF!","v":{"$error":"#REF!"}},{"$f":"#REF!","v":{"$error":"#REF!"}},{"$f":"#REF!","v":{"$error":"#REF!"}},{"$f":"#REF!","v":{"$error":"#REF!"}},{"$f":"#REF!","v":{"$error":"#REF!"}},{"$f":"#REF!","v":{"$error":"#REF!"}},{"$f":"#REF!","v":{"$error":"#REF!"}},{"$f":"#REF!","v":{"$error":"#REF!"}},{"$f":"#REF!","v":{"$error":"#REF!"}},{"$f":"#REF!","v":{"$error":"#REF!"}},{"$f":"#REF!","v":{"$error":"#REF!"}},{"$f":"#REF!","v":{"$error":"#REF!"}},{"$f":"#REF!","v":{"$error":"#REF!"}},{"$f":"#REF!","v":{"$error":"#REF!"}},{"$f":"#REF!","v":{"$error":"#REF!"}},{"$f":"#REF!","v":{"$error":"#REF!"}},{"$f":"#REF!","v":{"$error":"#REF!"}},{"$f":"#REF!","v":{"$error":"#REF!"}},{"$f":"#REF!","v":{"$error":"#REF!"}},{"$f":"#REF!","v":{"$error":"#REF!"}},{"$f":"#REF!","v":{"$error":"#REF!"}},{"$f":"#REF!","v":{"$error":"#REF!"}},{"$f":"#REF!","v":{"$error":"#REF!"}},{"$f":"#REF!","v":{"$error":"#REF!"}},{"$f":"#REF!","v":{"$error":"#REF!"}},{"$f":"#REF!","v":{"$error":"#REF!"}},{"$f":"#REF!","v":{"$error":"#REF!"}},{"$f":"#REF!","v":{"$error":"#REF!"}},{"$f":"#REF!","v":{"$error":"#REF!"}},{"$f":"#REF!","v":{"$error":"#REF!"}},{"$f":"#REF!","v":{"$error":"#REF!"}},{"$f":"#REF!","v":{"$error":"#REF!"}},{"$f":"#REF!","v":{"$error":"#REF!"}},{"$f":"#REF!","v":{"$error":"#REF!"}},{"$f":"#REF!","v":{"$error":"#REF!"}},{"$f":"#REF!","v":{"$error":"#REF!"}},{"$f":"#REF!","v":{"$error":"#REF!"}},{"$f":"#REF!","v":{"$error":"#REF!"}},{"$f":"#REF!","v":{"$error":"#REF!"}},{"$f":"#REF!","v":{"$error":"#REF!"}},{"$f":"#REF!","v":{"$error":"#REF!"}},{"$f":"#REF!","v":{"$error":"#REF!"}},{"$f":"#REF!","v":{"$error":"#REF!"}},{"$f":"#REF!","v":{"$error":"#REF!"}},{"$f":"#REF!","v":{"$error":"#REF!"}},{"$f":"#REF!","v":{"$error":"#REF!"}},{"$f":"#REF!","v":{"$error":"#REF!"}},{"$f":"#REF!","v":{"$error":"#REF!"}},{"$f":"#REF!","v":{"$error":"#REF!"}},{"$f":"#REF!","v":{"$error":"#REF!"}},{"$f":"#REF!","v":{"$error":"#REF!"}},{"$f":"#REF!","v":{"$error":"#REF!"}},{"$f":"#REF!","v":{"$error":"#REF!"}},{"$f":"#REF!","v":{"$error":"#REF!"}},{"$f":"#REF!","v":{"$error":"#REF!"}},{"$f":"#REF!","v":{"$error":"#REF!"}},{"$f":"#REF!","v":{"$error":"#REF!"}},{"$f":"#REF!","v":{"$error":"#REF!"}},{"$f":"#REF!","v":{"$error":"#REF!"}},{"$f":"#REF!","v":{"$error":"#REF!"}},{"$f":"#REF!","v":{"$error":"#REF!"}},{"$f":"#REF!","v":{"$error":"#REF!"}},{"$f":"#REF!","v":{"$error":"#REF!"}},{"$f":"#REF!","v":{"$error":"#REF!"}},{"$f":"#REF!","v":{"$error":"#REF!"}},{"$f":"#REF!","v":{"$error":"#REF!"}},{"$f":"#REF!","v":{"$error":"#REF!"}},{"$f":"#REF!","v":{"$error":"#REF!"}},{"$f":"#REF!","v":{"$error":"#REF!"}},{"$f":"#REF!","v":{"$error":"#REF!"}},{"$f":"#REF!","v":{"$error":"#REF!"}},{"$f":"#REF!","v":{"$error":"#REF!"}},{"$f":"#REF!","v":{"$error":"#REF!"}},{"$f":"#REF!","v":{"$error":"#REF!"}},{"$f":"#REF!","v":{"$error":"#REF!"}},"جملة كشف 5",0,null,{"$f":"IF($CI15>0,VLOOKUP($CI15,'العاملين '!$A$3:$CR$260,3),0)","v":0},{"$f":"IF($CI15>0,VLOOKUP($CI15,'العاملين '!$A$3:$CR$260,49),0)","v":0},{"$error":"#REF!"}]
[0,"استمارة4",{"$f":"#REF!","v":{"$error":"#REF!"}},{"$f":"#REF!","v":{"$error":"#REF!"}},{"$f":"#REF!","v":{"$error":"#REF!"}},{"$f":"#REF!","v":{"$error":"#REF!"}},{"$f":"#REF!","v":{"$error":"#REF!"}},{"$f":"#REF!","v":{"$error":"#REF!"}},{"$f":"#REF!","v":{"$error":"#REF!"}},{"$f":"#REF!","v":{"$error":"#REF!"}},{"$f":"#REF!","v":{"$error":"#REF!"}},{"$f":"#REF!","v":{"$error":"#REF!"}},{"$f":"#REF!","v":{"$error":"#REF!"}},{"$f":"#REF!","v":{"$error":"#REF!"}},{"$f":"#REF!","v":{"$error":"#REF!"}},{"$f":"#REF!","v":{"$error":"#REF!"}},{"$f":"#REF!","v":{"$error":"#REF!"}},{"$f":"#REF!","v":{"$error":"#REF!"}},{"$f":"#REF!","v":{"$error":"#REF!"}},{"$f":"#REF!","v":{"$error":"#REF!"}},{"$f":"#REF!","v":{"$error":"#REF!"}},{"$f":"#REF!","v":{"$error":"#REF!"}},{"$f":"#REF!","v":{"$error":"#REF!"}},{"$f":"#REF!","v":{"$error":"#REF!"}},{"$f":"#REF!","v":{"$error":"#REF!"}},{"$f":"#REF!","v":{"$error":"#REF!"}},{"$f":"#REF!","v":{"$error":"#REF!"}},{"$f":"#REF!","v":{"$error":"#REF!"}},{"$f":"#REF!","v":{"$error":"#REF!"}},{"$f":"#REF!","v":{"$error":"#REF!"}},{"$f":"#REF!","v":{"$error":"#REF!"}},{"$f":"#REF!","v":{"$error":"#REF!"}},{"$f":"#REF!","v":{"$error":"#REF!"}},{"$f":"#REF!","v":{"$error":"#REF!"}},{"$f":"#REF!","v":{"$error":"#REF!"}},{"$f":"#REF!","v":{"$error":"#REF!"}},{"$f":"#REF!","v":{"$error":"#REF!"}},{"$f":"#REF!","v":{"$error":"#REF!"}},{"$f":"#REF!","v":{"$error":"#REF!"}},{"$f":"#REF!","v":{"$error":"#REF!"}},{"$f":"#REF!","v":{"$error":"#REF!"}},{"$f":"#REF!","v":{"$error":"#REF!"}},{"$f":"#REF!","v":{"$error":"#REF!"}},{"$f":"#REF!","v":{"$error":"#REF!"}},{"$f":"#REF!","v":{"$error":"#REF!"}},{"$f":"#REF!","v":{"$error":"#REF!"}},{"$f":"#REF!","v":{"$error":"#REF!"}},{"$f":"#REF!","v":{"$error":"#REF!"}},{"$f":"#REF!","v":{"$error":"#REF!"}},{"$f":"#REF!","v":{"$error":"#REF!"}},{"$f":"#REF!","v":{"$error":"#REF!"}},{"$f":"#REF!","v":{"$error":"#REF!"}},{"$f":"#REF!","v":{"$error":"#REF!"}},{"$f":"#REF!","v":{"$error":"#REF!"}},{"$f":"#REF!","v":{"$error":"#REF!"}},{"$f":"#REF!","v":{"$error":"#REF!"}},{"$f":"#REF!","v":{"$error":"#REF!"}},{"$f":"#REF!","v":{"$error":"#REF!"}},{"$f":"#REF!","v":{"$error":"#REF!"}},{"$f":"#REF!","v":{"$error":"#REF!"}},{"$f":"#REF!","v":{"$error":"#REF!"}},{"$f":"#REF!","v":{"$error":"#REF!"}},{"$f":"#REF!","v":{"$error":"#REF!"}},{"$f":"#REF!","v":{"$error":"#REF!"}},{"$f":"#REF!","v":{"$error":"#REF!"}},{"$f":"#REF!","v":{"$error":"#REF!"}},{"$f":"#REF!","v":{"$error":"#REF!"}},{"$f":"#REF!","v":{"$error":"#REF!"}},{"$f":"#REF!","v":{"$error":"#REF!"}},{"$f":"#REF!","v":{"$error":"#REF!"}},{"$f":"#REF!","v":{"$error":"#REF!"}},{"$f":"#REF!","v":{"$error":"#REF!"}},{"$f":"#REF!","v":{"$error":"#REF!"}},{"$f":"#REF!","v":{"$error":"#REF!"}},{"$f":"#REF!","v":{"$error":"#REF!"}},{"$f":"#REF!","v":{"$error":"#REF!"}},{"$f":"#REF!","v":{"$error":"#REF!"}},{"$f":"#REF!","v":{"$error":"#REF!"}},{"$f":"#REF!","v":{"$error":"#REF!"}},{"$f":"#REF!","v":{"$error":"#REF!"}},{"$f":"#REF!","v":{"$error":"#REF!"}},{"$f":"#REF!","v":{"$error":"#REF!"}},{"$f":"#REF!","v":{"$error":"#REF!"}},{"$f":"#REF!","v":{"$error":"#REF!"}},{"$f":"#REF!","v":{"$error":"#REF!"}},"جملة كشف 4",0,null,{"$f":"IF($CI16>0,VLOOKUP($CI16,'العاملين '!$A$3:$CR$260,3),0)","v":0},{"$f":"IF($CI16>0,VLOOKUP($CI16,'العاملين '!$A$3:$CR$260,49),0)","v":0},{"$error":"#REF!"}]
[0,"استمارة3",{"$f":"#REF!","v":{"$error":"#REF!"}},{"$f":"#REF!","v":{"$error":"#REF!"}},{"$f":"#REF!","v":{"$error":"#REF!"}},{"$f":"#REF!","v":{"$error":"#REF!"}},{"$f":"#REF!","v":{"$error":"#REF!"}},{"$f":"#REF!","v":{"$error":"#REF!"}},{"$f":"#REF!","v":{"$error":"#REF!"}},{"$f":"#REF!","v":{"$error":"#REF!"}},{"$f":"#REF!","v":{"$error":"#REF!"}},{"$f":"#REF!","v":{"$error":"#REF!"}},{"$f":"#REF!","v":{"$error":"#REF!"}},{"$f":"#REF!","v":{"$error":"#REF!"}},{"$f":"#REF!","v":{"$error":"#REF!"}},{"$f":"#REF!","v":{"$error":"#REF!"}},{"$f":"#REF!","v":{"$error":"#REF!"}},{"$f":"#REF!","v":{"$error":"#REF!"}},{"$f":"#REF!","v":{"$error":"#REF!"}},{"$f":"#REF!","v":{"$error":"#REF!"}},{"$f":"#REF!","v":{"$error":"#REF!"}},{"$f":"#REF!","v":{"$error":"#REF!"}},{"$f":"#REF!","v":{"$error":"#REF!"}},{"$f":"#REF!","v":{"$error":"#REF!"}},{"$f":"#REF!","v":{"$error":"#REF!"}},{"$f":"#REF!","v":{"$error":"#REF!"}},{"$f":"#REF!","v":{"$error":"#REF!"}},{"$f":"#REF!","v":{"$error":"#REF!"}},{"$f":"#REF!","v":{"$error":"#REF!"}},{"$f":"#REF!","v":{"$error":"#REF!"}},{"$f":"#REF!","v":{"$error":"#REF!"}},{"$f":"#REF!","v":{"$error":"#REF!"}},{"$f":"#REF!","v":{"$error":"#REF!"}},{"$f":"#REF!","v":{"$error":"#REF!"}},{"$f":"#REF!","v":{"$error":"#REF!"}},{"$f":"#REF!","v":{"$error":"#REF!"}},{"$f":"#REF!","v":{"$error":"#REF!"}},{"$f":"#REF!","v":{"$error":"#REF!"}},{"$f":"#REF!","v":{"$error":"#REF!"}},{"$f":"#REF!","v":{"$error":"#REF!"}},{"$f":"#REF!","v":{"$error":"#REF!"}},{"$f":"#REF!","v":{"$error":"#REF!"}},{"$f":"#REF!","v":{"$error":"#REF!"}},{"$f":"#REF!","v":{"$error":"#REF!"}},{"$f":"#REF!","v":{"$error":"#REF!"}},{"$f":"#REF!","v":{"$error":"#REF!"}},{"$f":"#REF!","v":{"$error":"#REF!"}},{"$f":"#REF!","v":{"$error":"#REF!"}},{"$f":"#REF!","v":{"$error":"#REF!"}},{"$f":"#REF!","v":{"$error":"#REF!"}},{"$f":"#REF!","v":{"$error":"#REF!"}},{"$f":"#REF!","v":{"$error":"#REF!"}},{"$f":"#REF!","v":{"$error":"#REF!"}},{"$f":"#REF!","v":{"$error":"#REF!"}},{"$f":"#REF!","v":{"$error":"#REF!"}},{"$f":"#REF!","v":{"$error":"#REF!"}},{"$f":"#REF!","v":{"$error":"#REF!"}},{"$f":"#REF!","v":{"$error":"#REF!"}},{"$f":"#REF!","v":{"$error":"#REF!"}},{"$f":"#REF!","v":{"$error":"#REF!"}},{"$f":"#REF!","v":{"$error":"#REF!"}},{"$f":"#REF!","v":{"$error":"#REF!"}},{"$f":"#REF!","v":{"$error":"#REF!"}},{"$f":"#REF!","v":{"$error":"#REF!"}},{"$f":"#REF!","v":{"$error":"#REF!"}},{"$f":"#REF!","v":{"$error":"#REF!"}},{"$f":"#REF!","v":{"$error":"#REF!"}},{"$f":"#REF!","v":{"$error":"#REF!"}},{"$f":"#REF!","v":{"$error":"#REF!"}},{"$f":"#REF!","v":{"$error":"#REF!"}},{"$f":"#REF!","v":{"$error":"#REF!"}},{"$f":"#REF!","v":{"$error":"#REF!"}},{"$f":"#REF!","v":{"$error":"#REF!"}},{"$f":"#REF!","v":{"$error":"#REF!"}},{"$f":"#REF!","v":{"$error":"#REF!"}},{"$f":"#REF!","v":{"$error":"#REF!"}},{"$f":"#REF!","v":{"$error":"#REF!"}},{"$f":"#REF!","v":{"$error":"#REF!"}},{"$f":"#REF!","v":{"$error":"#REF!"}},{"$f":"#REF!","v":{"$error":"#REF!"}},{"$f":"#REF!","v":{"$error":"#REF!"}},{"$f":"#REF!","v":{"$error":"#REF!"}},{"$f":"#REF!","v":{"$error":"#REF!"}},{"$f":"#REF!","v":{"$error":"#REF!"}},{"$f":"#REF!","v":{"$error":"#REF!"}},"جملة كشف 3",0,null,{"$f":"IF($CI17>0,VLOOKUP($CI17,'العاملين '!$A$3:$CR$260,3),0)","v":0},{"$f":"IF($CI17>0,VLOOKUP($CI17,'العاملين '!$A$3:$CR$260,49),0)","v":0},{"$error":"#REF!"}]
[0,"استمارة2",{"$f":"#REF!","v":{"$error":"#REF!"}},{"$f":"#REF!","v":{"$error":"#REF!"}},{"$f":"#REF!","v":{"$error":"#REF!"}},{"$f":"#REF!","v":{"$error":"#REF!"}},{"$f":"#REF!","v":{"$error":"#REF!"}},{"$f":"#REF!","v":{"$error":"#REF!"}},{"$f":"#REF!","v":{"$error":"#REF!"}},{"$f":"#REF!","v":{"$error":"#REF!"}},{"$f":"#REF!","v":{"$error":"#REF!"}},{"$f":"#REF!","v":{"$error":"#REF!"}},{"$f":"#REF!","v":{"$error":"#REF!"}},{"$f":"#REF!","v":{"$error":"#REF!"}},{"$f":"#REF!","v":{"$error":"#REF!"}},{"$f":"#REF!","v":{"$error":"#REF!"}},{"$f":"#REF!","v":{"$error":"#REF!"}},{"$f":"#REF!","v":{"$error":"#REF!"}},{"$f":"#REF!","v":{"$error":"#REF!"}},{"$f":"#REF!","v":{"$error":"#REF!"}},{"$f":"#REF!","v":{"$error":"#REF!"}},{"$f":"#REF!","v":{"$error":"#REF!"}},{"$f":"#REF!","v":{"$error":"#REF!"}},{"$f":"#REF!","v":{"$error":"#REF!"}},{"$f":"#REF!","v":{"$error":"#REF!"}},{"$f":"#REF!","v":{"$error":"#REF!"}},{"$f":"#REF!","v":{"$error":"#REF!"}},{"$f":"#REF!","v":{"$error":"#REF!"}},{"$f":"#REF!","v":{"$error":"#REF!"}},{"$f":"#REF!","v":{"$error":"#REF!"}},{"$f":"#REF!","v":{"$error":"#REF!"}},{"$f":"#REF!","v":{"$error":"#REF!"}},{"$f":"#REF!","v":{"$error":"#REF!"}},{"$f":"#REF!","v":{"$error":"#REF!"}},{"$f":"#REF!","v":{"$error":"#REF!"}},{"$f":"#REF!","v":{"$error":"#REF!"}},{"$f":"#REF!","v":{"$error":"#REF!"}},{"$f":"#REF!","v":{"$error":"#REF!"}},{"$f":"#REF!","v":{"$error":"#REF!"}},{"$f":"#REF!","v":{"$error":"#REF!"}},{"$f":"#REF!","v":{"$error":"#REF!"}},{"$f":"#REF!","v":{"$error":"#REF!"}},{"$f":"#REF!","v":{"$error":"#REF!"}},{"$f":"#REF!","v":{"$error":"#REF!"}},{"$f":"#REF!","v":{"$error":"#REF!"}},{"$f":"#REF!","v":{"$error":"#REF!"}},{"$f":"#REF!","v":{"$error":"#REF!"}},{"$f":"#REF!","v":{"$error":"#REF!"}},{"$f":"#REF!","v":{"$error":"#REF!"}},{"$f":"#REF!","v":{"$error":"#REF!"}},{"$f":"#REF!","v":{"$error":"#REF!"}},{"$f":"#REF!","v":{"$error":"#REF!"}},{"$f":"#REF!","v":{"$error":"#REF!"}},{"$f":"#REF!","v":{"$error":"#REF!"}},{"$f":"#REF!","v":{"$error":"#REF!"}},{"$f":"#REF!","v":{"$error":"#REF!"}},{"$f":"#REF!","v":{"$error":"#REF!"}},{"$f":"#REF!","v":{"$error":"#REF!"}},{"$f":"#REF!","v":{"$error":"#REF!"}},{"$f":"#REF!","v":{"$error":"#REF!"}},{"$f":"#REF!","v":{"$error":"#REF!"}},{"$f":"#REF!","v":{"$error":"#REF!"}},{"$f":"#REF!","v":{"$error":"#REF!"}},{"$f":"#REF!","v":{"$error":"#REF!"}},{"$f":"#REF!","v":{"$error":"#REF!"}},{"$f":"#REF!","v":{"$error":"#REF!"}},{"$f":"#REF!","v":{"$error":"#REF!"}},{"$f":"#REF!","v":{"$error":"#REF!"}},{"$f":"#REF!","v":{"$error":"#REF!"}},{"$f":"#REF!","v":{"$error":"#REF!"}},{"$f":"#REF!","v":{"$error":"#REF!"}},{"$f":"#REF!","v":{"$error":"#REF!"}},{"$f":"#REF!","v":{"$error":"#REF!"}},{"$f":"#REF!","v":{"$error":"#REF!"}},{"$f":"#REF!","v":{"$error":"#REF!"}},{"$f":"#REF!","v":{"$error":"#REF!"}},{"$f":"#REF!","v":{"$error":"#REF!"}},{"$f":"#REF!","v":{"$error":"#REF!"}},{"$f":"#REF!","v":{"$error":"#REF!"}},{"$f":"#REF!","v":{"$error":"#REF!"}},{"$f":"#REF!","v":{"$error":"#REF!"}},{"$f":"#REF!","v":{"$error":"#REF!"}},{"$f":"#REF!","v":{"$error":"#REF!"}},{"$f":"#REF!","v":{"$error":"#REF!"}},{"$f":"#REF!","v":{"$error":"#REF!"}},"جملة كشف 2",0,null,{"$f":"IF($CI18>0,VLOOKUP($CI18,'العاملين '!$A$3:$CR$260,3),0)","v":0},{"$f":"IF($CI18>0,VLOOKUP($CI18,'العاملين '!$A$3:$CR$260,49),0)","v":0},{"$error":"#REF!"}]
[0,"استمارة1",{"$f":"#REF!","v":{"$error":"#REF!"}},{"$f":"#REF!","v":{"$error":"#REF!"}},{"$f":"#REF!","v":{"$error":"#REF!"}},{"$f":"#REF!","v":{"$error":"#REF!"}},{"$f":"#REF!","v":{"$error":"#REF!"}},{"$f":"#REF!","v":{"$error":"#REF!"}},{"$f":"#REF!","v":{"$error":"#REF!"}},{"$f":"#REF!","v":{"$error":"#REF!"}},{"$f":"#REF!","v":{"$error":"#REF!"}},{"$f":"#REF!","v":{"$error":"#REF!"}},{"$f":"#REF!","v":{"$error":"#REF!"}},{"$f":"#REF!","v":{"$error":"#REF!"}},{"$f":"#REF!","v":{"$error":"#REF!"}},{"$f":"#REF!","v":{"$error":"#REF!"}},{"$f":"#REF!","v":{"$error":"#REF!"}},{"$f":"#REF!","v":{"$error":"#REF!"}},{"$f":"#REF!","v":{"$error":"#REF!"}},{"$f":"#REF!","v":{"$error":"#REF!"}},{"$f":"#REF!","v":{"$error":"#REF!"}},{"$f":"#REF!","v":{"$error":"#REF!"}},{"$f":"#REF!","v":{"$error":"#REF!"}},{"$f":"#REF!","v":{"$error":"#REF!"}},{"$f":"#REF!","v":{"$error":"#REF!"}},{"$f":"#REF!","v":{"$error":"#REF!"}},{"$f":"#REF!","v":{"$error":"#REF!"}},{"$f":"#REF!","v":{"$error":"#REF!"}},{"$f":"#REF!","v":{"$error":"#REF!"}},{"$f":"#REF!","v":{"$error":"#REF!"}},{"$f":"#REF!","v":{"$error":"#REF!"}},{"$f":"#REF!","v":{"$error":"#REF!"}},{"$f":"#REF!","v":{"$error":"#REF!"}},{"$f":"#REF!","v":{"$error":"#REF!"}},{"$f":"#REF!","v":{"$error":"#REF!"}},{"$f":"#REF!","v":{"$error":"#REF!"}},{"$f":"#REF!","v":{"$error":"#REF!"}},{"$f":"#REF!","v":{"$error":"#REF!"}},{"$f":"#REF!","v":{"$error":"#REF!"}},{"$f":"#REF!","v":{"$error":"#REF!"}},{"$f":"#REF!","v":{"$error":"#REF!"}},{"$f":"#REF!","v":{"$error":"#REF!"}},{"$f":"#REF!","v":{"$error":"#REF!"}},{"$f":"#REF!","v":{"$error":"#REF!"}},{"$f":"#REF!","v":{"$error":"#REF!"}},{"$f":"#REF!","v":{"$error":"#REF!"}},{"$f":"#REF!","v":{"$error":"#REF!"}},{"$f":"#REF!","v":{"$error":"#REF!"}},{"$f":"#REF!","v":{"$error":"#REF!"}},{"$f":"#REF!","v":{"$error":"#REF!"}},{"$f":"#REF!","v":{"$error":"#REF!"}},{"$f":"#REF!","v":{"$error":"#REF!"}},{"$f":"#REF!","v":{"$error":"#REF!"}},{"$f":"#REF!","v":{"$error":"#REF!"}},{"$f":"#REF!","v":{"$error":"#REF!"}},{"$f":"#REF!","v":{"$error":"#REF!"}},{"$f":"#REF!","v":{"$error":"#REF!"}},{"$f":"#REF!","v":{"$error":"#REF!"}},{"$f":"#REF!","v":{"$error":"#REF!"}},{"$f":"#REF!","v":{"$error":"#REF!"}},{"$f":"#REF!","v":{"$error":"#REF!"}},{"$f":"#REF!","v":{"$error":"#REF!"}},{"$f":"#REF!","v":{"$error":"#REF!"}},{"$f":"#REF!","v":{"$error":"#REF!"}},{"$f":"#REF!","v":{"$error":"#REF!"}},{"$f":"#REF!","v":{"$error":"#REF!"}},{"$f":"#REF!","v":{"$error":"#REF!"}},{"$f":"#REF!","v":{"$error":"#REF!"}},{"$f":"#REF!","v":{"$error":"#REF!"}},{"$f":"#REF!","v":{"$error":"#REF!"}},{"$f":"#REF!","v":{"$error":"#REF!"}},{"$f":"#REF!","v":{"$error":"#REF!"}},{"$f":"#REF!","v":{"$error":"#REF!"}},{"$f":"#REF!","v":{"$error":"#REF!"}},{"$f":"#REF!","v":{"$error":"#REF!"}},{"$f":"#REF!","v":{"$error":"#REF!"}},{"$f":"#REF!","v":{"$error":"#REF!"}},{"$f":"#REF!","v":{"$error":"#REF!"}},{"$f":"#REF!","v":{"$error":"#REF!"}},{"$f":"#REF!","v":{"$error":"#REF!"}},{"$f":"#REF!","v":{"$error":"#REF!"}},{"$f":"#REF!","v":{"$error":"#REF!"}},{"$f":"#REF!","v":{"$error":"#REF!"}},{"$f":"#REF!","v":{"$error":"#REF!"}},{"$f":"#REF!","v":{"$error":"#REF!"}},"جملة كشف 1",0,null,{"$f":"IF($CI19>0,VLOOKUP($CI19,'العاملين '!$A$3:$CR$260,3),0)","v":0},{"$f":"IF($CI19>0,VLOOKUP($CI19,'العاملين '!$A$3:$CR$260,49),0)","v":0},{"$error":"#REF!"}]
[0,"الاداريون",{"$f":"#REF!","v":{"$error":"#REF!"}},{"$f":"#REF!","v":{"$error":"#REF!"}},{"$f":"#REF!","v":{"$error":"#REF!"}},{"$f":"#REF!","v":{"$error":"#REF!"}},{"$f":"#REF!","v":{"$error":"#REF!"}},{"$f":"#REF!","v":{"$error":"#REF!"}},null,null,null,null,null,null,null,null,null,null,null,null,null,null,null,null,null,null,null,null,null,null,null,null,null,null,{"$f":"#REF!","v":{"$error":"#REF!"}},{"$f":"#REF!","v":{"$error":"#REF!"}},{"$f":"#REF!","v":{"$error":"#REF!"}},null,null,null,null,{"$f":"#REF!","v":{"$error":"#REF!"}},{"$f":"#REF!","v":{"$error":"#REF!"}},{"$f":"#REF!","v":{"$error":"#REF!"}},{"$f":"#REF!","v":{"$error":"#REF!"}},{"$f":"#REF!","v":{"$error":"#REF!"}},{"$f":"#REF!","v":{"$error":"#REF!"}},{"$f":"#REF!","v":{"$error":"#REF!"}},null,null,{"$f":"#REF!","v":{"$error":"#REF!"}},{"$f":"#REF!","v":{"$error":"#REF!"}},{"$f":"#REF!","v":{"$error":"#REF!"}},{"$f":"#REF!","v":{"$error":"#REF!"}},null,{"$f":"#REF!","v":{"$error":"#REF!"}},{"$f":"#REF!","v":{"$error":"#REF!"}},{"$f":"#REF!","v":{"$error":"#REF!"}},{"$f":"#REF!","v":{"$error":"#REF!"}},{"$f":"#REF!","v":{"$error":"#REF!"}},{"$f":"#REF!","v":{"$error":"#REF!"}},{"$f":"#REF!","v":{"$error":"#REF!"}},{"$f":"#REF!","v":{"$error":"#REF!"}},{"$f":"#REF!","v":{"$error":"#REF!"}},{"$f":"#REF!","v":{"$error":"#REF!"}},{"$f":"#REF!","v":{"$error":"#REF!"}},{"$f":"#REF!","v":{"$error":"#REF!"}},{"$f":"#REF!","v":{"$error":"#REF!"}},{"$f":"#REF!","v":{"$error":"#REF!"}},{"$f":"#REF!","v":{"$error":"#REF!"}},{"$f":"#REF!","v":{"$error":"#REF!"}},{"$f":"#REF!","v":{"$error":"#REF!"}},null,null,{"$f":"#REF!","v":{"$error":"#REF!"}},null,null,null,null,{"$f":"#REF!","v":{"$error":"#REF!"}},{"$f":"#REF!","v":{"$error":"#REF!"}},null,{"$f":"#REF!","v":{"$error":"#REF!"}},{"$f":"#REF!","v":{"$error":"#REF!"}},{"$f":"#REF!","v":{"$error":"#REF!"}},"جملة الاداريين",0,null,{"$f":"IF($CI20>0,VLOOKUP($CI20,'العاملين '!$A$3:$CR$260,3),0)","v":0},{"$f":"IF($CI20>0,VLOOKUP($CI20,'العاملين '!$A$3:$CR$260,49),0)","v":0},{"$error":"#REF!"}]
[0,"الجملة",{"$f":"SUM(C10:C25)","v":{"$error":"#REF!"}},{"$error":"#REF!"},{"$error":"#REF!"},{"$error":"#REF!"},{"$error":"#REF!"},{"$error":"#REF!"},{"$error":"#REF!"},{"$error":"#REF!"},{"$error":"#REF!"},{"$error":"#REF!"},{"$error":"#REF!"},{"$error":"#REF!"},{"$error":"#REF!"},{"$error":"#REF!"},{"$error":"#REF!"},{"$error":"#REF!"},{"$error":"#REF!"},{"$error":"#REF!"},{"$error":"#REF!"},{"$error":"#REF!"},{"$error":"#REF!"},{"$error":"#REF!"},{"$error":"#REF!"},{"$error":"#REF!"},{"$error":"#REF!"},{"$error":"#REF!"},{"$error":"#REF!"},{"$error":"#REF!"},{"$error":"#REF!"},{"$error":"#REF!"},{"$error":"#REF!"},{"$error":"#REF!"},{"$f":"SUM(AI10:AI25)","v":{"$error":"#REF!"}},{"$error":"#REF!"},{"$error":"#REF!"},{"$error":"#REF!"},{"$error":"#REF!"},{"$error":"#REF!"},{"$error":"#REF!"},{"$error":"#REF!"},{"$error":"#REF!"},{"$error":"#REF!"},{"$error":"#REF!"},{"$error":"#REF!"},{"$error":"#REF!"},{"$error":"#REF!"},{"$error":"#REF!"},{"$error":"#REF!"},{"$error":"#REF!"},{"$error":"#REF!"},{"$error":"#REF!"},{"$error":"#REF!"},{"$error":"#REF!"},{"$error":"#REF!"},{"$error":"#REF!"},{"$error":"#REF!"},{"$error":"#REF!"},{"$error":"#REF!"},{"$error":"#REF!"},{"$error":"#REF!"},{"$error":"#REF!"},{"$error":"#REF!"},{"$error":"#REF!"},{"$error":"#REF!"},{"$f":"SUM(BO10:BO25)","v":{"$error":"#REF!"}},{"$error":"#REF!"},{"$error":"#REF!"},{"$error":"#REF!"},{"$error":"#REF!"},{"$error":"#REF!"},{"$error":"#REF!"},{"$error":"#REF!"},{"$error":"#REF!"},{"$error":"#REF!"},{"$error":"#REF!"},{"$error":"#REF!"},{"$error":"#REF!"},{"$error":"#REF!"},{"$error":"#REF!"},{"$error":"#REF!"},{"$error":"#REF!"},{"$error":"#REF!"},{"$error":"#REF!"},null,null,null,null,null,{"$error":"#REF!"}]
[0,null,null,null,null,null,null,null,null,null,null,null,null,null,null,null,null,null,null,null,null,null,null,null,null,null,null,null,null,null,null,null,null,null,null,null,null,null,null,null,null,null,null,null,null,null,null,null,null,null,null,null,null,null,null,null,null,null,null,null,null,null,null,null,null,null,null,null,null,null,null,null,null,null,null,null,null,null,null,null,null,null,null,"يعتمد مدير المدرسة",null,{"$f":"ورقة1!C4","v":"محمد"}]
[0,null,"مسئول الماهيات",null,{"$f":"ورقة1!C6","v":0},null,null,null,null,null,null,null,null,null,null,null,null,null,null,null,null,null,null,null,null,null,null,null,null,null,null,null,null,null,null,null,null,null,null,null,null,null,null,null,null,null,null,null,null,null,null,null,null,null,null,null,null,null,null,null,null,null,null,null,null,null,null,null,null,null,null,null,null,null,null,null,null,null,null,null,null,null,null,null,null,null,null,null,{"$f":"IF($CI23>0,VLOOKUP($CI23,'العاملين '!$A$3:$CR$260,3),0)","v":0},{"$f":"IF($CI23>0,VLOOKUP($CI23,'العاملين '!$A$3:$CR$260,49),0)","v":0},{"$f":"AY23-SUM(AZ23:CD23)","v":0}]
[]
[null,null,null,null,null,null,null,null,null,null,null,null,null,null,null,null,null,null,null,null,null,null,null,null,null,null,null,null,null,null,null,null,null,null,null,null,null,null,null,null,null,null,null,null,null,null,null,null,null,null,null,null,null,null,null,null,null,null,null,null,null,null,null,null,null,null,null,null,null,null,null,null,null,null,null,null,null,null,null,null,null,null,null,null,null,null,null,null,{"$f":"IF($CI25>0,VLOOKUP($CI25,'العاملين '!$A$3:$CR$260,3),0)","v":0},{"$f":"IF($CI25>0,VLOOKUP($CI25,'العاملين '!$A$3:$CR$260,49),0)","v":0},0]